Workbook

Sheet Initials (hidden)
A1: Full Name | B1: Initials
A2: Walaa Abu Zaiter | B2: WA
A3: Celine Carre | B3: CC
A4: Olivia Falkowitz | B4: OF
A5: Armando Enrique Gamboa Borges | B5: AG
A6: Sara Janicot | B6: SJ
A7: Amandine Labeca Benfele | B7: AM
A8: Amy O' Leary | B8: AO
A9: Jairo Alberto PAIZANO POTOY | B9: JP
A10: Luca Sangalli | B10: LS
A11: Gonzalo ALVAREZ ARCE | B11: GA
A12: Iván Carlos Álvarez Colomina | B12: IA
A13: Marion Bouillie | B13: MB
A14: Birte Brodkorb | B14: BB
A15: Gonzalo Ramón CODINA RECALDE | B15: GC
A16: Ian Goodrich | B16: IG
A17: Olivier Herrmann | B17: OH
A18: Lucas HONAUER | B18: LH
A19: Gladys Le Masson | B19: GL
A20: Ariane Lignier | B20: AL
A21: Myriam MARCUELLO LOPEZ | B21: MM
A22: Nelleke Dorothea Riepma | B22: DR
A23: Dalia Sbeih | B23: DS
A24: Suzanne Takkenberg | B24: ST
A25: Tomas Pedro Zaratiegui Bromhead | B25: TZ
A26: Celia González Otálora | B26: CO
A27: Daniel Garcia Ibanez | B27: DG
A28: David Da Rocha | B28: DD
A29: Erin Mc Donalds | B29: EM
A30: Giovanni Mellone | B30: GM
A31: Jose Jodar Vidal | B31: JV
A32: Leila Bouchet | B32: LB
A33: Luis González | B33: LL
A34: Paula Sanchez de la Blanca | B34: PS
A35: Andrea Bina | B35: AB
A36: Rachele Daffara | B36: RD
A37: Angela Constantino | B37: AC
A38: Maria Pia Ferrari | B38: MP
A39: Carolina Jimenez | B39: CJ
A40: Olga Tsuman | B40: OT
A41: Arsenii Kalashnykov | B41: AK
A42: Giusy Musaro | B42: GI
A43: 0 | B43: 0
A44: 0 | B44: 0
A45: 0 | B45: 0
A46: 0 | B46: 0
A47: 0 | B47: 0
A48: 0 | B48: 0
A49: 0 | B49: 0
A50: 0 | B50: 0

Sheet Holidays 2021 (hidden)
A2: Action Against Hunger Public and Bank Holidays - 2021 | E2: AAH HQ Holidays - 2021
A4: The following holidays will be observed by Action Against Hunger – oPT for 2021
A5: Observed on | B5: Holiday “Office Closing days” | C5: No. of days
A7: 2021-01-01 | B7: New Year's Day | C7: 1
A8: Two days on Western Easter from Good Friday through Monday (first half of April 20) | B8: Easter | C8: 2
A9: 2021-05-01 | B9: Labor day | C9: 1
A10: Based on the Lunar Calendar (First half of May 21) | B10: Eid Al Fitter (End of Ramadan) | C10: 3
A11: Based on the Lunar Calendar (second half of July 21) | B11: Eid Al Adha (Sacrifice Feast) | C11: 4
A12: 2021-11-15 | B12: Independence day | C12: 1
A13: 24, 25, 26-Dec-21 | B13: Christmas | C13: 3
C14: =SUM(C7:C13) -> 15
A15: Total holidays are 15 working days which all are fixed as above.
A16: If the public holidays fall on a weekend they will be moved to the next working day.
A187: -

Sheet JE Accom Plan (hidden)
B1: Jerusalem - GUEST HOUSES MANAGEMENT
C2: Permanent
C3: Available | R3: Document updated by Capital Log only
C4: Guest
AI6: GH | AJ6: Room | AK6: Possible Days | AL6: Busy Days | AM6: Free Days | AN6: Occupation Rate
B7: January | C7: 2019 | D7: T | E7: W | F7: T | G7: F | H7: S | I7: S | J7: M | K7: T | L7: W | M7: T | N7: F | O7: S | P7: S | Q7: M | R7: T | S7: W | T7: T | U7: F | V7: S | W7: S | X7: M | Y7: T | Z7: W | AA7: T | AB7: F | AC7: S | AD7: S | AE7: M | AF7: T | AG7: W | AH7: T | AO7: Comments
B8: GH1 | D8: 1 | E8: 2 | F8: 3 | G8: 4 | H8: 5 | I8: 6 | J8: 7 | K8: 8 | L8: 9 | M8: 10 | N8: 11 | O8: 12 | P8: 13 | Q8: 14 | R8: 15 | S8: 16 | T8: 17 | U8: 18 | V8: 19 | W8: 20 | X8: 21 | Y8: 22 | Z8: 23 | AA8: 24 | AB8: 25 | AC8: 26 | AD8: 27 | AE8: 28 | AF8: 29 | AG8: 30 | AH8: 31
A9: 2019-01-01 | B9: Room 1 | C9: 1 double bed | AI9: GH1 | AJ9: Room 1 | AK9: =COUNTA(D8:AH8) -> 31 | AL9: =COUNTA(D9:AH9) -> 0 | AM9: =AK9-AL9 -> 31 | AN9: =AL9/AK9 -> 0%
A10: 2019-01-01 | B10: Room 2 | C10: 1 double bed | D10: ST | E10: ST | F10: ST | G10: ST | H10: ST | I10: ST | J10: ST | K10: ST | L10: ST | M10: ST | N10: ST | O10: ST | P10: ST | Q10: ST | R10: ST | S10: ST | T10: ST | U10: ST | V10: ST | W10: ST | X10: ST | Y10: ST | Z10: ST | AA10: ST | AB10: ST | AC10: ST | AD10: ST | AE10: ST | AF10: ST | AG10: ST | AH10: ST | AI10: GH1 | AJ10: Room 2 | AK10: =AK9 -> 31 | AL10: =COUNTA(D10:AH10) -> 31 | AM10: =AK10-AL10 -> 0 | AN10: =AL10/AK10 -> 100%
A11: 2019-01-01 | B11: Room 3 | C11: 1 double bed | H11: AO | AI11: GH1 | AJ11: Room 3 | AK11: =AK10 -> 31 | AL11: =COUNTA(D11:AH11) -> 1 | AM11: =AK11-AL11 -> 30 | AN11: =AL11/AK11 -> 3%
B12: GH2
A13: 2019-01-01 | B13: Room 1 | C13: 1 double bed | D13: TZ | E13: TZ | F13: TZ | G13: TZ | H13: TZ | I13: TZ | J13: TZ | K13: TZ | L13: TZ | M13: TZ | N13: TZ | O13: TZ | P13: TZ | Q13: TZ | R13: TZ | S13: TZ | T13: TZ | U13: TZ | V13: TZ | W13: TZ | X13: TZ | Y13: TZ | Z13: TZ | AA13: TZ | AB13: TZ | AC13: TZ | AD13: TZ | AE13: TZ | AF13: TZ | AG13: TZ | AH13: TZ | AI13: GH2 | AJ13: Room 1 | AK13: =AK9 -> 31 | AL13: =COUNTA(D13:AH13) -> 31 | AM13: =AK13-AL13 -> 0 | AN13: =AL13/AK13 -> 100%
A14: 2019-01-01 | B14: Room 2 | C14: 1 single bed | AA14: JP | AB14: JP | AC14: JP | AD14: JP | AI14: GH2 | AJ14: Room 2 | AK14: =AK13 -> 31 | AL14: =COUNTA(D14:AH14) -> 4 | AM14: =AK14-AL14 -> 27 | AN14: =AL14/AK14 -> 13%
A15: 2019-01-01 | B15: Room 3 | C15: 1 single bed | AG15: AO | AH15: AO | AI15: GH2 | AJ15: Room 3 | AK15: =AK14 -> 31 | AL15: =COUNTA(D15:AH15) -> 2 | AM15: =AK15-AL15 -> 29 | AN15: =AL15/AK15 -> 6%
B18: February | C18: 2019 | D18: F | E18: S | F18: S | G18: M | H18: T | I18: W | J18: T | K18: F | L18: S | M18: S | N18: M | O18: T | P18: W | Q18: T | R18: F | S18: S | T18: S | U18: M | V18: T | W18: W | X18: T | Y18: F | Z18: S | AA18: S | AB18: M | AC18: T | AD18: W | AE18: T | AO18: Comments
B19: GH1 | D19: 1 | E19: 2 | F19: 3 | G19: 4 | H19: 5 | I19: 6 | J19: 7 | K19: 8 | L19: 9 | M19: 10 | N19: 11 | O19: 12 | P19: 13 | Q19: 14 | R19: 15 | S19: 16 | T19: 17 | U19: 18 | V19: 19 | W19: 20 | X19: 21 | Y19: 22 | Z19: 23 | AA19: 24 | AB19: 25 | AC19: 26 | AD19: 27 | AE19: 28
A20: 2019-02-01 | B20: Room 1 | C20: 1 double bed | G20: LL | H20: LL | I20: LL | J20: LL | K20: LL | L20: AO | M20: SJ | T20: DD | U20: DD | V20: DD | W20: DD | X20: DD | Y20: DD | Z20: DD | AA20: DD | AB20: DD | AC20: DD | AD20: DD | AE20: DD | AI20: GH1 | AJ20: Room 1 | AK20: =COUNTA(D19:AH19) -> 28 | AL20: =COUNTA(D20:AH20) -> 19 | AM20: =AK20-AL20 -> 9 | AN20: =AL20/AK20 -> 68%
A21: 2019-02-01 | B21: Room 2 | C21: 1 double bed | D21: ST | E21: ST | F21: ST | G21: ST | H21: ST | I21: ST | J21: ST | K21: ST | L21: ST | M21: ST | N21: ST | O21: ST | P21: ST | Q21: ST | R21: ST | S21: ST | T21: ST | U21: ST | V21: ST | W21: ST | X21: ST | Y21: ST | Z21: ST | AA21: ST | AB21: ST | AC21: ST | AD21: ST | AE21: ST | AI21: GH1 | AJ21: Room 2 | AK21: =AK20 -> 28 | AL21: =COUNTA(D21:AH21) -> 28 | AM21: =AK21-AL21 -> 0 | AN21: =AL21/AK21 -> 100%
A22: 2019-02-01 | B22: Room 3 | C22: 1 double bed | K22: AO | L22: AO | M22: AO | AD22: AO | AE22: AO | AI22: GH1 | AJ22: Room 3 | AK22: =AK21 -> 28 | AL22: =COUNTA(D22:AH22) -> 5 | AM22: =AK22-AL22 -> 23 | AN22: =AL22/AK22 -> 18%
B23: GH2
A24: 2019-02-01 | B24: Room 1 | C24: 1 double bed | D24: TZ | E24: TZ | F24: TZ | G24: TZ | H24: TZ | I24: TZ | J24: TZ | K24: TZ | L24: TZ | M24: TZ | N24: TZ | O24: TZ | P24: TZ | Q24: TZ | R24: TZ | S24: TZ | T24: TZ | U24: TZ | V24: TZ | W24: TZ | X24: TZ | Y24: TZ | Z24: TZ | AA24: TZ | AB24: TZ | AC24: TZ | AD24: TZ | AE24: TZ | AI24: GH2 | AJ24: Room 1 | AK24: =AK20 -> 28 | AL24: =COUNTA(D24:AH24) -> 28 | AM24: =AK24-AL24 -> 0 | AN24: =AL24/AK24 -> 100%
A25: 2019-02-01 | B25: Room 2 | C25: 1 single bed | D25: LL | E25: LL | F25: LL | K25: JP | L25: JP | M25: JP | X25: SJ | Y25: SJ | AI25: GH2 | AJ25: Room 2 | AK25: =AK24 -> 28 | AL25: =COUNTA(D25:AH25) -> 8 | AM25: =AK25-AL25 -> 20 | AN25: =AL25/AK25 -> 29%
A26: 2019-02-01 | B26: Room 3 | C26: 1 single bed | D26: AO | E26: AO | F26: AO | N26: AO | O26: AO | AI26: GH2 | AJ26: Room 3 | AK26: =AK25 -> 28 | AL26: =COUNTA(D26:AH26) -> 5 | AM26: =AK26-AL26 -> 23 | AN26: =AL26/AK26 -> 18%
B28: March | C28: 2019 | D28: F | E28: S | F28: S | G28: M | H28: T | I28: W | J28: T | K28: F | L28: S | M28: S | N28: M | O28: T | P28: W | Q28: T | R28: F | S28: S | T28: S | U28: M | V28: T | W28: W | X28: T | Y28: F | Z28: S | AA28: S | AB28: M | AC28: T | AD28: W | AE28: T | AF28: F | AG28: S | AH28: S | AO28: Comments
B29: GH1 | D29: 1 | E29: 2 | F29: 3 | G29: 4 | H29: 5 | I29: 6 | J29: 7 | K29: 8 | L29: 9 | M29: 10 | N29: 11 | O29: 12 | P29: 13 | Q29: 14 | R29: 15 | S29: 16 | T29: 17 | U29: 18 | V29: 19 | W29: 20 | X29: 21 | Y29: 22 | Z29: 23 | AA29: 24 | AB29: 25 | AC29: 26 | AD29: 27 | AE29: 28 | AF29: 29 | AG29: 30 | AH29: 31
A30: 2019-03-01 | B30: Room 1 | C30: 1 double bed | D30: DD | E30: DD | F30: DD | G30: DD | H30: DD | I30: DD | J30: DD | K30: DD | AI30: GH1 | AJ30: Room 1 | AK30: =COUNTA(D29:AH29) -> 31 | AL30: =COUNTA(D30:AH30) -> 8 | AM30: =AK30-AL30 -> 23 | AN30: =AL30/AK30 -> 26%
A31: 2019-03-01 | B31: Room 2 | C31: 1 double bed | D31: ST | E31: ST | F31: ST | G31: ST | H31: ST | I31: ST | J31: ST | K31: ST | L31: ST | M31: ST | N31: ST | O31: ST | P31: ST | Q31: ST | R31: ST | S31: ST | T31: ST | U31: ST | V31: ST | W31: ST | X31: ST | Y31: ST | Z31: ST | AA31: ST | AB31: ST | AC31: ST | AD31: ST | AE31: ST | AF31: ST | AG31: ST | AH31: ST | AI31: GH1 | AJ31: Room 2 | AK31: =AK30 -> 31 | AL31: =COUNTA(D31:AH31) -> 31 | AM31: =AK31-AL31 -> 0 | AN31: =AL31/AK31 -> 100%
A32: 2019-03-01 | B32: Room 3 | C32: 1 double bed | D32: AO | E32: AO | F32: AO | G32: OH | H32: OH | I32: OH | J32: OH | K32: OH | L32: OH | M32: OH | N32: OH | O32: OH | P32: OH | Q32: OH | R32: OH | S32: OH | T32: OH | U32: OH | V32: OH | W32: OH | X32: OH | Y32: OH | Z32: OH | AA32: OH | AB32: OH | AC32: OH | AD32: OH | AE32: OH | AF32: OH | AG32: OH | AH32: OH | AI32: GH1 | AJ32: Room 3 | AK32: =AK31 -> 31 | AL32: =COUNTA(D32:AH32) -> 31 | AM32: =AK32-AL32 -> 0 | AN32: =AL32/AK32 -> 100%
B33: GH2
A34: 2019-03-01 | B34: Room 1 | C34: 1 double bed | D34: TZ | E34: TZ | F34: TZ | G34: TZ | H34: TZ | I34: TZ | J34: TZ | K34: TZ | L34: TZ | M34: TZ | N34: TZ | O34: TZ | P34: TZ | Q34: TZ | R34: TZ | AF34: LB | AG34: LB | AH34: LB | AI34: GH2 | AJ34: Room 1 | AK34: =AK30 -> 31 | AL34: =COUNTA(D34:AH34) -> 18 | AM34: =AK34-AL34 -> 13 | AN34: =AL34/AK34 -> 58% | AO34: Guesthouse 2 Move from Beit Hanina to Sheikh Jarrah (GH4) on March 21st
A35: 2019-03-01 | B35: Room 2 | C35: 1 single bed | F35: JP | G35: EM | H35: EM | I35: EM | J35: EM | K35: EM | L35: EM | M35: EM | N35: EM | O35: EM | P35: EM | Q35: EM | R35: EM | S35: EM | T35: EM | U35: EM | V35: EM | W35: EM | X35: EM | Y35: EM | Z35: EM | AA35: EM | AB35: EM | AC35: EM | AD35: EM | AE35: EM | AF35: EM | AG35: EM | AH35: EM | AI35: GH2 | AJ35: Room 2 | AK35: =AK34 -> 31 | AL35: =COUNTA(D35:AH35) -> 29 | AM35: =AK35-AL35 -> 2 | AN35: =AL35/AK35 -> 94%
A36: 2019-03-01 | B36: Room 3 | C36: 1 single bed | D36: SJ | E36: SJ | F36: CC | G36: CC | H36: CC | I36: CC | J36: CC | K36: CC | L36: CC | M36: CC | N36: CC | O36: CC | P36: CC | Q36: CC | R36: CC | S36: CC | T36: CC | U36: CC | V36: CC | W36: CC | X36: CC | Y36: CC | Z36: CC | AA36: CC | AB36: CC | AC36: CC | AD36: CC | AE36: CC | AF36: CC | AG36: CC | AH36: CC | AI36: GH2 | AJ36: Room 3 | AK36: =AK35 -> 31 | AL36: =COUNTA(D36:AH36) -> 31 | AM36: =AK36-AL36 -> 0 | AN36: =AL36/AK36 -> 100%
B38: April | C38: 2019 | D38: M | E38: T | F38: W | G38: T | H38: F | I38: S | J38: S | K38: M | L38: T | M38: W | N38: T | O38: F | P38: S | Q38: S | R38: M | S38: T | T38: W | U38: T | V38: F | W38: S | X38: S | Y38: M | Z38: T | AA38: W | AB38: T | AC38: F | AD38: S | AE38: S | AF38: M | AG38: T | AO38: Comments
B39: GH1 | D39: 1 | E39: 2 | F39: 3 | G39: 4 | H39: 5 | I39: 6 | J39: 7 | K39: 8 | L39: 9 | M39: 10 | N39: 11 | O39: 12 | P39: 13 | Q39: 14 | R39: 15 | S39: 16 | T39: 17 | U39: 18 | V39: 19 | W39: 20 | X39: 21 | Y39: 22 | Z39: 23 | AA39: 24 | AB39: 25 | AC39: 26 | AD39: 27 | AE39: 28 | AF39: 29 | AG39: 30
A40: 2019-04-01 | B40: Room 1 | C40: 1 double bed | H40: IG | I40: IG | J40: IG | K40: IG | L40: IG | M40: IG | N40: IG | O40: IG | P40: IG | Q40: IG | R40: IG | S40: IG | T40: IG | U40: IG | V40: IG | W40: IG | X40: IG | Y40: IG | Z40: IG | AA40: IG | AB40: IG | AC40: IG | AD40: IG | AE40: IG | AF40: IG | AG40: IG | AI40: GH1 | AJ40: Room 1 | AK40: =COUNTA(D39:AH39) -> 30 | AL40: =COUNTA(D40:AH40) -> 26 | AM40: =AK40-AL40 -> 4 | AN40: =AL40/AK40 -> 87% | AO40: Amy 11 & 12/04 in Hotel
A41: 2019-04-01 | B41: Room 2 | C41: 1 double bed | D41: ST | E41: ST | F41: ST | G41: ST | H41: ST | I41: ST | J41: ST | K41: ST | L41: ST | M41: ST | N41: ST | O41: ST | P41: ST | Q41: ST | R41: ST | S41: ST | T41: ST | U41: ST | V41: ST | W41: ST | X41: ST | Y41: ST | Z41: ST | AA41: ST | AB41: ST | AC41: ST | AD41: ST | AE41: ST | AF41: ST | AG41: ST | AI41: GH1 | AJ41: Room 2 | AK41: =AK40 -> 30 | AL41: =COUNTA(D41:AH41) -> 30 | AM41: =AK41-AL41 -> 0 | AN41: =AL41/AK41 -> 100% | AO41: Jairo PAIZANO from 23st of April to 04th May.
A42: 2019-04-01 | B42: Room 3 | C42: 1 double bed | D42: OH | E42: OH | F42: OH | G42: OH | H42: OH | I42: OH | J42: OH | K42: OH | L42: OH | M42: OH | N42: OH | O42: OH | P42: OH | Q42: OH | R42: OH | S42: OH | T42: OH | U42: OH | V42: OH | W42: OH | X42: OH | Y42: OH | Z42: OH | AA42: OH | AB42: OH | AC42: OH | AD42: OH | AE42: OH | AF42: OH | AG42: OH | AI42: GH1 | AJ42: Room 3 | AK42: =AK41 -> 30 | AL42: =COUNTA(D42:AH42) -> 30 | AM42: =AK42-AL42 -> 0 | AN42: =AL42/AK42 -> 100%
B43: GH4
A44: 2019-04-01 | B44: Room 1 | C44: 1 double bed | D44: CC | E44: CC | F44: CC | G44: CC | H44: CC | I44: CC | J44: CC | K44: CC | L44: CC | M44: CC | N44: CC | O44: CC | P44: CC | Q44: CC | R44: CC | S44: CC | T44: CC | U44: CC | V44: CC | W44: CC | X44: CC | Y44: CC | Z44: CC | AA44: CC | AB44: CC | AC44: CC | AD44: CC | AE44: CC | AF44: CC | AG44: CC | AI44: GH4 | AJ44: Room 1 | AK44: =AK40 -> 30 | AL44: =COUNTA(D44:AH44) -> 30 | AM44: =AK44-AL44 -> 0 | AN44: =AL44/AK44 -> 100% | AO44: To be adjusted. Will be mainly in Gaza
A45: 2019-04-01 | B45: Room 2 | C45: 1 single bed | E45: GM | F45: GM | G45: GM | H45: GM | I45: GM | J45: GM | K45: GM | L45: GM | M45: GM | N45: GM | O45: GM | P45: GM | Q45: GM | R45: GM | S45: GM | T45: GM | U45: GM | V45: GM | W45: GM | X45: GM | Y45: GM | Z45: GM | AA45: GM | AB45: GM | AC45: GM | AD45: GM | AE45: GM | AF45: GM | AG45: GM | AI45: GH4 | AJ45: Room 2 | AK45: =AK44 -> 30 | AL45: =COUNTA(D45:AH45) -> 29 | AM45: =AK45-AL45 -> 1 | AN45: =AL45/AK45 -> 97% | AO45: Amy 20/04 in GH1 (bypass)/ 27/4 Hotel
A46: 2019-04-01 | B46: Room 3 | C46: 1 single bed | D46: LB | E46: LB | F46: LB | G46: LB | H46: SJ | I46: SJ | J46: SJ | M46: SJ | N46: AB | O46: AB | P46: AB | Q46: AB | R46: AB | S46: AB | T46: AB | U46: AB | V46: AB | W46: AB | X46: AB | Y46: AB | Z46: AB | AA46: AB | AB46: AB | AC46: AB | AD46: AB | AE46: AB | AF46: AB | AG46: AB | AI46: GH4 | AJ46: Room 3 | AK46: =AK45 -> 30 | AL46: =COUNTA(D46:AH46) -> 28 | AM46: =AK46-AL46 -> 2 | AN46: =AL46/AK46 -> 93%
B48: May | C48: 2019 | D48: W | E48: T | F48: F | G48: S | H48: S | I48: M | J48: T | K48: W | L48: T | M48: F | N48: S | O48: S | P48: M | Q48: T | R48: W | S48: T | T48: F | U48: S | V48: S | W48: M | X48: T | Y48: W | Z48: T | AA48: F | AB48: S | AC48: S | AD48: M | AE48: T | AF48: W | AG48: T | AH48: F | AO48: Comments
B49: GH1 | D49: 1 | E49: 2 | F49: 3 | G49: 4 | H49: 5 | I49: 6 | J49: 7 | K49: 8 | L49: 9 | M49: 10 | N49: 11 | O49: 12 | P49: 13 | Q49: 14 | R49: 15 | S49: 16 | T49: 17 | U49: 18 | V49: 19 | W49: 20 | X49: 21 | Y49: 22 | Z49: 23 | AA49: 24 | AB49: 25 | AC49: 26 | AD49: 27 | AE49: 28 | AF49: 29 | AG49: 30 | AH49: 31
A50: 2019-05-01 | B50: Room 1 | C50: 1 double bed | V50: JV | W50: JV | X50: JV | Y50: JV | Z50: AO | AA50: AO | AB50: AO | AC50: AO | AF50: CO | AG50: CO | AH50: CO | AI50: GH1 | AJ50: Room 1 | AK50: =COUNTA(D49:AH49) -> 31 | AL50: =COUNTA(D50:AH50) -> 12 | AM50: =AK50-AL50 -> 19 | AN50: =AL50/AK50 -> 39%
A51: 2019-05-01 | B51: Room 2 | C51: 1 double bed | D51: ST | E51: ST | F51: ST | G51: ST | H51: ST | I51: ST | J51: ST | K51: ST | L51: ST | M51: ST | N51: ST | O51: ST | P51: ST | Q51: ST | R51: ST | S51: ST | T51: ST | U51: ST | V51: ST | W51: ST | X51: ST | Y51: ST | Z51: ST | AA51: ST | AB51: ST | AC51: ST | AD51: ST | AE51: ST | AF51: ST | AG51: ST | AH51: ST | AI51: GH1 | AJ51: Room 2 | AK51: =AK50 -> 31 | AL51: =COUNTA(D51:AH51) -> 31 | AM51: =AK51-AL51 -> 0 | AN51: =AL51/AK51 -> 100%
A52: 2019-05-01 | B52: Room 3 | C52: 1 double bed | D52: GM | E52: GM | F52: GM | G52: GM | H52: CO | I52: CO | J52: CO | K52: CO | L52: CO | M52: CO | N52: CO | O52: CO | P52: CO | Q52: OH | R52: OH | S52: OH | T52: OH | U52: OH | V52: OH | W52: OH | X52: OH | Y52: OH | Z52: OH | AA52: OH | AB52: OH | AC52: OH | AD52: OH | AE52: OH | AF52: OH | AG52: OH | AH52: OH | AI52: GH1 | AJ52: Room 3 | AK52: =AK51 -> 31 | AL52: =COUNTA(D52:AH52) -> 31 | AM52: =AK52-AL52 -> 0 | AN52: =AL52/AK52 -> 100%
B53: GH4
A54: 2019-05-01 | B54: Room 1 | C54: 1 double bed | D54: CC | E54: CC | F54: CC | G54: CC | H54: CC | I54: CC | J54: CC | K54: CC | L54: CC | M54: CC | N54: CC | O54: CC | P54: CC | Q54: CC | R54: CC | S54: CC | T54: CC | U54: CC | V54: CC | W54: CC | X54: CO | Y54: CO | AA54: JP | AB54: JP | AC54: JP | AE54: CC | AF54: CC | AG54: CC | AH54: CC | AI54: GH4 | AJ54: Room 1 | AK54: =AK50 -> 31 | AL54: =COUNTA(D54:AH54) -> 29 | AM54: =AK54-AL54 -> 2 | AN54: =AL54/AK54 -> 94%
A55: 2019-05-01 | B55: Room 2 | C55: 1 single bed | D55: JP | E55: JP | F55: JP | G55: JP | H55: JP | I55: JP | J55: JP | K55: JP | L55: JP | M55: JP | N55: JP | O55: JP | P55: JP | Q55: JP | R55: JP | S55: JV | T55: JV | U55: JV | V55: RD | W55: RD | X55: RD | Y55: RD | Z55: RD | AA55: RD | AB55: RD | AC55: RD | AD55: RD | AE55: RD | AF55: RD | AG55: RD | AH55: RD | AI55: GH4 | AJ55: Room 2 | AK55: =AK54 -> 31 | AL55: =COUNTA(D55:AH55) -> 31 | AM55: =AK55-AL55 -> 0 | AN55: =AL55/AK55 -> 100%
A56: 2019-05-01 | B56: Room 3 | C56: 1 single bed | D56: AB | E56: AB | F56: AB | G56: AB | H56: AB | I56: AB | J56: AB | K56: AB | L56: AB | M56: AB | N56: AB | O56: AB | P56: AB | Q56: AB | R56: AB | S56: AB | T56: AB | U56: AB | V56: AB | W56: AB | X56: AB | Y56: AB | Z56: AB | AA56: AB | AB56: AB | AC56: AB | AD56: AB | AE56: AB | AF56: AB | AG56: AB | AH56: AB | AI56: GH4 | AJ56: Room 3 | AK56: =AK55 -> 31 | AL56: =COUNTA(D56:AH56) -> 31 | AM56: =AK56-AL56 -> 0 | AN56: =AL56/AK56 -> 100%
B58: June | C58: 2019 | D58: S | E58: S | F58: M | G58: T | H58: W | I58: T | J58: F | K58: S | L58: S | M58: M | N58: T | O58: W | P58: T | Q58: F | R58: S | S58: S | T58: M | U58: T | V58: W | W58: T | X58: F | Y58: S | Z58: S | AA58: M | AB58: T | AC58: W | AD58: T | AE58: F | AF58: S | AG58: S | AO58: Comments
B59: GH1 | D59: 1 | E59: 2 | F59: 3 | G59: 4 | H59: 5 | I59: 6 | J59: 7 | K59: 8 | L59: 9 | M59: 10 | N59: 11 | O59: 12 | P59: 13 | Q59: 14 | R59: 15 | S59: 16 | T59: 17 | U59: 18 | V59: 19 | W59: 20 | X59: 21 | Y59: 22 | Z59: 23 | AA59: 24 | AB59: 25 | AC59: 26 | AD59: 27 | AE59: 28 | AF59: 29 | AG59: 30
A60: 2019-06-01 | B60: Room 1 | C60: 1 double bed | M60: JP | S60: GA | T60: GA | U60: GA | V60: GA | W60: GA | X60: GA | Y60: GA | Z60: GA | AA60: GA | AB60: GA | AC60: GA | AD60: GA | AE60: GA | AF60: GA | AG60: GA | AI60: GH1 | AJ60: Room 1 | AK60: =COUNTA(D59:AH59) -> 30 | AL60: =COUNTA(D60:AH60) -> 16 | AM60: =AK60-AL60 -> 14 | AN60: =AL60/AK60 -> 53%
A61: 2019-06-01 | B61: Room 2 | C61: 1 double bed | D61: ST | E61: ST | F61: ST | G61: ST | H61: ST | I61: ST | J61: ST | K61: ST | L61: ST | M61: ST | N61: ST | O61: ST | P61: ST | Q61: ST | R61: ST | S61: ST | T61: ST | U61: ST | V61: ST | W61: ST | X61: ST | Y61: ST | Z61: ST | AA61: ST | AB61: ST | AC61: ST | AD61: ST | AE61: ST | AF61: ST | AG61: ST | AI61: GH1 | AJ61: Room 2 | AK61: =AK60 -> 30 | AL61: =COUNTA(D61:AH61) -> 30 | AM61: =AK61-AL61 -> 0 | AN61: =AL61/AK61 -> 100%
A62: 2019-06-01 | B62: Room 3 | C62: 1 double bed | D62: OH | E62: OH | F62: OH | G62: OH | H62: OH | I62: OH | J62: OH | K62: OH | L62: OH | M62: OH | N62: OH | O62: OH | P62: OH | Q62: OH | R62: OH | S62: OH | T62: OH | U62: OH | V62: OH | W62: OH | X62: OH | Y62: OH | Z62: OH | AA62: OH | AB62: OH | AC62: OH | AD62: OH | AE62: OH | AF62: IA | AG62: IA | AI62: GH1 | AJ62: Room 3 | AK62: =AK61 -> 30 | AL62: =COUNTA(D62:AH62) -> 30 | AM62: =AK62-AL62 -> 0 | AN62: =AL62/AK62 -> 100% | AO62: CTC from
B63: GH4
A64: 2019-06-01 | B64: Room 1 | C64: 1 double bed | L64: IA | M64: IA | N64: IA | O64: IA | P64: IA | Q64: IA | R64: IA | S64: IA | T64: IA | U64: IA | V64: IA | W64: IA | X64: IA | Y64: IA | Z64: IA | AA64: IA | AB64: IA | AC64: IA | AD64: IA | AE64: IA | AF64: MM | AG64: MM | AI64: GH4 | AJ64: Room 1 | AK64: =AK60 -> 30 | AL64: =COUNTA(D64:AH64) -> 22 | AM64: =AK64-AL64 -> 8 | AN64: =AL64/AK64 -> 73% | AO64: Grants Manager is expected to arrive in June
A65: 2019-06-01 | B65: Room 2 | C65: 1 single bed | D65: AB | E65: AB | F65: AB | G65: AB | H65: AB | I65: AB | J65: AB | K65: AB | L65: AB | M65: AB | N65: AB | O65: AB | P65: AB | Q65: AB | R65: AB | S65: AB | T65: AB | U65: AB | V65: AB | W65: AB | X65: AB | Y65: AB | Z65: AB | AA65: AB | AB65: AB | AC65: AB | AD65: AB | AE65: AB | AF65: AB | AG65: AB | AI65: GH4 | AJ65: Room 2 | AK65: =AK64 -> 30 | AL65: =COUNTA(D65:AH65) -> 30 | AM65: =AK65-AL65 -> 0 | AN65: =AL65/AK65 -> 100% | AO65: JPP = Jairo PAIZANO POTOY
A66: 2019-06-01 | B66: Room 3 | C66: 1 single bed | D66: RD | E66: RD | F66: RD | G66: RD | H66: RD | I66: RD | J66: RD | K66: RD | L66: RD | M66: RD | N66: RD | O66: RD | P66: RD | Q66: RD | R66: RD | S66: RD | T66: RD | U66: RD | V66: RD | W66: RD | X66: RD | Y66: RD | Z66: RD | AA66: RD | AB66: RD | AC66: RD | AD66: RD | AE66: RD | AF66: RD | AG66: RD | AI66: GH4 | AJ66: Room 3 | AK66: =AK65 -> 30 | AL66: =COUNTA(D66:AH66) -> 30 | AM66: =AK66-AL66 -> 0 | AN66: =AL66/AK66 -> 100%
B68: July | C68: 2019 | D68: M | E68: T | F68: W | G68: T | H68: F | I68: S | J68: S | K68: M | L68: T | M68: W | N68: T | O68: F | P68: S | Q68: S | R68: M | S68: T | T68: W | U68: T | V68: F | W68: S | X68: S | Y68: M | Z68: T | AA68: W | AB68: T | AC68: F | AD68: S | AE68: S | AF68: M | AG68: T | AH68: W | AO68: Comments
B69: GH1 | D69: 1 | E69: 2 | F69: 3 | G69: 4 | H69: 5 | I69: 6 | J69: 7 | K69: 8 | L69: 9 | M69: 10 | N69: 11 | O69: 12 | P69: 13 | Q69: 14 | R69: 15 | S69: 16 | T69: 17 | U69: 18 | V69: 19 | W69: 20 | X69: 21 | Y69: 22 | Z69: 23 | AA69: 24 | AB69: 25 | AC69: 26 | AD69: 27 | AE69: 28 | AF69: 29 | AG69: 30 | AH69: 31
A70: 2019-07-01 | B70: Room 1 | C70: 1 double bed | D70: GA | E70: GA | F70: GA | G70: GA | H70: GA | I70: GA | J70: GA | K70: GA | L70: GA | M70: GA | N70: GA | O70: GA | P70: GA | Q70: GA | R70: GA | S70: GA | T70: GA | U70: GA | V70: GA | W70: GA | X70: GA | Y70: GA | Z70: GA | AA70: GA | AB70: GA | AC70: GA | AD70: GA | AE70: GA | AF70: GA | AG70: GA | AH70: GA | AI70: GH1 | AJ70: Room 1 | AK70: =COUNTA(D69:AH69) -> 31 | AL70: =COUNTA(D70:AH70) -> 31 | AM70: =AK70-AL70 -> 0 | AN70: =AL70/AK70 -> 100%
A71: 2019-07-01 | B71: Room 2 | C71: 1 double bed | D71: ST | E71: ST | F71: ST | G71: ST | H71: ST | I71: ST | J71: ST | K71: ST | L71: ST | M71: ST | N71: ST | O71: ST | P71: ST | Q71: ST | R71: ST | S71: ST | T71: ST | U71: ST | V71: ST | W71: ST | X71: ST | Y71: ST | Z71: ST | AA71: ST | AB71: ST | AC71: ST | AD71: ST | AE71: ST | AF71: ST | AG71: ST | AH71: ST | AI71: GH1 | AJ71: Room 2 | AK71: =AK70 -> 31 | AL71: =COUNTA(D71:AH71) -> 31 | AM71: =AK71-AL71 -> 0 | AN71: =AL71/AK71 -> 100%
A72: 2019-07-01 | B72: Room 3 | C72: 1 double bed | AC72: JP | AD72: JP | AI72: GH1 | AJ72: Room 3 | AK72: =AK71 -> 31 | AL72: =COUNTA(D72:AH72) -> 2 | AM72: =AK72-AL72 -> 29 | AN72: =AL72/AK72 -> 6%
B73: GH4
A74: 2019-07-01 | B74: Room 1 | C74: 1 double bed | M74: AG | N74: AG | O74: AG | P74: AG | Q74: AG | R74: AG | S74: AG | AC74: SJ | AD74: SJ | AE74: SJ | AH74: GL | AI74: GH4 | AJ74: Room 1 | AK74: =AK70 -> 31 | AL74: =COUNTA(D74:AH74) -> 11 | AM74: =AK74-AL74 -> 20 | AN74: =AL74/AK74 -> 35%
A75: 2019-07-01 | B75: Room 2 | C75: 1 single bed | D75: AB | E75: AB | F75: AB | G75: AB | H75: AB | I75: AB | J75: AB | K75: AB | L75: AB | M75: AB | N75: AB | O75: AB | P75: AB | Q75: AB | R75: AB | S75: AB | T75: AB | U75: AB | V75: AB | W75: AB | X75: AB | Y75: AB | Z75: AB | AA75: AB | AB75: AB | AC75: AB | AD75: AB | AE75: AB | AF75: AB | AG75: AB | AH75: AB | AI75: GH4 | AJ75: Room 2 | AK75: =AK74 -> 31 | AL75: =COUNTA(D75:AH75) -> 31 | AM75: =AK75-AL75 -> 0 | AN75: =AL75/AK75 -> 100%
A76: 2019-07-01 | B76: Room 3 | C76: 1 single bed | D76: RD | E76: RD | F76: RD | G76: RD | H76: RD | I76: RD | J76: RD | K76: RD | L76: RD | M76: RD | N76: RD | O76: RD | P76: RD | Q76: RD | R76: RD | S76: RD | T76: RD | U76: RD | V76: RD | W76: RD | X76: RD | Y76: RD | Z76: RD | AA76: RD | AB76: RD | AC76: RD | AD76: RD | AE76: RD | AF76: RD | AG76: RD | AH76: RD | AI76: GH4 | AJ76: Room 3 | AK76: =AK75 -> 31 | AL76: =COUNTA(D76:AH76) -> 31 | AM76: =AK76-AL76 -> 0 | AN76: =AL76/AK76 -> 100%
B78: Aug | C78: 2019 | D78: T | E78: F | F78: S | G78: S | H78: M | I78: T | J78: W | K78: T | L78: F | M78: S | N78: S | O78: M | P78: T | Q78: W | R78: T | S78: F | T78: S | U78: S | V78: M | W78: T | X78: W | Y78: T | Z78: F | AA78: S | AB78: S | AC78: M | AD78: T | AE78: W | AF78: T | AG78: F | AH78: S | AO78: Comments
B79: GH1 | D79: 1 | E79: 2 | F79: 3 | G79: 4 | H79: 5 | I79: 6 | J79: 7 | K79: 8 | L79: 9 | M79: 10 | N79: 11 | O79: 12 | P79: 13 | Q79: 14 | R79: 15 | S79: 16 | T79: 17 | U79: 18 | V79: 19 | W79: 20 | X79: 21 | Y79: 22 | Z79: 23 | AA79: 24 | AB79: 25 | AC79: 26 | AD79: 27 | AE79: 28 | AF79: 29 | AG79: 30 | AH79: 31
A80: 2019-08-01 | B80: Room 1 | C80: 1 double bed | D80: GA | E80: GA | F80: GA | G80: GA | H80: GA | I80: GA | J80: GA | K80: GA | L80: GA | M80: GA | N80: GA | O80: GA | P80: GA | Q80: GA | R80: GA | S80: AG | T80: AG | U80: AG | AB80: DG | AG80: DG | AH80: DG | AI80: GH1 | AJ80: Room 1 | AK80: =COUNTA(D79:AH79) -> 31 | AL80: =COUNTA(D80:AH80) -> 21 | AM80: =AK80-AL80 -> 10 | AN80: =AL80/AK80 -> 68%
A81: 2019-08-01 | B81: Room 2 | C81: 1 double bed | D81: ST | E81: ST | F81: ST | G81: ST | H81: ST | I81: ST | J81: ST | K81: ST | L81: ST | M81: ST | N81: ST | O81: ST | P81: ST | AB81: AC | AC81: AC | AD81: AC | AE81: AC | AF81: AC | AG81: AC | AH81: AC | AI81: GH1 | AJ81: Room 2 | AK81: =AK80 -> 31 | AL81: =COUNTA(D81:AH81) -> 20 | AM81: =AK81-AL81 -> 11 | AN81: =AL81/AK81 -> 65%
A82: 2019-08-01 | B82: Room 3 | C82: 1 double bed | I82: MP | J82: MP | K82: MP | L82: MP | M82: MP | N82: MP | O82: MP | P82: MP | Q82: MP | R82: MP | S82: MP | T82: MP | U82: MP | AI82: GH1 | AJ82: Room 3 | AK82: =AK81 -> 31 | AL82: =COUNTA(D82:AH82) -> 13 | AM82: =AK82-AL82 -> 18 | AN82: =AL82/AK82 -> 42%
B83: GH4
A84: 2019-08-01 | B84: Room 1 | C84: 1 double bed | D84: GL | E84: GL | F84: GL | G84: GL | H84: GL | I84: GL | J84: GL | K84: GL | L84: GL | M84: GL | N84: GL | O84: GL | P84: GL | Q84: GL | R84: GL | S84: GL | T84: GL | U84: GL | V84: GL | W84: GL | X84: GL | Y84: GL | Z84: GL | AA84: GL | AB84: GL | AC84: GL | AD84: GL | AE84: GL | AF84: GL | AG84: GL | AH84: GL | AI84: GH4 | AJ84: Room 1 | AK84: =AK80 -> 31 | AL84: =COUNTA(D84:AH84) -> 31 | AM84: =AK84-AL84 -> 0 | AN84: =AL84/AK84 -> 100%
A85: 2019-08-01 | B85: Room 2 | C85: 1 single bed | D85: AB | E85: AB | F85: AB | G85: AB | H85: AB | I85: AB | J85: AB | K85: AB | L85: AB | M85: AB | N85: AB | O85: AB | P85: AB | Q85: AB | R85: AB | S85: AB | T85: AB | U85: AB | V85: AB | W85: AB | X85: AB | Y85: AB | Z85: AB | AA85: AB | AB85: AB | AC85: AB | AD85: AB | AE85: AB | AF85: AB | AG85: AB | AH85: AB | AI85: GH4 | AJ85: Room 2 | AK85: =AK84 -> 31 | AL85: =COUNTA(D85:AH85) -> 31 | AM85: =AK85-AL85 -> 0 | AN85: =AL85/AK85 -> 100%
A86: 2019-08-01 | B86: Room 3 | C86: 1 single bed | D86: RD | E86: RD | F86: RD | G86: RD | H86: RD | I86: RD | J86: RD | K86: RD | L86: RD | M86: RD | N86: RD | O86: RD | P86: RD | Q86: RD | R86: RD | S86: RD | T86: RD | U86: RD | V86: RD | W86: RD | X86: RD | Y86: RD | Z86: RD | AA86: RD | AB86: RD | AC86: RD | AD86: RD | AE86: RD | AF86: RD | AG86: RD | AH86: RD | AI86: GH4 | AJ86: Room 3 | AK86: =AK85 -> 31 | AL86: =COUNTA(D86:AH86) -> 31 | AM86: =AK86-AL86 -> 0 | AN86: =AL86/AK86 -> 100% | AO86: Armando will stay in GH4 on 8-9/8/2019
B88: Sep | C88: 2019 | D88: S | E88: M | F88: T | G88: W | H88: T | I88: F | J88: S | K88: S | L88: M | M88: T | N88: W | O88: T | P88: F | Q88: S | R88: S | S88: M | T88: T | U88: W | V88: T | W88: F | X88: S | Y88: S | Z88: M | AA88: T | AB88: W | AC88: T | AD88: F | AE88: S | AF88: S | AG88: M | AO88: Comments
B89: GH1 | D89: 1 | E89: 2 | F89: 3 | G89: 4 | H89: 5 | I89: 6 | J89: 7 | K89: 8 | L89: 9 | M89: 10 | N89: 11 | O89: 12 | P89: 13 | Q89: 14 | R89: 15 | S89: 16 | T89: 17 | U89: 18 | V89: 19 | W89: 20 | X89: 21 | Y89: 22 | Z89: 23 | AA89: 24 | AB89: 25 | AC89: 26 | AD89: 27 | AE89: 28 | AF89: 29 | AG89: 30
A90: 2019-09-01 | B90: Room 1 | C90: 1 double bed | O90: SJ | P90: SJ | Q90: SJ | R90: SJ | S90: SJ | T90: SJ | Z90: AG | AI90: GH1 | AJ90: Room 1 | AK90: =COUNTA(D89:AH89) -> 30 | AL90: =COUNTA(D90:AH90) -> 7 | AM90: =AK90-AL90 -> 23 | AN90: =AL90/AK90 -> 23%
A91: 2019-09-01 | B91: Room 2 | C91: 1 double bed | D91: AC | E91: AC | F91: AC | G91: AC | H91: AC | I91: AC | J91: AC | K91: AC | L91: AC | M91: AC | N91: AC | O91: AC | P91: AC | Q91: AC | R91: AC | S91: AC | T91: AC | U91: AC | V91: AC | W91: AC | X91: AC | Y91: AC | AI91: GH1 | AJ91: Room 2 | AK91: =AK90 -> 30 | AL91: =COUNTA(D91:AH91) -> 22 | AM91: =AK91-AL91 -> 8 | AN91: =AL91/AK91 -> 73%
A92: 2019-09-01 | B92: Room 3 | C92: 1 double bed | H92: MP | I92: MP | AI92: GH1 | AJ92: Room 3 | AK92: =AK91 -> 30 | AL92: =COUNTA(D92:AH92) -> 2 | AM92: =AK92-AL92 -> 28 | AN92: =AL92/AK92 -> 7%
B93: GH4
A94: 2019-09-01 | B94: Room 1 | C94: 1 double bed | D94: GL | E94: GL | F94: GL | G94: GL | H94: GL | I94: GL | J94: GL | K94: GL | L94: GL | M94: GL | N94: GL | O94: GL | P94: GL | Q94: GL | R94: GL | S94: GL | T94: GL | U94: GL | V94: GL | W94: GL | X94: GL | Y94: GL | Z94: GL | AA94: GL | AB94: GL | AC94: GL | AD94: GL | AE94: GL | AF94: GL | AG94: GL | AI94: GH4 | AJ94: Room 1 | AK94: =AK90 -> 30 | AL94: =COUNTA(D94:AH94) -> 30 | AM94: =AK94-AL94 -> 0 | AN94: =AL94/AK94 -> 100%
A95: 2019-09-01 | B95: Room 2 | C95: 1 single bed | D95: AB | E95: AB | F95: AB | G95: AB | H95: AB | I95: AB | J95: AB | K95: AB | L95: AB | M95: AB | N95: AB | O95: AB | P95: AB | Q95: AB | R95: AB | S95: AB | T95: AB | U95: AB | V95: AB | W95: AB | X95: AB | Y95: AB | Z95: AB | AA95: AB | AB95: AB | AC95: AB | AD95: AB | AE95: AB | AF95: AB | AG95: AB | AI95: GH4 | AJ95: Room 2 | AK95: =AK94 -> 30 | AL95: =COUNTA(D95:AH95) -> 30 | AM95: =AK95-AL95 -> 0 | AN95: =AL95/AK95 -> 100%
A96: 2019-09-01 | B96: Room 3 | C96: 1 single bed | D96: RD | E96: RD | F96: RD | G96: RD | H96: RD | I96: RD | J96: RD | K96: RD | L96: RD | M96: RD | N96: RD | O96: RD | P96: RD | Q96: RD | R96: RD | S96: RD | T96: RD | U96: RD | V96: RD | W96: RD | X96: RD | Y96: RD | Z96: RD | AA96: RD | AB96: RD | AC96: RD | AD96: RD | AE96: RD | AF96: RD | AG96: RD | AI96: GH4 | AJ96: Room 3 | AK96: =AK95 -> 30 | AL96: =COUNTA(D96:AH96) -> 30 | AM96: =AK96-AL96 -> 0 | AN96: =AL96/AK96 -> 100%
B98: Oct | C98: 2019 | D98: W | E98: T | F98: F | G98: S | H98: S | I98: M | J98: T | K98: W | L98: T | M98: F | N98: S | O98: S | P98: M | Q98: T | R98: W | S98: T | T98: F | U98: S | V98: S | W98: M | X98: T | Y98: W | Z98: T | AA98: F | AB98: S | AC98: S | AD98: W | AE98: M | AF98: T | AG98: W | AH98: T | AO98: Comments
B99: GH1 | D99: 1 | E99: 2 | F99: 3 | G99: 4 | H99: 5 | I99: 6 | J99: 7 | K99: 8 | L99: 9 | M99: 10 | N99: 11 | O99: 12 | P99: 13 | Q99: 14 | R99: 15 | S99: 16 | T99: 17 | U99: 18 | V99: 19 | W99: 20 | X99: 21 | Y99: 22 | Z99: 23 | AA99: 24 | AB99: 25 | AC99: 26 | AD99: 27 | AE99: 28 | AF99: 29 | AG99: 30 | AH99: 31
A100: 2019-10-01 | B100: Room 1 | C100: 1 double bed | F100: SJ | G100: SJ | H100: SJ | I100: SJ | N100: DS | O100: DS | P100: DS | Q100: DS | R100: DS | S100: DS | T100: DS | U100: DS | V100: DS | W100: DS | X100: DS | Y100: DS | Z100: DS | AA100: DS | AB100: DS | AC100: DS | AD100: DS | AE100: DS | AF100: DS | AG100: DS | AH100: DS | AI100: GH1 | AJ100: Room 1 | AK100: =COUNTA(D99:AH99) -> 31 | AL100: =COUNTA(D100:AH100) -> 25 | AM100: =AK100-AL100 -> 6 | AN100: =AL100/AK100 -> 81%
A101: 2019-10-01 | B101: Room 2 | C101: 1 double bed | T101: MB | U101: MB | V101: MB | W101: MB | X101: MB | Y101: MB | Z101: MB | AA101: MB | AB101: MB | AC101: MB | AD101: MB | AE101: MB | AF101: MB | AG101: MB | AH101: MB | AI101: GH1 | AJ101: Room 2 | AK101: =AK100 -> 31 | AL101: =COUNTA(D101:AH101) -> 15 | AM101: =AK101-AL101 -> 16 | AN101: =AL101/AK101 -> 48%
A102: 2019-10-01 | B102: Room 3 | C102: 1 double bed | U102: MP | V102: MP | X102: AM | Y102: AM | Z102: AM | AA102: AM | AB102: AM | AC102: AM | AD102: AM | AE102: AM | AF102: AM | AG102: AM | AH102: AM | AI102: GH1 | AJ102: Room 3 | AK102: =AK101 -> 31 | AL102: =COUNTA(D102:AH102) -> 13 | AM102: =AK102-AL102 -> 18 | AN102: =AL102/AK102 -> 42%
B103: GH4
A104: 2019-10-01 | B104: Room 1 | C104: 1 double bed | D104: GL | E104: GL | F104: GL | G104: GL | H104: GL | I104: GL | J104: GL | K104: GL | L104: GL | M104: GL | N104: GL | O104: GL | P104: GL | Q104: GL | R104: GL | S104: GL | T104: GL | U104: GL | V104: GL | W104: GL | X104: GL | Y104: GL | Z104: GL | AA104: GL | AB104: GL | AC104: GL | AD104: GL | AE104: GL | AF104: GL | AG104: GL | AH104: GL | AI104: GH4 | AJ104: Room 1 | AK104: =AK100 -> 31 | AL104: =COUNTA(D104:AH104) -> 31 | AM104: =AK104-AL104 -> 0 | AN104: =AL104/AK104 -> 100%
A105: 2019-10-01 | B105: Room 2 | C105: 1 single bed | D105: AB | E105: AB | F105: AB | G105: AB | H105: AB | I105: AB | J105: AB | K105: AB | L105: AB | M105: AB | N105: AB | O105: AB | P105: AB | Q105: AB | R105: AB | S105: AB | T105: AB | U105: AB | V105: AB | W105: AB | X105: AB | Y105: AB | Z105: AB | AA105: AB | AB105: AB | AC105: AB | AD105: AB | AE105: AB | AF105: AB | AG105: AB | AH105: AB | AI105: GH4 | AJ105: Room 2 | AK105: =AK104 -> 31 | AL105: =COUNTA(D105:AH105) -> 31 | AM105: =AK105-AL105 -> 0 | AN105: =AL105/AK105 -> 100%
A106: 2019-10-01 | B106: Room 3 | C106: 1 single bed | D106: RD | E106: RD | F106: RD | G106: RD | H106: RD | I106: RD | J106: RD | K106: RD | L106: RD | M106: RD | N106: RD | O106: RD | P106: RD | Q106: RD | R106: RD | S106: RD | T106: RD | U106: RD | V106: RD | W106: RD | X106: RD | Y106: RD | Z106: RD | AA106: RD | AB106: RD | AC106: RD | AD106: RD | AE106: RD | AF106: RD | AG106: RD | AH106: RD | AI106: GH4 | AJ106: Room 3 | AK106: =AK105 -> 31 | AL106: =COUNTA(D106:AH106) -> 31 | AM106: =AK106-AL106 -> 0 | AN106: =AL106/AK106 -> 100%
B108: Nov | C108: 2019 | D108: F | E108: S | F108: S | G108: M | H108: T | I108: W | J108: T | K108: F | L108: S | M108: S | N108: M | O108: T | P108: W | Q108: T | R108: F | S108: S | T108: S | U108: M | V108: T | W108: W | X108: T | Y108: F | Z108: S | AA108: S | AB108: M | AC108: T | AD108: W | AE108: T | AF108: F | AG108: S | AO108: Comments
B109: GH1 | D109: 1 | E109: 2 | F109: 3 | G109: 4 | H109: 5 | I109: 6 | J109: 7 | K109: 8 | L109: 9 | M109: 10 | N109: 11 | O109: 12 | P109: 13 | Q109: 14 | R109: 15 | S109: 16 | T109: 17 | U109: 18 | V109: 19 | W109: 20 | X109: 21 | Y109: 22 | Z109: 23 | AA109: 24 | AB109: 25 | AC109: 26 | AD109: 27 | AE109: 28 | AF109: 29 | AG109: 30
A110: 2019-11-01 | B110: Room 1 | C110: 1 double bed | D110: DS | E110: DS | F110: DS | G110: DS | H110: DS | I110: DS | J110: DS | K110: DS | L110: DS | M110: DS | N110: DS | O110: DS | P110: DS | Q110: DS | R110: DS | S110: DS | T110: DS | U110: DS | V110: DS | W110: DS | X110: DS | Y110: DS | Z110: DS | AA110: DS | AB110: DS | AC110: DS | AD110: DS | AE110: DS | AF110: DS | AG110: DS | AI110: GH1 | AJ110: Room 1 | AK110: =COUNTA(D109:AH109) -> 30 | AL110: =COUNTA(D110:AH110) -> 30 | AM110: =AK110-AL110 -> 0 | AN110: =AL110/AK110 -> 100%
A111: 2019-11-01 | B111: Room 2 | C111: 1 double bed | D111: MB | E111: MB | F111: MB | G111: MB | H111: MB | I111: MB | J111: MB | K111: MB | L111: MB | M111: MB | N111: MB | O111: MB | P111: MB | Q111: MB | R111: MB | S111: MB | T111: MB | U111: MB | V111: MB | W111: MB | X111: MB | Y111: MB | Z111: MB | AA111: MB | AB111: MB | AC111: MB | AD111: MB | AE111: MB | AF111: MB | AG111: MB | AI111: GH1 | AJ111: Room 2 | AK111: =AK110 -> 30 | AL111: =COUNTA(D111:AH111) -> 30 | AM111: =AK111-AL111 -> 0 | AN111: =AL111/AK111 -> 100%
A112: 2019-11-01 | B112: Room 3 | C112: 1 double bed | D112: AM | E112: AM | F112: AM | G112: AM | H112: SJ | I112: SJ | J112: SJ | AE112: AM | AF112: AM | AG112: AM | AI112: GH1 | AJ112: Room 3 | AK112: =AK111 -> 30 | AL112: =COUNTA(D112:AH112) -> 10 | AM112: =AK112-AL112 -> 20 | AN112: =AL112/AK112 -> 33%
B113: GH4
A114: 2019-11-01 | B114: Room 1 | C114: 1 double bed | D114: GL | E114: GL | F114: GL | G114: GL | H114: GL | I114: GL | J114: GL | K114: GL | L114: GL | M114: GL | N114: GL | O114: GL | P114: GL | Q114: GL | R114: GL | S114: GL | T114: GL | U114: GL | V114: GL | W114: GL | X114: GL | Y114: GL | Z114: GL | AA114: GL | AB114: GL | AC114: GL | AD114: GL | AE114: GL | AF114: GL | AG114: GL | AI114: GH4 | AJ114: Room 1 | AK114: =AK110 -> 30 | AL114: =COUNTA(D114:AH114) -> 30 | AM114: =AK114-AL114 -> 0 | AN114: =AL114/AK114 -> 100%
A115: 2019-11-01 | B115: Room 2 | C115: 1 single bed | D115: AB | E115: AB | F115: AB | G115: AB | H115: AB | I115: AB | J115: AB | K115: AB | L115: AB | M115: AB | N115: AB | O115: AB | P115: AB | Q115: AB | R115: AB | S115: AB | T115: AB | U115: AB | V115: AB | W115: AB | X115: AB | Y115: AB | Z115: AB | AA115: AB | AB115: AB | AC115: AB | AD115: AB | AE115: AG | AF115: AG | AG115: AG | AI115: GH4 | AJ115: Room 2 | AK115: =AK114 -> 30 | AL115: =COUNTA(D115:AH115) -> 30 | AM115: =AK115-AL115 -> 0 | AN115: =AL115/AK115 -> 100%
A116: 2019-11-01 | B116: Room 3 | C116: 1 single bed | D116: RD | E116: RD | F116: RD | G116: RD | H116: RD | I116: RD | J116: RD | K116: RD | L116: RD | M116: RD | N116: RD | O116: RD | P116: RD | Q116: RD | R116: RD | S116: RD | T116: RD | U116: RD | V116: RD | W116: RD | X116: RD | Y116: RD | Z116: RD | AA116: RD | AB116: RD | AC116: RD | AD116: RD | AE116: RD | AF116: RD | AG116: RD | AI116: GH4 | AJ116: Room 3 | AK116: =AK115 -> 30 | AL116: =COUNTA(D116:AH116) -> 30 | AM116: =AK116-AL116 -> 0 | AN116: =AL116/AK116 -> 100%
B118: Dec | C118: 2019 | D118: S | E118: M | F118: T | G118: W | H118: T | I118: F | J118: S | K118: S | L118: M | M118: T | N118: W | O118: T | P118: F | Q118: S | R118: S | S118: M | T118: T | U118: W | V118: T | W118: F | X118: S | Y118: S | Z118: M | AA118: T | AB118: W | AC118: T | AD118: F | AE118: S | AF118: S | AG118: M | AH118: T | AO118: Comments
B119: GH1 | D119: 1 | E119: 2 | F119: 3 | G119: 4 | H119: 5 | I119: 6 | J119: 7 | K119: 8 | L119: 9 | M119: 10 | N119: 11 | O119: 12 | P119: 13 | Q119: 14 | R119: 15 | S119: 16 | T119: 17 | U119: 18 | V119: 19 | W119: 20 | X119: 21 | Y119: 22 | Z119: 23 | AA119: 24 | AB119: 25 | AC119: 26 | AD119: 27 | AE119: 28 | AF119: 29 | AG119: 30 | AH119: 31
A120: 2019-12-01 | B120: Room 1 | C120: 1 double bed | D120: DS | E120: DS | F120: DS | G120: DS | H120: DS | I120: DS | J120: DS | K120: DS | L120: DS | M120: DS | N120: DS | O120: DS | P120: DS | Q120: DS | R120: DS | S120: DS | T120: DS | U120: DS | V120: DS | W120: DS | X120: DS | Y120: DS | Z120: DS | AA120: DS | AB120: DS | AC120: DS | AD120: DS | AE120: DS | AF120: DS | AG120: DS | AH120: DS | AI120: GH1 | AJ120: Room 1 | AK120: =COUNTA(D119:AH119) -> 31 | AL120: =COUNTA(D120:AH120) -> 31 | AM120: =AK120-AL120 -> 0 | AN120: =AL120/AK120 -> 100%
A121: 2019-12-01 | B121: Room 2 | C121: 1 double bed | D121: MB | E121: MB | F121: MB | G121: MB | H121: MB | I121: MB | J121: MB | K121: MB | L121: MB | M121: MB | N121: MB | O121: MB | P121: MB | Q121: MB | R121: MB | S121: MB | T121: MB | U121: MB | V121: MB | W121: MB | X121: MB | Y121: MB | Z121: MB | AA121: MB | AB121: MB | AC121: MB | AD121: MB | AE121: MB | AF121: MB | AG121: MB | AH121: MB | AI121: GH1 | AJ121: Room 2 | AK121: =AK120 -> 31 | AL121: =COUNTA(D121:AH121) -> 31 | AM121: =AK121-AL121 -> 0 | AN121: =AL121/AK121 -> 100%
A122: 2019-12-01 | B122: Room 3 | C122: 1 double bed | G122: SJ | H122: SJ | I122: SJ | J122: SJ | K122: SJ | L122: SJ | W122: SJ | AI122: GH1 | AJ122: Room 3 | AK122: =AK121 -> 31 | AL122: =COUNTA(D122:AH122) -> 7 | AM122: =AK122-AL122 -> 24 | AN122: =AL122/AK122 -> 23%
B123: GH4
A124: 2019-12-01 | B124: Room 1 | C124: 1 double bed | D124: GL | E124: GL | F124: GL | G124: GL | H124: GL | I124: GL | J124: GL | K124: GL | L124: GL | M124: GL | N124: GL | O124: GL | P124: GL | Q124: GL | R124: GL | S124: GL | T124: GL | U124: GL | V124: GL | W124: GL | X124: GL | Y124: GL | Z124: GL | AA124: GL | AB124: GL | AC124: GL | AD124: GL | AE124: GL | AF124: GL | AG124: GL | AH124: GL | AI124: GH4 | AJ124: Room 1 | AK124: =AK120 -> 31 | AL124: =COUNTA(D124:AH124) -> 31 | AM124: =AK124-AL124 -> 0 | AN124: =AL124/AK124 -> 100%
A125: 2019-12-01 | B125: Room 2 | C125: 1 single bed | D125: AB | E125: AB | F125: AB | G125: AB | H125: AB | I125: AB | J125: AB | K125: AB | L125: AB | M125: AB | N125: AB | O125: AB | P125: AB | Q125: AB | R125: AB | S125: AB | T125: AB | U125: AB | V125: AB | W125: AB | AA125: AG | AB125: AG | AC125: AG | AI125: GH4 | AJ125: Room 2 | AK125: =AK124 -> 31 | AL125: =COUNTA(D125:AH125) -> 23 | AM125: =AK125-AL125 -> 8 | AN125: =AL125/AK125 -> 74%
A126: 2019-12-01 | B126: Room 3 | C126: 1 single bed | D126: RD | E126: RD | F126: RD | G126: RD | H126: RD | I126: RD | J126: RD | K126: RD | L126: RD | M126: RD | N126: RD | O126: RD | P126: RD | Q126: RD | R126: RD | S126: RD | T126: RD | U126: RD | V126: RD | W126: RD | AI126: GH4 | AJ126: Room 3 | AK126: =AK125 -> 31 | AL126: =COUNTA(D126:AH126) -> 20 | AM126: =AK126-AL126 -> 11 | AN126: =AL126/AK126 -> 65%
AI127: Room | AK127: Possible Days | AL127: Busy Days | AM127: Free Days | AN127: Occupation Rate | AO127: Comments
B128: Jan | C128: 2020 | D128: W | E128: T | F128: F | G128: S | H128: S | I128: M | J128: T | K128: W | L128: T | M128: F | N128: S | O128: S | P128: M | Q128: T | R128: W | S128: T | T128: F | U128: S | V128: S | W128: M | X128: T | Y128: W | Z128: T | AA128: F | AB128: S | AC128: S | AD128: M | AE128: T | AF128: W | AG128: T | AH128: F | AO128: Comments
B129: GH1 | D129: 1 | E129: 2 | F129: 3 | G129: 4 | H129: 5 | I129: 6 | J129: 7 | K129: 8 | L129: 9 | M129: 10 | N129: 11 | O129: 12 | P129: 13 | Q129: 14 | R129: 15 | S129: 16 | T129: 17 | U129: 18 | V129: 19 | W129: 20 | X129: 21 | Y129: 22 | Z129: 23 | AA129: 24 | AB129: 25 | AC129: 26 | AD129: 27 | AE129: 28 | AF129: 29 | AG129: 30 | AH129: 31
A130: 2020-01-01 | B130: Room 1 | C130: 1 double bed | H130: SJ | I130: SJ | J130: SJ | K130: SJ | S130: GL | T130: GL | U130: GL | V130: GL | W130: GL | X130: GL | Y130: GL | Z130: GL | AA130: GL | AB130: GL | AC130: GL | AD130: GL | AE130: GL | AF130: GL | AG130: GL | AH130: GL | AI130: GH1 | AJ130: Room 1 | AK130: =COUNTA(D129:AH129) -> 31 | AL130: =COUNTA(D130:AH130) -> 20 | AM130: =AK130-AL130 -> 11 | AN130: =AL130/AK130 -> 65%
A131: 2020-01-01 | B131: Room 2 | C131: 1 double bed | D131: MB | E131: MB | F131: MB | G131: MB | H131: MB | I131: MB | J131: MB | K131: MB | L131: MB | M131: MB | N131: MB | O131: MB | P131: MB | Q131: MB | R131: MB | S131: MB | T131: MB | U131: MB | V131: MB | W131: MB | X131: MB | Y131: MB | Z131: MB | AA131: MB | AB131: MB | AC131: MB | AD131: MB | AE131: MB | AF131: MB | AG131: MB | AH131: MB | AI131: GH1 | AJ131: Room 2 | AK131: =AK130 -> 31 | AL131: =COUNTA(D131:AH131) -> 31 | AM131: =AK131-AL131 -> 0 | AN131: =AL131/AK131 -> 100%
A132: 2020-01-01 | B132: Room 3 | C132: 1 double bed | K132: OF | L132: OF | M132: OF | N132: OF | O132: OF | P132: OF | Q132: OF | R132: OF | AF132: SJ | AG132: SJ | AH132: SJ | AI132: GH1 | AJ132: Room 3 | AK132: =AK131 -> 31 | AL132: =COUNTA(D132:AH132) -> 11 | AM132: =AK132-AL132 -> 20 | AN132: =AL132/AK132 -> 35%
B133: GH4
A134: 2020-01-01 | B134: Room 1 | C134: 1 double bed | S134: AG | T134: AG | U134: AG | V134: AG | W134: AG | X134: AG | Y134: AG | AD134: PS | AE134: PS | AF134: PS | AG134: PS | AH134: PS | AI134: GH4 | AJ134: Room 1 | AK134: =AK130 -> 31 | AL134: =COUNTA(D134:AH134) -> 12 | AM134: =AK134-AL134 -> 19 | AN134: =AL134/AK134 -> 39% | AO134: Paula Sanchez
A135: 2020-01-01 | B135: Room 2 | C135: 1 single bed | K135: AB | L135: AB | M135: AB | N135: AB | O135: AB | P135: AB | Q135: AB | R135: AB | S135: AB | T135: AB | U135: AB | V135: AB | W135: AB | X135: AB | Y135: AB | Z135: AB | AA135: AB | AB135: AB | AC135: AB | AD135: AB | AE135: AB | AF135: AB | AG135: AB | AH135: AB | AI135: GH4 | AJ135: Room 2 | AK135: =AK134 -> 31 | AL135: =COUNTA(D135:AH135) -> 24 | AM135: =AK135-AL135 -> 7 | AN135: =AL135/AK135 -> 77%
A136: 2020-01-01 | B136: Room 3 | C136: 1 single bed | K136: RD | L136: RD | M136: RD | N136: RD | O136: RD | P136: RD | Q136: RD | R136: RD | S136: RD | T136: RD | U136: RD | V136: RD | W136: RD | X136: RD | Y136: RD | Z136: RD | AA136: RD | AB136: RD | AC136: RD | AD136: RD | AE136: RD | AF136: RD | AG136: RD | AH136: RD | AI136: GH4 | AJ136: Room 3 | AK136: =AK135 -> 31 | AL136: =COUNTA(D136:AH136) -> 24 | AM136: =AK136-AL136 -> 7 | AN136: =AL136/AK136 -> 77%
B138: Feb | C138: 2020 | D138: S | E138: S | F138: M | G138: T | H138: W | I138: T | J138: F | K138: S | L138: S | M138: M | N138: T | O138: W | P138: T | Q138: F | R138: S | S138: S | T138: M | U138: T | V138: W | W138: T | X138: F | Y138: S | Z138: S | AA138: M | AB138: T | AC138: W | AD138: T | AE138: F | AF138: S | AO138: Comments
B139: GH1 | D139: 1 | E139: 2 | F139: 3 | G139: 4 | H139: 5 | I139: 6 | J139: 7 | K139: 8 | L139: 9 | M139: 10 | N139: 11 | O139: 12 | P139: 13 | Q139: 14 | R139: 15 | S139: 16 | T139: 17 | U139: 18 | V139: 19 | W139: 20 | X139: 21 | Y139: 22 | Z139: 23 | AA139: 24 | AB139: 25 | AC139: 26 | AD139: 27 | AE139: 28 | AF139: 29
A140: 2020-02-01 | B140: Room 1 | C140: 1 double bed | D140: GL | E140: GL | F140: GL | G140: GL | H140: GL | I140: GL | J140: GL | K140: GL | L140: GL | M140: GL | N140: GL | O140: GL | P140: GL | Q140: GL | R140: GL | S140: GL | T140: GL | U140: GL | V140: GL | W140: GL | X140: GL | Y140: GL | Z140: GL | AA140: GL | AB140: GL | AC140: GL | AD140: GL | AE140: GL | AF140: GL | AI140: GH1 | AJ140: Room 1 | AK140: =COUNTA(D139:AH139) -> 29 | AL140: =COUNTA(D140:AH140) -> 29 | AM140: =AK140-AL140 -> 0 | AN140: =AL140/AK140 -> 100%
A141: 2020-02-01 | B141: Room 2 | C141: 1 double bed | D141: MB | E141: MB | F141: MB | G141: MB | H141: MB | I141: MB | J141: MB | K141: MB | L141: MB | M141: MB | N141: MB | O141: MB | P141: MB | Q141: MB | R141: MB | S141: MB | T141: MB | U141: MB | V141: MB | W141: MB | X141: MB | AE141: AG | AF141: AG | AI141: GH1 | AJ141: Room 2 | AK141: =AK140 -> 29 | AL141: =COUNTA(D141:AH141) -> 23 | AM141: =AK141-AL141 -> 6 | AN141: =AL141/AK141 -> 79% | AO141: Marion on holidays from 25th to 17th of March
A142: 2020-02-01 | B142: Room 3 | C142: 1 double bed | D142: SJ | E142: SJ | F142: SJ | G142: SJ | I142: OF | J142: OF | K142: OF | L142: OF | M142: OF | AC142: OF | AD142: OF | AE142: OF | AF142: OF | AI142: GH1 | AJ142: Room 3 | AK142: =AK141 -> 29 | AL142: =COUNTA(D142:AH142) -> 13 | AM142: =AK142-AL142 -> 16 | AN142: =AL142/AK142 -> 45%
B143: GH4
A144: 2020-02-01 | B144: Room 1 | C144: 1 double bed | D144: PS | H144: LS | I144: LS | J144: LS | K144: LS | L144: LS | M144: LS | N144: LS | O144: LS | P144: LS | AI144: GH4 | AJ144: Room 1 | AK144: =AK140 -> 29 | AL144: =COUNTA(D144:AH144) -> 10 | AM144: =AK144-AL144 -> 19 | AN144: =AL144/AK144 -> 34% | AO144: 29th to 4th March: 4 people Rachele family
A145: 2020-02-01 | B145: Room 2 | C145: 1 single bed | D145: AB | E145: AB | F145: AB | G145: AB | H145: AB | I145: AB | J145: AB | K145: AB | L145: AB | M145: GM | X145: GM | Y145: GM | AD145: GM | AE145: GM | AF145: GM | AI145: GH4 | AJ145: Room 2 | AK145: =AK144 -> 29 | AL145: =COUNTA(D145:AH145) -> 15 | AM145: =AK145-AL145 -> 14 | AN145: =AL145/AK145 -> 52% | AO145: Armando on a mattress on 6th and 7th
A146: 2020-02-01 | B146: Room 3 | C146: 1 single bed | D146: RD | E146: RD | F146: RD | G146: RD | H146: RD | I146: RD | J146: RD | K146: RD | L146: RD | M146: RD | N146: RD | O146: RD | P146: RD | Q146: RD | R146: RD | S146: RD | T146: RD | U146: RD | V146: RD | W146: RD | X146: RD | Y146: RD | Z146: RD | AA146: RD | AB146: RD | AC146: RD | AD146: RD | AE146: RD | AF146: RD | AI146: GH4 | AJ146: Room 3 | AK146: =AK145 -> 29 | AL146: =COUNTA(D146:AH146) -> 29 | AM146: =AK146-AL146 -> 0 | AN146: =AL146/AK146 -> 100%
B148: Mar | C148: 2020 | D148: S | E148: M | F148: T | G148: W | H148: T | I148: F | J148: S | K148: S | L148: M | M148: T | N148: W | O148: T | P148: F | Q148: S | R148: S | S148: M | T148: T | U148: W | V148: T | W148: F | X148: S | Y148: S | Z148: M | AA148: T | AB148: W | AC148: T | AD148: F | AE148: S | AF148: S | AG148: M | AH148: T | AO148: Comments
B149: GH1 | D149: 1 | E149: 2 | F149: 3 | G149: 4 | H149: 5 | I149: 6 | J149: 7 | K149: 8 | L149: 9 | M149: 10 | N149: 11 | O149: 12 | P149: 13 | Q149: 14 | R149: 15 | S149: 16 | T149: 17 | U149: 18 | V149: 19 | W149: 20 | X149: 21 | Y149: 22 | Z149: 23 | AA149: 24 | AB149: 25 | AC149: 26 | AD149: 27 | AE149: 28 | AF149: 29 | AG149: 30 | AH149: 31
A150: 2020-03-01 | B150: Room 1 | C150: 1 double bed | D150: GL | E150: GL | F150: GL | G150: GL | H150: GL | I150: GL | J150: GL | K150: GL | L150: GL | M150: GL | N150: GL | O150: GL | P150: GL | Q150: GL | R150: GL | S150: GL | T150: GL | U150: GL | V150: GL | W150: GL | X150: GL | Y150: GL | Z150: GL | AA150: GL | AB150: GL | AC150: GL | AD150: GL | AE150: GL | AF150: GL | AG150: GL | AH150: GL | AI150: GH1 | AJ150: Room 1 | AK150: =COUNTA(D149:AH149) -> 31 | AL150: =COUNTA(D150:AH150) -> 31 | AM150: =AK150-AL150 -> 0 | AN150: =AL150/AK150 -> 100%
A151: 2020-03-01 | B151: Room 2 | C151: 1 double bed | AI151: GH1 | AJ151: Room 2 | AK151: =AK150 -> 31 | AL151: =COUNTA(D151:AH151) -> 0 | AM151: =AK151-AL151 -> 31 | AN151: =AL151/AK151 -> 0%
A152: 2020-03-01 | B152: Room 3 | C152: 1 double bed | F152: SJ | AA152: OF | AB152: OF | AC152: OF | AD152: OF | AE152: OF | AF152: OF | AG152: OF | AH152: OF | AI152: GH1 | AJ152: Room 3 | AK152: =AK151 -> 31 | AL152: =COUNTA(D152:AH152) -> 9 | AM152: =AK152-AL152 -> 22 | AN152: =AL152/AK152 -> 29%
B153: GH4
A154: 2020-03-01 | B154: Room 1 | C154: 1 double bed | G154: WA | H154: WA | AA154: LS | AB154: LS | AC154: LS | AD154: LS | AE154: LS | AF154: LS | AG154: LS | AH154: LS | AI154: GH4 | AJ154: Room 1 | AK154: =AK150 -> 31 | AL154: =COUNTA(D154:AH154) -> 10 | AM154: =AK154-AL154 -> 21 | AN154: =AL154/AK154 -> 32%
A155: 2020-03-01 | B155: Room 2 | C155: 1 single bed | AI155: GH4 | AJ155: Room 2 | AK155: =AK154 -> 31 | AL155: =COUNTA(D155:AH155) -> 0 | AM155: =AK155-AL155 -> 31 | AN155: =AL155/AK155 -> 0%
A156: 2020-03-01 | B156: Room 3 | C156: 1 single bed | D156: RD | E156: RD | F156: RD | G156: RD | H156: RD | I156: RD | J156: RD | K156: RD | L156: RD | M156: RD | N156: RD | O156: RD | P156: RD | Q156: RD | R156: RD | S156: RD | T156: RD | U156: RD | V156: RD | W156: RD | X156: RD | Y156: RD | Z156: RD | AA156: RD | AB156: RD | AC156: RD | AD156: RD | AE156: RD | AF156: RD | AG156: RD | AH156: RD | AI156: GH4 | AJ156: Room 3 | AK156: =AK155 -> 31 | AL156: =COUNTA(D156:AH156) -> 31 | AM156: =AK156-AL156 -> 0 | AN156: =AL156/AK156 -> 100%
B158: April | C158: 2020 | D158: W | E158: T | F158: F | G158: S | H158: S | I158: M | J158: T | K158: W | L158: T | M158: F | N158: S | O158: S | P158: M | Q158: T | R158: W | S158: T | T158: F | U158: S | V158: S | W158: M | X158: T | Y158: W | Z158: T | AA158: F | AB158: S | AC158: S | AD158: M | AE158: T | AF158: W | AG158: T | AO158: Comments
B159: GH1 | D159: 1 | E159: 2 | F159: 3 | G159: 4 | H159: 5 | I159: 6 | J159: 7 | K159: 8 | L159: 9 | M159: 10 | N159: 11 | O159: 12 | P159: 13 | Q159: 14 | R159: 15 | S159: 16 | T159: 17 | U159: 18 | V159: 19 | W159: 20 | X159: 21 | Y159: 22 | Z159: 23 | AA159: 24 | AB159: 25 | AC159: 26 | AD159: 27 | AE159: 28 | AF159: 29 | AG159: 30
A160: 2020-04-01 | B160: Room 1 | C160: 1 double bed | D160: GL | E160: GL | F160: GL | G160: GL | H160: GL | I160: GL | J160: GL | K160: GL | L160: GL | M160: GL | N160: GL | O160: GL | P160: GL | Q160: GL | R160: GL | S160: GL | T160: GL | U160: GL | V160: GL | W160: GL | X160: GL | Y160: GL | Z160: GL | AA160: GL | AB160: GL | AC160: GL | AD160: GL | AE160: GL | AF160: GL | AG160: GL | AI160: GH1 | AJ160: Room 1 | AK160: =COUNTA(D159:AH159) -> 30 | AL160: =COUNTA(D160:AH160) -> 30 | AM160: =AK160-AL160 -> 0 | AN160: =AL160/AK160 -> 100%
A161: 2020-04-01 | B161: Room 2 | C161: 1 double bed | AI161: GH1 | AJ161: Room 2 | AK161: =AK160 -> 30 | AL161: =COUNTA(D161:AH161) -> 0 | AM161: =AK161-AL161 -> 30 | AN161: =AL161/AK161 -> 0%
A162: 2020-04-01 | B162: Room 3 | C162: 1 double bed | D162: OF | E162: OF | F162: OF | G162: OF | H162: OF | I162: OF | J162: OF | K162: OF | L162: OF | M162: OF | N162: OF | O162: OF | P162: OF | Q162: OF | R162: OF | S162: OF | T162: OF | U162: OF | V162: OF | W162: OF | X162: OF | Y162: OF | Z162: OF | AA162: OF | AB162: OF | AC162: OF | AD162: OF | AE162: OF | AF162: OF | AG162: OF | AI162: GH1 | AJ162: Room 3 | AK162: =AK161 -> 30 | AL162: =COUNTA(D162:AH162) -> 30 | AM162: =AK162-AL162 -> 0 | AN162: =AL162/AK162 -> 100%
B163: GH4
A164: 2020-04-01 | B164: Room 1 | C164: 1 double bed | D164: LS | E164: LS | F164: LS | G164: LS | H164: LS | I164: LS | J164: LS | K164: LS | L164: LS | M164: LS | N164: LS | O164: LS | P164: LS | Q164: LS | R164: LS | S164: LS | T164: LS | U164: LS | V164: LS | W164: LS | X164: LS | Y164: LS | Z164: LS | AA164: LS | AB164: LS | AC164: LS | AD164: LS | AE164: LS | AF164: LS | AG164: LS | AI164: GH4 | AJ164: Room 1 | AK164: =AK160 -> 30 | AL164: =COUNTA(D164:AH164) -> 30 | AM164: =AK164-AL164 -> 0 | AN164: =AL164/AK164 -> 100%
A165: 2020-04-01 | B165: Room 2 | C165: 1 single bed | AI165: GH4 | AJ165: Room 2 | AK165: =AK164 -> 30 | AL165: =COUNTA(D165:AH165) -> 0 | AM165: =AK165-AL165 -> 30 | AN165: =AL165/AK165 -> 0%
A166: 2020-04-01 | B166: Room 3 | C166: 1 single bed | D166: RD | E166: RD | F166: RD | G166: RD | H166: RD | I166: RD | J166: RD | K166: RD | L166: RD | M166: RD | N166: RD | O166: RD | P166: RD | Q166: RD | R166: RD | S166: RD | T166: RD | U166: RD | V166: RD | W166: RD | X166: RD | Y166: RD | Z166: RD | AA166: RD | AB166: RD | AC166: RD | AD166: RD | AE166: RD | AF166: RD | AG166: RD | AI166: GH4 | AJ166: Room 3 | AK166: =AK165 -> 30 | AL166: =COUNTA(D166:AH166) -> 30 | AM166: =AK166-AL166 -> 0 | AN166: =AL166/AK166 -> 100%
B168: May | C168: 2020 | D168: F | E168: S | F168: S | G168: M | H168: T | I168: W | J168: T | K168: F | L168: S | M168: S | N168: M | O168: T | P168: W | Q168: T | R168: F | S168: S | T168: S | U168: M | V168: T | W168: W | X168: T | Y168: F | Z168: S | AA168: S | AB168: M | AC168: T | AD168: W | AE168: T | AF168: F | AG168: S | AH168: S | AO168: Comments
B169: GH1 | D169: 1 | E169: 2 | F169: 3 | G169: 4 | H169: 5 | I169: 6 | J169: 7 | K169: 8 | L169: 9 | M169: 10 | N169: 11 | O169: 12 | P169: 13 | Q169: 14 | R169: 15 | S169: 16 | T169: 17 | U169: 18 | V169: 19 | W169: 20 | X169: 21 | Y169: 22 | Z169: 23 | AA169: 24 | AB169: 25 | AC169: 26 | AD169: 27 | AE169: 28 | AF169: 29 | AG169: 30 | AH169: 31
A170: 2020-05-01 | B170: Room 1 | C170: 1 double bed | D170: GL | E170: GL | F170: GL | G170: GL | H170: GL | I170: GL | J170: GL | K170: GL | L170: GL | M170: GL | N170: GL | O170: GL | P170: GL | Q170: GL | R170: GL | S170: GL | T170: GL | U170: GL | V170: GL | W170: GL | X170: GL | Y170: GL | Z170: GL | AA170: GL | AB170: GL | AC170: GL | AD170: GL | AE170: GL | AF170: GL | AG170: GL | AH170: GL | AI170: GH1 | AJ170: Room 1 | AK170: =COUNTA(D169:AH169) -> 31 | AL170: =COUNTA(D170:AH170) -> 31 | AM170: =AK170-AL170 -> 0 | AN170: =AL170/AK170 -> 100%
A171: 2020-05-01 | B171: Room 2 | C171: 1 double bed | AI171: GH1 | AJ171: Room 2 | AK171: =AK170 -> 31 | AL171: =COUNTA(D171:AH171) -> 0 | AM171: =AK171-AL171 -> 31 | AN171: =AL171/AK171 -> 0%
A172: 2020-05-01 | B172: Room 3 | C172: 1 double bed | D172: OF | E172: OF | F172: OF | G172: OF | H172: OF | I172: OF | J172: OF | K172: OF | L172: OF | M172: OF | N172: OF | O172: OF | P172: OF | Q172: OF | R172: OF | S172: OF | T172: OF | U172: OF | V172: OF | W172: OF | X172: OF | Y172: OF | Z172: OF | AA172: OF | AB172: OF | AC172: OF | AD172: OF | AE172: OF | AF172: OF | AG172: OF | AH172: OF | AI172: GH1 | AJ172: Room 3 | AK172: =AK171 -> 31 | AL172: =COUNTA(D172:AH172) -> 31 | AM172: =AK172-AL172 -> 0 | AN172: =AL172/AK172 -> 100%
B173: GH4
A174: 2020-05-01 | B174: Room 1 | C174: 1 double bed | D174: LS | E174: LS | F174: LS | G174: LS | H174: LS | I174: LS | J174: LS | K174: LS | L174: LS | M174: LS | N174: LS | O174: LS | P174: LS | Q174: LS | R174: LS | S174: LS | T174: LS | U174: LS | V174: LS | W174: LS | X174: LS | Y174: LS | Z174: LS | AA174: LS | AB174: LS | AC174: LS | AD174: LS | AE174: LS | AF174: LS | AG174: LS | AH174: LS | AI174: GH4 | AJ174: Room 1 | AK174: =AK170 -> 31 | AL174: =COUNTA(D174:AH174) -> 31 | AM174: =AK174-AL174 -> 0 | AN174: =AL174/AK174 -> 100%
A175: 2020-05-01 | B175: Room 2 | C175: 1 single bed | AI175: GH4 | AJ175: Room 2 | AK175: =AK174 -> 31 | AL175: =COUNTA(D175:AH175) -> 0 | AM175: =AK175-AL175 -> 31 | AN175: =AL175/AK175 -> 0%
A176: 2020-05-01 | B176: Room 3 | C176: 1 single bed | D176: RD | E176: RD | F176: RD | G176: RD | H176: RD | I176: RD | J176: RD | K176: RD | L176: RD | M176: RD | N176: RD | O176: RD | P176: RD | Q176: RD | R176: RD | S176: RD | T176: RD | U176: RD | V176: RD | W176: RD | X176: RD | Y176: RD | Z176: RD | AA176: RD | AB176: RD | AC176: RD | AD176: RD | AE176: RD | AF176: RD | AG176: RD | AH176: RD | AI176: GH4 | AJ176: Room 3 | AK176: =AK175 -> 31 | AL176: =COUNTA(D176:AH176) -> 31 | AM176: =AK176-AL176 -> 0 | AN176: =AL176/AK176 -> 100%
B178: June | C178: 2020 | D178: M | E178: T | F178: W | G178: T | H178: F | I178: S | J178: S | K178: M | L178: T | M178: W | N178: T | O178: F | P178: S | Q178: S | R178: M | S178: T | T178: W | U178: T | V178: F | W178: S | X178: S | Y178: M | Z178: T | AA178: W | AB178: T | AC178: F | AD178: S | AE178: S | AF178: M | AG178: T | AO178: Comments
B179: GH1 | D179: 1 | E179: 2 | F179: 3 | G179: 4 | H179: 5 | I179: 6 | J179: 7 | K179: 8 | L179: 9 | M179: 10 | N179: 11 | O179: 12 | P179: 13 | Q179: 14 | R179: 15 | S179: 16 | T179: 17 | U179: 18 | V179: 19 | W179: 20 | X179: 21 | Y179: 22 | Z179: 23 | AA179: 24 | AB179: 25 | AC179: 26 | AD179: 27 | AE179: 28 | AF179: 29 | AG179: 30
A180: 2020-06-01 | B180: Room 1 | C180: 1 double bed | D180: GL | E180: GL | F180: GL | G180: GL | H180: GL | I180: GL | J180: GL | K180: GL | L180: GL | M180: GL | N180: GL | O180: GL | P180: GL | Q180: GL | R180: GL | S180: GL | T180: GL | U180: GL | V180: GL | W180: GL | X180: GL | Y180: GL | Z180: GL | AA180: GL | AB180: GL | AI180: GH1 | AJ180: Room 1 | AK180: =COUNTA(D179:AH179) -> 30 | AL180: =COUNTA(D180:AH180) -> 25 | AM180: =AK180-AL180 -> 5 | AN180: =AL180/AK180 -> 83%
A181: 2020-06-01 | B181: Room 2 | C181: 1 double bed | R181: MB | S181: MB | T181: MB | U181: MB | V181: MB | W181: MB | X181: MB | Y181: MB | Z181: MB | AA181: MB | AB181: MB | AC181: MB | AD181: MB | AE181: MB | AF181: MB | AG181: MB | AI181: GH1 | AJ181: Room 2 | AK181: =AK180 -> 30 | AL181: =COUNTA(D181:AH181) -> 16 | AM181: =AK181-AL181 -> 14 | AN181: =AL181/AK181 -> 53%
A182: 2020-06-01 | B182: Room 3 | C182: 1 double bed | D182: OF | E182: OF | F182: OF | G182: OF | H182: OF | I182: OF | J182: OF | K182: OF | L182: OF | M182: OF | N182: OF | O182: OF | P182: OF | Q182: OF | AA182: OF | AB182: OF | AC182: OF | AD182: OF | AE182: OF | AF182: OF | AG182: OF | AI182: GH1 | AJ182: Room 3 | AK182: =AK181 -> 30 | AL182: =COUNTA(D182:AH182) -> 21 | AM182: =AK182-AL182 -> 9 | AN182: =AL182/AK182 -> 70%
B183: GH4
A184: 2020-06-01 | B184: Room 1 | C184: 1 double bed | D184: LS | E184: LS | F184: LS | G184: LS | H184: LS | I184: LS | J184: LS | K184: LS | L184: LS | M184: LS | N184: LS | O184: LS | P184: LS | Q184: LS | R184: LS | S184: LS | T184: LS | U184: LS | V184: LS | W184: LS | X184: LS | Y184: LS | Z184: LS | AA184: LS | AB184: LS | AC184: LS | AD184: LS | AE184: LS | AF184: LS | AG184: LS | AI184: GH4 | AJ184: Room 1 | AK184: =AK180 -> 30 | AL184: =COUNTA(D184:AH184) -> 30 | AM184: =AK184-AL184 -> 0 | AN184: =AL184/AK184 -> 100%
A185: 2020-06-01 | B185: Room 2 | C185: 1 single bed | R185: OF | S185: OF | T185: OF | U185: OF | V185: OF | W185: OF | X185: OF | Y185: OF | Z185: OF | AA185: AG | AB185: AG | AC185: AG | AD185: AG | AE185: AG | AF185: AG | AG185: AG | AI185: GH4 | AJ185: Room 2 | AK185: =AK184 -> 30 | AL185: =COUNTA(D185:AH185) -> 16 | AM185: =AK185-AL185 -> 14 | AN185: =AL185/AK185 -> 53%
A186: 2020-06-01 | B186: Room 3 | C186: 1 single bed | D186: RD | E186: RD | F186: RD | G186: RD | H186: RD | I186: RD | J186: RD | K186: RD | L186: RD | M186: RD | N186: RD | O186: RD | P186: RD | Q186: RD | R186: RD | S186: RD | T186: RD | U186: RD | V186: RD | W186: RD | X186: RD | Y186: RD | Z186: RD | AA186: RD | AB186: RD | AC186: RD | AD186: RD | AE186: RD | AF186: RD | AG186: RD | AI186: GH4 | AJ186: Room 3 | AK186: =AK185 -> 30 | AL186: =COUNTA(D186:AH186) -> 30 | AM186: =AK186-AL186 -> 0 | AN186: =AL186/AK186 -> 100%
B188: July | C188: 2020 | D188: W | E188: T | F188: F | G188: S | H188: S | I188: M | J188: T | K188: W | L188: T | M188: F | N188: S | O188: S | P188: M | Q188: T | R188: W | S188: T | T188: F | U188: S | V188: S | W188: M | X188: T | Y188: W | Z188: T | AA188: F | AB188: S | AC188: S | AD188: M | AE188: T | AF188: W | AG188: T | AH188: F | AO188: Comments
B189: GH1 | D189: 1 | E189: 2 | F189: 3 | G189: 4 | H189: 5 | I189: 6 | J189: 7 | K189: 8 | L189: 9 | M189: 10 | N189: 11 | O189: 12 | P189: 13 | Q189: 14 | R189: 15 | S189: 16 | T189: 17 | U189: 18 | V189: 19 | W189: 20 | X189: 21 | Y189: 22 | Z189: 23 | AA189: 24 | AB189: 25 | AC189: 26 | AD189: 27 | AE189: 28 | AF189: 29 | AG189: 30 | AH189: 31
A190: 2020-07-01 | B190: Room 1 | C190: 1 double bed | D190: OF | E190: OF | F190: OF | G190: OF | H190: OF | I190: OF | J190: OF | K190: OF | L190: OF | M190: OF | N190: OF | O190: OF | P190: OF | Q190: OF | R190: OF | S190: OF | T190: OF | U190: OF | V190: OF | W190: OF | X190: OF | Y190: OF | Z190: OF | AA190: OF | AB190: OF | AC190: OF | AD190: OF | AE190: OF | AF190: OF | AG190: OF | AH190: OF | AI190: GH1 | AJ190: Room 1 | AK190: =COUNTA(D189:AH189) -> 31 | AL190: =COUNTA(D190:AH190) -> 31 | AM190: =AK190-AL190 -> 0 | AN190: =AL190/AK190 -> 100%
A191: 2020-07-01 | B191: Room 2 | C191: 1 double bed | D191: MB | E191: MB | F191: MB | G191: MB | H191: MB | I191: MB | J191: MB | K191: MB | L191: MB | M191: MB | N191: MB | O191: MB | P191: MB | Q191: MB | R191: MB | S191: MB | T191: MB | U191: MB | V191: MB | W191: MB | X191: MB | Y191: MB | Z191: MB | AA191: MB | AB191: MB | AC191: MB | AD191: MB | AE191: MB | AF191: MB | AG191: MB | AH191: MB | AI191: GH1 | AJ191: Room 2 | AK191: =AK190 -> 31 | AL191: =COUNTA(D191:AH191) -> 31 | AM191: =AK191-AL191 -> 0 | AN191: =AL191/AK191 -> 100%
A192: 2020-07-01 | B192: Room 3 | C192: 1 double bed | AI192: GH1 | AJ192: Room 3 | AK192: =AK191 -> 31 | AL192: =COUNTA(D192:AH192) -> 0 | AM192: =AK192-AL192 -> 31 | AN192: =AL192/AK192 -> 0%
B193: GH4
A194: 2020-07-01 | B194: Room 1 | C194: 1 double bed | D194: LS | E194: LS | F194: LS | G194: LS | H194: LS | I194: LS | J194: LS | K194: LS | L194: LS | M194: LS | N194: LS | O194: LS | P194: LS | Q194: LS | R194: LS | S194: LS | T194: LS | U194: LS | V194: LS | W194: LS | X194: LS | Y194: LS | Z194: LS | AA194: LS | AB194: LS | AC194: LS | AD194: LS | AE194: LS | AF194: LS | AG194: LS | AH194: LS | AI194: GH4 | AJ194: Room 1 | AK194: =AK190 -> 31 | AL194: =COUNTA(D194:AH194) -> 31 | AM194: =AK194-AL194 -> 0 | AN194: =AL194/AK194 -> 100%
A195: 2020-07-01 | B195: Room 2 | C195: 1 single bed | D195: AG | E195: AG | F195: AG | G195: AG | H195: AG | I195: AG | J195: AG | K195: AG | AI195: GH4 | AJ195: Room 2 | AK195: =AK194 -> 31 | AL195: =COUNTA(D195:AH195) -> 8 | AM195: =AK195-AL195 -> 23 | AN195: =AL195/AK195 -> 26%
A196: 2020-07-01 | B196: Room 3 | C196: 1 single bed | D196: RD | E196: RD | F196: RD | G196: RD | H196: RD | I196: RD | J196: RD | K196: RD | L196: RD | M196: RD | N196: RD | O196: RD | P196: RD | Q196: RD | R196: RD | S196: RD | T196: RD | AI196: GH4 | AJ196: Room 3 | AK196: =AK195 -> 31 | AL196: =COUNTA(D196:AH196) -> 17 | AM196: =AK196-AL196 -> 14 | AN196: =AL196/AK196 -> 55%
B198: August | C198: 2020 | D198: S | E198: S | F198: M | G198: T | H198: W | I198: T | J198: F | K198: S | L198: S | M198: M | N198: T | O198: W | P198: T | Q198: F | R198: S | S198: S | T198: M | U198: T | V198: W | W198: T | X198: F | Y198: S | Z198: S | AA198: M | AB198: T | AC198: W | AD198: T | AE198: F | AF198: S | AG198: S | AH198: M | AO198: Comments
B199: GH1 | D199: 1 | E199: 2 | F199: 3 | G199: 4 | H199: 5 | I199: 6 | J199: 7 | K199: 8 | L199: 9 | M199: 10 | N199: 11 | O199: 12 | P199: 13 | Q199: 14 | R199: 15 | S199: 16 | T199: 17 | U199: 18 | V199: 19 | W199: 20 | X199: 21 | Y199: 22 | Z199: 23 | AA199: 24 | AB199: 25 | AC199: 26 | AD199: 27 | AE199: 28 | AF199: 29 | AG199: 30 | AH199: 31
A200: 2020-08-01 | B200: Room 1 | C200: 1 double bed | D200: OF | E200: OF | F200: OF | G200: OF | H200: OF | I200: OF | J200: OF | K200: OF | L200: OF | M200: OF | N200: OF | O200: OF | P200: OF | Q200: OF | R200: OF | S200: OF | T200: OF | U200: OF | V200: OF | W200: OF | X200: OF | Y200: OF | Z200: OF | AA200: OF | AB200: OF | AC200: OF | AD200: OF | AE200: OF | AF200: OF | AG200: OF | AH200: OF | AI200: GH1 | AJ200: Room 1 | AK200: =COUNTA(D199:AH199) -> 31 | AL200: =COUNTA(D200:AH200) -> 31 | AM200: =AK200-AL200 -> 0 | AN200: =AL200/AK200 -> 100%
A201: 2020-08-01 | B201: Room 2 | C201: 1 double bed | D201: MB | E201: MB | F201: MB | G201: MB | H201: MB | I201: MB | J201: MB | K201: MB | L201: MB | M201: MB | N201: MB | O201: MB | P201: MB | Q201: MB | R201: MB | S201: MB | T201: MB | U201: MB | V201: MB | W201: MB | X201: MB | Y201: MB | Z201: MB | AA201: MB | AB201: MB | AC201: MB | AD201: MB | AE201: MB | AF201: MB | AG201: MB | AH201: MB | AI201: GH1 | AJ201: Room 2 | AK201: =AK200 -> 31 | AL201: =COUNTA(D201:AH201) -> 31 | AM201: =AK201-AL201 -> 0 | AN201: =AL201/AK201 -> 100%
A202: 2020-08-01 | B202: Room 3 | C202: 1 double bed | AI202: GH1 | AJ202: Room 3 | AK202: =AK201 -> 31 | AL202: =COUNTA(D202:AH202) -> 0 | AM202: =AK202-AL202 -> 31 | AN202: =AL202/AK202 -> 0%
B203: GH4
A204: 2020-08-01 | B204: Room 1 | C204: 1 double bed | D204: LS | E204: LS | F204: LS | G204: LS | H204: LS | I204: LS | J204: LS | K204: LS | L204: LS | M204: LS | N204: LS | O204: LS | P204: LS | Q204: LS | R204: LS | S204: LS | T204: LS | U204: LS | V204: LS | W204: LS | X204: LS | Y204: LS | AI204: GH4 | AJ204: Room 1 | AK204: =AK200 -> 31 | AL204: =COUNTA(D204:AH204) -> 22 | AM204: =AK204-AL204 -> 9 | AN204: =AL204/AK204 -> 71%
A205: 2020-08-01 | B205: Room 2 | C205: 1 single bed | AI205: GH4 | AJ205: Room 2 | AK205: =AK204 -> 31 | AL205: =COUNTA(D205:AH205) -> 0 | AM205: =AK205-AL205 -> 31 | AN205: =AL205/AK205 -> 0%
A206: 2020-08-01 | B206: Room 3 | C206: 1 single bed | AI206: GH4 | AJ206: Room 3 | AK206: =AK205 -> 31 | AL206: =COUNTA(D206:AH206) -> 0 | AM206: =AK206-AL206 -> 31 | AN206: =AL206/AK206 -> 0%
B208: Sept | C208: 2020 | D208: T | E208: W | F208: T | G208: F | H208: S | I208: S | J208: M | K208: T | L208: W | M208: T | N208: F | O208: S | P208: S | Q208: M | R208: T | S208: W | T208: T | U208: F | V208: S | W208: S | X208: M | Y208: T | Z208: W | AA208: T | AB208: F | AC208: S | AD208: S | AE208: M | AF208: T | AG208: W | AO208: Comments
B209: GH1 | D209: 1 | E209: 2 | F209: 3 | G209: 4 | H209: 5 | I209: 6 | J209: 7 | K209: 8 | L209: 9 | M209: 10 | N209: 11 | O209: 12 | P209: 13 | Q209: 14 | R209: 15 | S209: 16 | T209: 17 | U209: 18 | V209: 19 | W209: 20 | X209: 21 | Y209: 22 | Z209: 23 | AA209: 24 | AB209: 25 | AC209: 26 | AD209: 27 | AE209: 28 | AF209: 29 | AG209: 30
A210: 2020-09-01 | B210: Room 1 | C210: 1 double bed | D210: OF | E210: OF | F210: OF | G210: OF | H210: OF | I210: OF | J210: OF | K210: OF | L210: OF | M210: OF | N210: OF | O210: OF | P210: OF | Q210: OF | R210: OF | S210: OF | T210: OF | U210: OF | V210: OF | W210: OF | X210: OF | Y210: OF | Z210: OF | AI210: GH1 | AJ210: Room 1 | AK210: =COUNTA(D209:AH209) -> 30 | AL210: =COUNTA(D210:AH210) -> 23 | AM210: =AK210-AL210 -> 7 | AN210: =AL210/AK210 -> 77%
A211: 2020-09-01 | B211: Room 2 | C211: 1 double bed | D211: MB | E211: MB | F211: MB | G211: MB | H211: MB | I211: MB | J211: MB | K211: MB | L211: MB | M211: MB | N211: MB | O211: MB | P211: MB | Q211: MB | R211: MB | S211: MB | T211: MB | AI211: GH1 | AJ211: Room 2 | AK211: =AK210 -> 30 | AL211: =COUNTA(D211:AH211) -> 17 | AM211: =AK211-AL211 -> 13 | AN211: =AL211/AK211 -> 57%
A212: 2020-09-01 | B212: Room 3 | C212: 1 double bed | AI212: GH1 | AJ212: Room 3 | AK212: =AK211 -> 30 | AL212: =COUNTA(D212:AH212) -> 0 | AM212: =AK212-AL212 -> 30 | AN212: =AL212/AK212 -> 0%
B213: GH4
A214: 2020-09-01 | B214: Room 1 | C214: 1 double bed | S214: SJ | T214: SJ | U214: SJ | V214: SJ | W214: SJ | X214: SJ | Y214: SJ | Z214: SJ | AA214: SJ | AB214: SJ | AC214: SJ | AD214: SJ | AE214: SJ | AF214: SJ | AG214: SJ | AI214: GH4 | AJ214: Room 1 | AK214: =AK210 -> 30 | AL214: =COUNTA(D214:AH214) -> 15 | AM214: =AK214-AL214 -> 15 | AN214: =AL214/AK214 -> 50%
A215: 2020-09-01 | B215: Room 2 | C215: 1 single bed | AI215: GH4 | AJ215: Room 2 | AK215: =AK214 -> 30 | AL215: =COUNTA(D215:AH215) -> 0 | AM215: =AK215-AL215 -> 30 | AN215: =AL215/AK215 -> 0%
A216: 2020-09-01 | B216: Room 3 | C216: 1 single bed | AI216: GH4 | AJ216: Room 3 | AK216: =AK215 -> 30 | AL216: =COUNTA(D216:AH216) -> 0 | AM216: =AK216-AL216 -> 30 | AN216: =AL216/AK216 -> 0%
B218: October | C218: 2020 | D218: T | E218: F | F218: S | G218: S | H218: M | I218: T | J218: W | K218: T | L218: F | M218: S | N218: S | O218: M | P218: T | Q218: W | R218: T | S218: F | T218: S | U218: S | V218: M | W218: T | X218: W | Y218: T | Z218: F | AA218: S | AB218: S | AC218: M | AD218: T | AE218: W | AF218: T | AG218: F | AH218: S | AO218: Comments
B219: GH1 | D219: 1 | E219: 2 | F219: 3 | G219: 4 | H219: 5 | I219: 6 | J219: 7 | K219: 8 | L219: 9 | M219: 10 | N219: 11 | O219: 12 | P219: 13 | Q219: 14 | R219: 15 | S219: 16 | T219: 17 | U219: 18 | V219: 19 | W219: 20 | X219: 21 | Y219: 22 | Z219: 23 | AA219: 24 | AB219: 25 | AC219: 26 | AD219: 27 | AE219: 28 | AF219: 29 | AG219: 30 | AH219: 31
A220: 2020-10-01 | B220: Room 1 | C220: 1 double bed | D220: SJ | E220: SJ | F220: SJ | G220: SJ | H220: SJ | I220: SJ | J220: SJ | K220: SJ | L220: SJ | M220: SJ | N220: SJ | O220: SJ | W220: AL | X220: AL | Y220: AL | Z220: AL | AA220: AL | AB220: AL | AC220: AL | AD220: AL | AE220: AL | AF220: AL | AG220: AL | AH220: AL | AI220: GH1 | AJ220: Room 1 | AK220: =COUNTA(D219:AH219) -> 31 | AL220: =COUNTA(D220:AH220) -> 24 | AM220: =AK220-AL220 -> 7 | AN220: =AL220/AK220 -> 77%
A221: 2020-10-01 | B221: Room 2 | C221: 1 double bed | AI221: GH1 | AJ221: Room 2 | AK221: =AK220 -> 31 | AL221: =COUNTA(D221:AH221) -> 0 | AM221: =AK221-AL221 -> 31 | AN221: =AL221/AK221 -> 0% | AO221: Needs her Visa B1 + Gaza Permit renewed
A222: 2020-10-01 | B222: Room 3 | C222: 1 double bed | AI222: GH1 | AJ222: Room 3 | AK222: =AK221 -> 31 | AL222: =COUNTA(D222:AH222) -> 0 | AM222: =AK222-AL222 -> 31 | AN222: =AL222/AK222 -> 0% | AO222: Armando coming out of Gaza End of Oct normally
... 130 more rows

Sheet Office Presence BT (hidden)
A1: OFFICE PRESENCE | L1: GREEN CELL = OK CD
A2: Date | B2: Person 1 | C2: Person 2 | D2: Person 3 | E2: Person 4 | F2: Person 5 | G2: Person 6 | H2: Person 7 | I2: Person 8 | J2: Person 9 | K2: Person 10 | L2: Comments
A3: 2021-02-20
A4: 2021-02-21
A5: 2021-02-22 | B5: Gonzalo
A6: 2021-02-23
A7: 2021-02-24
A8: 2021-02-25
A9: 2021-02-26
A10: 2021-02-27
A11: 2021-02-28
A12: 2021-03-01
A13: 2021-03-02
A14: 2021-03-03
A15: 2021-03-04
A16: 2021-03-05
A17: 2021-03-06
A18: 2021-03-07
A19: 2021-03-08
A20: 2021-03-09
A21: 2021-03-10
A22: 2021-03-11
A23: 2021-03-12
A24: 2021-03-13
A25: 2021-03-14
A26: 2021-03-15
A27: 2021-03-16
A28: 2021-03-17
A29: 2021-03-18
A30: 2021-03-19
A31: 2021-03-20
A32: 2021-03-21
A33: 2021-03-22
A34: 2021-03-23
A35: 2021-03-24
A36: 2021-03-25
A37: 2021-03-26
A38: 2021-03-27
A39: 2021-03-28
A40: 2021-03-29
A41: 2021-03-30
A42: 2021-03-31
A43: 2021-04-01
A44: 2021-04-02
A45: 2021-04-03
A46: 2021-04-04

Sheet GZ Accom Plan (hidden)
B1: Gaza - GUESTHOUSES MANAGEMENT
C2: Permanent
C3: Available
C4: Guest | T4: Document updated by Base Log Gaza only
AI7: GH | AJ7: Room | AK7: Possible Days | AL7: Busy Days | AM7: Free Days | AN7: Occupation Rate
B8: JANUARY | C8: 2019 | D8: T | E8: W | F8: T | G8: F | H8: S | I8: S | J8: M | K8: T | L8: W | M8: T | N8: F | O8: S | P8: S | Q8: M | R8: T | S8: W | T8: T | U8: F | V8: S | W8: S | X8: M | Y8: T | Z8: W | AA8: T | AB8: F | AC8: S | AD8: S | AE8: M | AF8: T | AG8: W | AH8: T
B9: GH1 | D9: =+C9+1 -> 1 | E9: 2 | F9: 3 | G9: 4 | H9: 5 | I9: 6 | J9: 7 | K9: 8 | L9: 9 | M9: 10 | N9: 11 | O9: 12 | P9: 13 | Q9: 14 | R9: 15 | S9: 16 | T9: 17 | U9: 18 | V9: 19 | W9: 20 | X9: 21 | Y9: 22 | Z9: 23 | AA9: 24 | AB9: 25 | AC9: 26 | AD9: 27 | AE9: 28 | AF9: 29 | AG9: 30 | AH9: 31
A10: 2019-01-01 | B10: Room 1 | C10: 1 double bed | D10: SJ | E10: SJ | F10: SJ | G10: SJ | H10: SJ | I10: SJ | J10: SJ | K10: SJ | L10: SJ | M10: SJ | N10: SJ | O10: SJ | P10: SJ | Q10: SJ | R10: SJ | S10: SJ | T10: SJ | U10: SJ | V10: SJ | W10: SJ | X10: SJ | Y10: SJ | Z10: SJ | AA10: SJ | AB10: SJ | AC10: SJ | AD10: SJ | AE10: SJ | AF10: SJ | AG10: SJ | AH10: SJ | AI10: GH1 | AJ10: Room 1 | AK10: =COUNTA(D9:AH9) -> 31 | AL10: =COUNTA(D10:AH10) -> 31 | AM10: =AK10-AL10 -> 0 | AN10: =AL10/AK10 -> 100%
A11: 2019-01-01 | B11: Room 2 | C11: 1 Single bed | AF11: DR | AG11: DR | AH11: DR | AI11: GH1 | AJ11: Room 2 | AK11: =AK10 -> 31 | AL11: =COUNTA(D11:AH11) -> 3 | AM11: =AK11-AL11 -> 28 | AN11: =AL11/AK11 -> 10%
B12: GH2
A13: 2019-01-01 | B13: Room 1 | C13: 1 double bed | X13: JP | Y13: JP | Z13: JP | AE13: JP | AF13: JP | AG13: JP | AH13: JP | AI13: GH2 | AJ13: Room 1 | AK13: =AK10 -> 31 | AL13: =COUNTA(D13:AH13) -> 7 | AM13: =AK13-AL13 -> 24 | AN13: =AL13/AK13 -> 23%
A14: 2019-01-01 | B14: Room 2 | C14: 1 single bed | H14: LH | I14: LH | J14: LH | O14: LH | P14: LH | Q14: LH | V14: LH | W14: LH | X14: LH | AC14: LH | AD14: LH | AE14: LH | AI14: GH2 | AJ14: Room 2 | AK14: =AK10 -> 31 | AL14: =COUNTA(D14:AH14) -> 12 | AM14: =AK14-AL14 -> 19 | AN14: =AL14/AK14 -> 39%
A15: 2019-01-01 | B15: Room 3 | C15: 1 single bed | I15: AO | J15: AO | K15: AO | L15: AO | M15: AO | N15: AO | O15: AO | P15: AO | Q15: AO | R15: AO | S15: AO | T15: AO | U15: AO | V15: AO | W15: AO | X15: AO | Y15: AO | Z15: AO | AA15: AO | AB15: AO | AC15: AO | AD15: AO | AE15: AO | AF15: AO | AI15: GH2 | AJ15: Room 3 | AK15: =AK10 -> 31 | AL15: =COUNTA(D15:AH15) -> 24 | AM15: =AK15-AL15 -> 7 | AN15: =AL15/AK15 -> 77%
B16: GH3
A17: 2019-01-01 | B17: Room 1 | C17: 1 double bed | AF17: GA | AG17: GA | AI17: GH3 | AJ17: Room 1 | AK17: =AK10 -> 31 | AL17: =COUNTA(D17:AH17) -> 2 | AM17: =AK17-AL17 -> 29 | AN17: 6%
A18: 2019-01-01 | B18: Room 2 | C18: 1 single bed | AI18: GH3 | AJ18: Room 2 | AK18: =AK10 -> 31 | AL18: =COUNTA(D18:AH18) -> 0 | AM18: =AK18-AL18 -> 31 | AN18: 0%
B20: FEBRUARY | C20: 2019 | D20: F | E20: S | F20: S | G20: M | H20: T | I20: W | J20: T | K20: F | L20: S | M20: S | N20: M | O20: T | P20: W | Q20: T | R20: F | S20: S | T20: S | U20: M | V20: T | W20: W | X20: T | Y20: F | Z20: S | AA20: S | AB20: M | AC20: T | AD20: W | AE20: T
B21: GH 1 | D21: 1 | E21: 2 | F21: 3 | G21: 4 | H21: 5 | I21: 6 | J21: 7 | K21: 8 | L21: 9 | M21: 10 | N21: 11 | O21: 12 | P21: 13 | Q21: 14 | R21: 15 | S21: 16 | T21: 17 | U21: 18 | V21: 19 | W21: 20 | X21: 21 | Y21: 22 | Z21: 23 | AA21: 24 | AB21: 25 | AC21: 26 | AD21: 27 | AE21: 28
A22: 2019-02-01 | B22: Room 1 | C22: 1 double bed | D22: SJ | E22: SJ | F22: SJ | G22: SJ | H22: SJ | I22: SJ | J22: SJ | K22: SJ | L22: SJ | M22: SJ | N22: SJ | O22: SJ | P22: SJ | Q22: SJ | R22: SJ | S22: SJ | T22: SJ | U22: SJ | V22: SJ | W22: SJ | X22: SJ | Y22: SJ | Z22: SJ | AA22: SJ | AB22: SJ | AC22: SJ | AD22: SJ | AE22: SJ | AI22: GH1 | AJ22: Room 1 | AK22: =COUNTA(D21:AE21) -> 28 | AL22: =COUNTA(D22:AE22) -> 28 | AM22: =AK22-AL22 -> 0 | AN22: 100%
A23: 2019-02-01 | B23: Room 2 | C23: 1 Single bed | I23: GC | J23: GC | N23: ST | O23: ST | W23: ST | AI23: GH1 | AJ23: Room 2 | AK23: =AK22 -> 28 | AL23: =COUNTA(D23:AE23) -> 5 | AM23: =AK23-AL23 -> 23 | AN23: 18%
B24: GH2
A25: 2019-02-01 | B25: Room 1 | C25: 1 double bed | D25: JP | E25: JP | F25: JP | G25: JP | H25: JP | I25: JP | J25: JP | K25: JP | L25: JP | M25: JP | N25: JP | O25: JP | P25: JP | Q25: JP | R25: JP | S25: JP | T25: JP | U25: JP | V25: JP | W25: JP | X25: JP | Y25: JP | Z25: JP | AA25: JP | AB25: JP | AC25: JP | AD25: JP | AE25: JP | AI25: GH2 | AJ25: Room 1 | AK25: =AK22 -> 28 | AL25: =COUNTA(D25:AE25) -> 28 | AM25: =AK25-AL25 -> 0 | AN25: 100%
A26: 2019-02-01 | B26: Room 2 | C26: 1 single bed | H26: LH | I26: LH | J26: LH | O26: LH | P26: LH | Q26: LH | V26: LH | W26: LH | X26: LH | AC26: LH | AD26: LH | AE26: LH | AI26: GH2 | AJ26: Room 2 | AK26: =AK22 -> 28 | AL26: =COUNTA(D26:AE26) -> 12 | AM26: =AK26-AL26 -> 16 | AN26: 43%
A27: 2019-02-01 | B27: Room 3 | C27: 1 single bed | D27: AO | E27: AO | F27: AO | G27: AO | H27: AO | I27: AO | J27: AO | N27: AO | O27: AO | P27: AO | Q27: AO | R27: AO | S27: AO | T27: AO | U27: AO | V27: AO | W27: AO | AI27: GH2 | AJ27: Room 3 | AK27: =AK22 -> 28 | AL27: =COUNTA(D27:AE27) -> 17 | AM27: =AK27-AL27 -> 11 | AN27: 61%
B28: GH3
A29: 2019-02-01 | B29: Room 1 | C29: 1 double bed | F29: LL | N29: DR | O29: DR | V29: GA | W29: GA | AI29: GH3 | AJ29: Room 1 | AK29: =AK22 -> 28 | AL29: =COUNTA(D29:AE29) -> 5 | AM29: =AK29-AL29 -> 23 | AN29: 18%
A30: 2019-02-01 | B30: Room 2 | C30: 1 single bed | P30: TZ | Q30: TZ | V30: DD | W30: DD | AI30: GH3 | AJ30: Room 2 | AK30: =AK22 -> 28 | AL30: =COUNTA(D30:AE30) -> 4 | AM30: =AK30-AL30 -> 24 | AN30: 14%
B32: MARCH | C32: 2019 | D32: F | E32: S | F32: S | G32: M | H32: T | I32: W | J32: T | K32: F | L32: S | M32: S | N32: M | O32: T | P32: W | Q32: T | R32: F | S32: S | T32: S | U32: M | V32: T | W32: W | X32: T | Y32: F | Z32: S | AA32: S | AB32: M | AC32: T | AD32: W | AE32: T | AF32: F | AG32: S | AH32: S
B33: GH 1 | D33: 1 | E33: 2 | F33: 3 | G33: 4 | H33: 5 | I33: 6 | J33: 7 | K33: 8 | L33: 9 | M33: 10 | N33: 11 | O33: 12 | P33: 13 | Q33: 14 | R33: 15 | S33: 16 | T33: 17 | U33: 18 | V33: 19 | W33: 20 | X33: 21 | Y33: 22 | Z33: 23 | AA33: 24 | AB33: 25 | AC33: 26 | AD33: 27 | AE33: 28 | AF33: 29 | AG33: 30 | AH33: 31
A34: 2019-03-01 | B34: Room 1 | C34: 1 double bed | F34: SJ | G34: SJ | H34: SJ | I34: SJ | J34: SJ | K34: SJ | L34: SJ | M34: SJ | N34: SJ | O34: SJ | P34: SJ | Q34: SJ | R34: SJ | S34: SJ | T34: SJ | U34: SJ | V34: SJ | W34: SJ | X34: SJ | Y34: SJ | Z34: SJ | AA34: SJ | AB34: SJ | AC34: SJ | AD34: SJ | AE34: SJ | AF34: SJ | AG34: SJ | AH34: SJ | AI34: GH1 | AJ34: Room 1 | AK34: =COUNTA(D33:AH33) -> 31 | AL34: =COUNTA(D34:AH34) -> 29 | AM34: =AK34-AL34 -> 2 | AN34: 94%
A35: 2019-03-01 | B35: Room 2 | C35: 1 Single bed | AI35: GH1 | AJ35: Room 2 | AK35: =$AK$34 -> 31 | AL35: =COUNTA(D35:AH35) -> 0 | AM35: =AK35-AL35 -> 31 | AN35: 0%
B36: GH2
A37: 2019-03-01 | B37: Room 1 | C37: 1 double bed | D37: JP | E37: JP | F37: JP | G37: JP | H37: JP | I37: JP | J37: JP | K37: JP | L37: JP | M37: JP | N37: JP | O37: JP | P37: JP | Q37: JP | R37: JP | S37: JP | T37: JP | U37: JP | V37: JP | W37: JP | X37: JP | Y37: JP | Z37: JP | AA37: JP | AB37: JP | AC37: JP | AD37: JP | AE37: JP | AF37: JP | AG37: JP | AH37: JP | AI37: GH2 | AJ37: Room 1 | AK37: =$AK$34 -> 31 | AL37: =COUNTA(D37:AH37) -> 31 | AM37: =AK37-AL37 -> 0 | AN37: 100%
A38: 2019-03-01 | B38: Room 2 | C38: 1 single bed | H38: LH | I38: LH | J38: LH | O38: LH | P38: LH | Q38: LH | V38: LH | W38: LH | X38: LH | AC38: LH | AD38: LH | AE38: LH | AI38: GH2 | AJ38: Room 2 | AK38: =$AK$34 -> 31 | AL38: =COUNTA(D38:AH38) -> 12 | AM38: =AK38-AL38 -> 19 | AN38: 39%
A39: 2019-03-01 | B39: Room 3 | C39: 1 single bed | D39: AO | E39: AO | F39: AO | G39: AO | H39: AO | I39: AO | J39: AO | K39: AO | L39: AO | M39: AO | N39: AO | O39: AO | P39: AO | Q39: AO | R39: AO | S39: AO | T39: AO | U39: AO | V39: AO | W39: AO | X39: AO | Y39: AO | Z39: AO | AA39: AO | AB39: AO | AC39: AO | AD39: AO | AE39: AO | AF39: AO | AG39: AO | AH39: AO | AI39: GH2 | AJ39: Room 3 | AK39: =$AK$34 -> 31 | AL39: =COUNTA(D39:AH39) -> 31 | AM39: =AK39-AL39 -> 0 | AN39: 100%
B40: GH3
A41: 2019-03-01 | B41: Room 1 | C41: 1 double bed | I41: TZ | J41: TZ | AI41: GH3 | AJ41: Room 1 | AK41: =$AK$34 -> 31 | AL41: =COUNTA(D41:AH41) -> 2 | AM41: =AK41-AL41 -> 29 | AN41: 6%
A42: 2019-03-01 | B42: Room 2 | C42: 1 single bed | AI42: GH3 | AJ42: Room 2 | AK42: =$AK$34 -> 31 | AL42: =COUNTA(D42:AH42) -> 0 | AM42: =AK42-AL42 -> 31 | AN42: 0%
B44: APRIL | C44: 2019 | D44: M | E44: T | F44: W | G44: T | H44: F | I44: S | J44: S | K44: M | L44: T | M44: W | N44: T | O44: F | P44: S | Q44: S | R44: M | S44: T | T44: W | U44: T | V44: F | W44: S | X44: S | Y44: M | Z44: T | AA44: W | AB44: T | AC44: F | AD44: S | AE44: S | AF44: M | AG44: T
B45: GH 1 | D45: 1 | E45: 2 | F45: 3 | G45: 4 | H45: 5 | I45: 6 | J45: 7 | K45: 8 | L45: 9 | M45: 10 | N45: 11 | O45: 12 | P45: 13 | Q45: 14 | R45: 15 | S45: 16 | T45: 17 | U45: 18 | V45: 19 | W45: 20 | X45: 21 | Y45: 22 | Z45: 23 | AA45: 24 | AB45: 25 | AC45: 26 | AD45: 27 | AE45: 28 | AF45: 29 | AG45: 30
A46: 2019-04-01 | B46: Room 1 | C46: 1 double bed | D46: SJ | E46: SJ | F46: SJ | G46: SJ | N46: SJ | O46: SJ | P46: SJ | Q46: SJ | R46: SJ | S46: SJ | T46: SJ | U46: SJ | V46: SJ | W46: SJ | X46: SJ | Y46: SJ | Z46: SJ | AA46: SJ | AB46: SJ | AC46: SJ | AD46: SJ | AE46: SJ | AF46: SJ | AG46: SJ | AI46: GH1 | AJ46: Room 1 | AK46: =COUNTA(D45:AG45) -> 30 | AL46: =COUNTA(D46:AG46) -> 24 | AM46: =AK46-AL46 -> 6 | AN46: 80%
A47: 2019-04-01 | B47: Room 2 | C47: 1 Single bed | AI47: GH1 | AJ47: Room 2 | AK47: =$AK$46 -> 30 | AL47: =COUNTA(D47:AG47) -> 0 | AM47: =AK47-AL47 -> 30 | AN47: 0%
B48: GH2
A49: 2019-04-01 | B49: Room 1 | C49: 1 double bed | D49: JP | E49: JP | F49: JP | G49: JP | H49: JP | I49: JP | J49: JP | K49: JP | L49: JP | M49: JP | N49: JP | O49: JP | P49: JP | Q49: JP | R49: JP | S49: JP | T49: JP | U49: JP | V49: JP | W49: JP | X49: JP | Y49: JP | Z49: JP | AA49: JP | AB49: JP | AC49: JP | AD49: JP | AE49: JP | AF49: JP | AG49: JP | AI49: GH2 | AJ49: Room 1 | AK49: =$AK$46 -> 30 | AL49: =COUNTA(D49:AG49) -> 30 | AM49: =AK49-AL49 -> 0 | AN49: 100%
A50: 2019-04-01 | B50: Room 2 | C50: 1 single bed | H50: LH | I50: LH | J50: LH | O50: LH | P50: LH | Q50: LH | V50: LH | W50: LH | X50: LH | AC50: LH | AD50: LH | AE50: LH | AI50: GH2 | AJ50: Room 2 | AK50: =$AK$46 -> 30 | AL50: =COUNTA(D50:AG50) -> 12 | AM50: =AK50-AL50 -> 18 | AN50: 40%
A51: 2019-04-01 | B51: Room 3 | C51: 1 single bed | D51: AO | E51: AO | F51: AO | G51: AO | H51: AO | I51: AO | J51: AO | K51: AO | L51: AO | M51: AO | N51: AO | AD51: AO | AE51: AO | AF51: AO | AG51: AO | AI51: GH2 | AJ51: Room 3 | AK51: =$AK$46 -> 30 | AL51: =COUNTA(D51:AG51) -> 15 | AM51: =AK51-AL51 -> 15 | AN51: 50%
B52: GH3
A53: 2019-04-01 | B53: Room 1 | C53: 1 double bed | AI53: GH3 | AJ53: Room 1 | AK53: =$AK$46 -> 30 | AL53: =COUNTA(D53:AG53) -> 0 | AM53: =AK53-AL53 -> 30 | AN53: 0%
A54: 2019-04-01 | B54: Room 2 | C54: 1 single bed | AI54: GH3 | AJ54: Room 2 | AK54: =$AK$46 -> 30 | AL54: =COUNTA(D54:AG54) -> 0 | AM54: =AK54-AL54 -> 30 | AN54: 0%
B56: MAY | C56: 2019 | D56: W | E56: T | F56: F | G56: S | H56: S | I56: M | J56: T | K56: W | L56: T | M56: F | N56: S | O56: S | P56: M | Q56: T | R56: W | S56: T | T56: F | U56: S | V56: S | W56: M | X56: T | Y56: W | Z56: T | AA56: F | AB56: S | AC56: S | AD56: M | AE56: T | AF56: W | AG56: T | AH56: F
B57: GH 1 | D57: 1 | E57: 2 | F57: 3 | G57: 4 | H57: 5 | I57: 6 | J57: 7 | K57: 8 | L57: 9 | M57: 10 | N57: 11 | O57: 12 | P57: 13 | Q57: 14 | R57: 15 | S57: 16 | T57: 17 | U57: 18 | V57: 19 | W57: 20 | X57: 21 | Y57: 22 | Z57: 23 | AA57: 24 | AB57: 25 | AC57: 26 | AD57: 27 | AE57: 28 | AF57: 29 | AG57: 30 | AH57: 31
A58: 2019-05-01 | B58: Room 1 | C58: 1 double bed | D58: SJ | E58: SJ | F58: SJ | G58: SJ | H58: SJ | I58: SJ | J58: SJ | K58: SJ | L58: SJ | M58: SJ | N58: SJ | O58: SJ | P58: SJ | Q58: SJ | R58: SJ | S58: SJ | T58: SJ | U58: SJ | V58: SJ | W58: SJ | X58: SJ | Y58: SJ | Z58: SJ | AA58: SJ | AB58: SJ | AC58: SJ | AD58: SJ | AI58: GH1 | AJ58: Room 1 | AK58: =COUNTA(D57:AH57) -> 31 | AL58: =COUNTA(D58:AH58) -> 27 | AM58: =AK58-AL58 -> 4 | AN58: 87%
A59: 2019-05-01 | B59: Room 2 | C59: 1 Single bed | Y59: ST | AD59: ST | AE59: ST | AI59: GH1 | AJ59: Room 2 | AK59: =$AK$58 -> 31 | AL59: =COUNTA(D59:AH59) -> 3 | AM59: =AK59-AL59 -> 28 | AN59: 10%
B60: GH2
A61: 2019-05-01 | B61: Room 1 | C61: 1 double bed | S61: JP | T61: JP | U61: JP | V61: JP | W61: JP | X61: JP | Y61: JP | Z61: JP | AD61: JP | AE61: JP | AF61: JP | AG61: JP | AH61: JP | AI61: GH2 | AJ61: Room 1 | AK61: =$AK$58 -> 31 | AL61: =COUNTA(D61:AH61) -> 13 | AM61: =AK61-AL61 -> 18 | AN61: 42%
A62: 2019-05-01 | B62: Room 2 | C62: 1 single bed | W62: OH | X62: OH | Y62: OH | AD62: LH | AE62: BB | AI62: GH2 | AJ62: Room 2 | AK62: =$AK$58 -> 31 | AL62: =COUNTA(D62:AH62) -> 5 | AM62: =AK62-AL62 -> 26 | AN62: 16%
A63: 2019-05-01 | B63: Room 3 | C63: 1 single bed | D63: AO | E63: AO | F63: AO | G63: AO | H63: AO | I63: AO | J63: AO | K63: AO | L63: AO | M63: AO | N63: AO | O63: AO | P63: AO | Q63: AO | R63: AO | S63: AO | T63: AO | U63: AO | V63: AO | W63: AO | X63: AO | Y63: AO | Z63: AO | AA63: AO | AB63: AO | AC63: AO | AD63: AO | AE63: AO | AF63: AO | AG63: AO | AH63: AO | AI63: GH2 | AJ63: Room 3 | AK63: =$AK$58 -> 31 | AL63: 31 | AM63: =AK63-AL63 -> 0 | AN63: 100%
B64: GH3
A65: 2019-05-01 | B65: Room 1 | C65: 1 double bed | D65: CC | E65: CC | F65: CC | G65: CC | H65: CC | I65: CC | J65: CC | K65: CC | L65: CC | M65: CC | N65: CC | O65: CC | P65: CC | Q65: CC | R65: CC | S65: CC | T65: CC | U65: CC | V65: CC | W65: CC | X65: CC | Y65: CC | Z65: CC | AA65: CC | AB65: CC | AC65: CC | AD65: CC | AE65: CC | AF65: CC | AG65: CC | AH65: CC | AI65: GH3 | AJ65: Room 1 | AK65: =$AK$58 -> 31 | AL65: =COUNTA(D65:AH65) -> 31 | AM65: =AK65-AL65 -> 0 | AN65: 100%
A66: 2019-05-01 | B66: Room 2 | C66: 2 single beds | AI66: GH3 | AJ66: Room 2 | AK66: =$AK$58 -> 31 | AL66: =COUNTA(D66:AH66) -> 0 | AM66: =AK66-AL66 -> 31 | AN66: 100%
B68: JUNE | C68: 2019 | D68: S | E68: S | F68: M | G68: T | H68: W | I68: T | J68: F | K68: S | L68: S | M68: M | N68: T | O68: W | P68: T | Q68: F | R68: S | S68: S | T68: M | U68: T | V68: W | W68: T | X68: F | Y68: S | Z68: S | AA68: M | AB68: T | AC68: W | AD68: T | AE68: F | AF68: S | AG68: S
B69: GH 1 | D69: 1 | E69: 2 | F69: 3 | G69: 4 | H69: 5 | I69: 6 | J69: 7 | K69: 8 | L69: 9 | M69: 10 | N69: 11 | O69: 12 | P69: 13 | Q69: 14 | R69: 15 | S69: 16 | T69: 17 | U69: 18 | V69: 19 | W69: 20 | X69: 21 | Y69: 22 | Z69: 23 | AA69: 24 | AB69: 25 | AC69: 26 | AD69: 27 | AE69: 28 | AF69: 29 | AG69: 30
A70: 2019-06-01 | B70: Room 1 | C70: 1 double bed | T70: SJ | U70: SJ | V70: SJ | W70: SJ | X70: SJ | Y70: SJ | Z70: SJ | AA70: SJ | AB70: SJ | AC70: SJ | AD70: SJ | AE70: SJ | AF70: SJ | AG70: SJ | AI70: GH1 | AJ70: Room 1 | AK70: =COUNTA(D69:AG69) -> 30 | AL70: =COUNTA(D70:AH70) -> 14 | AM70: =AK70-AL70 -> 16 | AN70: 47%
A71: 2019-06-01 | B71: Room 2 | C71: 1 Single bed | N71: OH | O71: OH | AA71: ST | AI71: GH1 | AJ71: Room 2 | AK71: =$AK$70 -> 30 | AL71: =COUNTA(D71:AH71) -> 3 | AM71: =AK71-AL71 -> 27 | AN71: 10%
B72: GH2
A73: 2019-06-01 | B73: Room 1 | C73: 1 double bed | D73: JP | E73: JP | F73: JP | G73: JP | H73: JP | I73: JP | J73: JP | K73: JP | L73: JP | N73: JP | O73: JP | P73: JP | Q73: JP | R73: JP | S73: JP | T73: JP | U73: JP | V73: JP | W73: JP | X73: JP | Y73: JP | Z73: JP | AA73: JP | AB73: JP | AC73: JP | AD73: JP | AE73: JP | AF73: JP | AG73: JP | AI73: GH2 | AJ73: Room 1 | AK73: =$AK$70 -> 30 | AL73: =COUNTA(D73:AH73) -> 29 | AM73: =AK73-AL73 -> 1 | AN73: 97%
A74: 2019-06-01 | B74: Room 2 | C74: 1 single bed | AA74: BB | AB74: BB | AI74: GH2 | AJ74: Room 2 | AK74: =$AK$70 -> 30 | AL74: =COUNTA(D74:AH74) -> 2 | AM74: =AK74-AL74 -> 28 | AN74: 7%
A75: 2019-06-01 | B75: Room 3 | C75: 1 single bed | D75: AO | E75: AO | F75: AO | G75: AO | H75: AO | I75: AO | J75: AO | K75: AO | L75: AO | M75: AO | N75: AO | O75: AO | P75: AO | Q75: AO | R75: AO | S75: AO | T75: AO | U75: AO | V75: AO | W75: AO | X75: AO | Y75: AO | Z75: AO | AA75: AO | AB75: AO | AC75: AO | AD75: AO | AE75: AO | AF75: AO | AG75: AO | AI75: GH2 | AJ75: Room 3 | AK75: =$AK$70 -> 30 | AL75: =COUNTA(D75:AH75) -> 30 | AM75: =AK75-AL75 -> 0 | AN75: 100%
B76: GH3
A77: 2019-06-01 | B77: Room 1 | C77: 1 double bed | D77: CC | E77: CC | F77: CC | G77: CC | H77: CC | I77: CC | J77: CC | K77: CC | L77: CC | M77: CC | N77: CC | O77: CC | P77: CC | Q77: CC | R77: CC | S77: CC | T77: CC | U77: CC | V77: CC | W77: CC | X77: CC | Y77: CC | Z77: CC | AA77: CC | AB77: CC | AC77: CC | AD77: CC | AE77: CC | AF77: CC | AG77: CC | AI77: GH3 | AJ77: Room 1 | AK77: =$AK$70 -> 30 | AL77: =COUNTA(D77:AH77) -> 30 | AM77: =AK77-AL77 -> 0 | AN77: 100%
A78: 2019-06-01 | B78: Room 2 | C78: 2 single beds | D78: LS | E78: LS | F78: LS | G78: LS | H78: LS | I78: LS | J78: LS | K78: LS | L78: LS | M78: LS | N78: LS | O78: LS | P78: LS | Q78: LS | R78: LS | S78: LS | T78: LS | U78: LS | V78: LS | W78: LS | X78: LS | Y78: LS | Z78: LS | AA78: LS | AB78: LS | AC78: LS | AD78: LS | AE78: LS | AF78: LS | AG78: LS | AI78: GH3 | AJ78: Room 2 | AK78: =$AK$70 -> 30 | AL78: =COUNTA(D78:AH78) -> 30 | AM78: =AK78-AL78 -> 0 | AN78: 100%
B80: JULY | C80: 2019 | D80: M | E80: T | F80: W | G80: T | H80: F | I80: S | J80: S | K80: M | L80: T | M80: W | N80: T | O80: F | P80: S | Q80: S | R80: M | S80: T | T80: W | U80: T | V80: F | W80: S | X80: S | Y80: M | Z80: T | AA80: W | AB80: T | AC80: F | AD80: S | AE80: S | AF80: M | AG80: T | AH80: W
B81: GH 1 | D81: 1 | E81: 2 | F81: 3 | G81: 4 | H81: 5 | I81: 6 | J81: 7 | K81: 8 | L81: 9 | M81: 10 | N81: 11 | O81: 12 | P81: 13 | Q81: 14 | R81: 15 | S81: 16 | T81: 17 | U81: 18 | V81: 19 | W81: 20 | X81: 21 | Y81: 22 | Z81: 23 | AA81: 24 | AB81: 25 | AC81: 26 | AD81: 27 | AE81: 28 | AF81: 29 | AG81: 30 | AH81: 31
A82: 2019-07-01 | B82: Room 1 | C82: 1 double bed | D82: SJ | E82: SJ | F82: SJ | G82: SJ | H82: SJ | I82: SJ | J82: SJ | K82: SJ | L82: SJ | M82: SJ | N82: SJ | O82: SJ | P82: SJ | Q82: SJ | R82: SJ | S82: SJ | T82: SJ | U82: SJ | V82: SJ | W82: SJ | X82: SJ | Y82: SJ | Z82: SJ | AA82: SJ | AB82: SJ | AC82: SJ | AD82: SJ | AE82: SJ | AF82: SJ | AG82: SJ | AH82: SJ | AI82: GH1 | AJ82: Room 1 | AK82: =COUNTA(D81:AH81) -> 31 | AL82: =COUNTA(D82:AH82) -> 31 | AM82: =AK82-AL82 -> 0 | AN82: 100%
A83: 2019-07-01 | B83: Room 2 | C83: 1 Single bed | AA83: LH | AB83: LH | AC83: LH | AH83: LH | AI83: GH1 | AJ83: Room 2 | AK83: =$AK$82 -> 31 | AL83: =COUNTA(D83:AH83) -> 4 | AM83: =AK83-AL83 -> 27 | AN83: 13%
B84: GH2
A85: 2019-07-01 | B85: Room 1 | C85: 1 double bed | D85: JP | E85: JP | F85: JP | G85: JP | H85: JP | I85: JP | J85: JP | K85: JP | L85: JP | M85: JP | N85: JP | O85: JP | P85: JP | Q85: JP | R85: JP | S85: JP | T85: JP | U85: JP | V85: JP | W85: JP | X85: JP | Y85: JP | Z85: JP | AA85: JP | AB85: JP | AD85: AG | AE85: AG | AF85: AG | AG85: AG | AH85: AG | AI85: GH2 | AJ85: Room 1 | AK85: =$AK$82 -> 31 | AL85: =COUNTA(D85:AH85) -> 30 | AM85: =AK85-AL85 -> 1 | AN85: 97%
A86: 2019-07-01 | B86: Room 2 | C86: 1 single bed | AC86: ST | AD86: ST | AE86: ST | AG86: BB | AH86: BB | AI86: GH2 | AJ86: Room 2 | AK86: =$AK$82 -> 31 | AL86: =COUNTA(D86:AH86) -> 5 | AM86: =AK86-AL86 -> 26 | AN86: 16%
A87: 2019-07-01 | B87: Room 3 | C87: 1 single bed | S87: AG | T87: AG | U87: AG | V87: AG | W87: AG | X87: AG | Y87: AG | Z87: AG | AA87: AG | AB87: AG | AC87: AG | AG87: DR | AH87: DR | AI87: GH2 | AJ87: Room 3 | AK87: =$AK$82 -> 31 | AL87: =COUNTA(D87:AH87) -> 13 | AM87: =AK87-AL87 -> 18 | AN87: 42%
B88: GH3
A89: 2019-07-01 | B89: Room 1 | C89: 1 double bed | D89: CC | E89: CC | F89: CC | G89: CC | H89: CC | I89: CC | J89: CC | K89: CC | L89: CC | M89: CC | N89: CC | Z89: BB | AA89: BB | AB89: BB | AG89: CC | AH89: CC | AI89: GH3 | AJ89: Room 1 | AK89: =$AK$82 -> 31 | AL89: =COUNTA(D89:AH89) -> 16 | AM89: =AK89-AL89 -> 15 | AN89: 52%
A90: 2019-07-01 | B90: Room 2 | C90: 2 single beds | Z90: DR | AA90: DR | AB90: DR | AC90: DR | AD90: DR | AE90: DR | AI90: GH3 | AJ90: Room 2 | AK90: =$AK$82 -> 31 | AL90: =COUNTA(D90:AH90) -> 6 | AM90: =AK90-AL90 -> 25 | AN90: 19%
B92: AUG | C92: 2019 | D92: T | E92: F | F92: S | G92: S | H92: M | I92: T | J92: W | K92: T | L92: F | M92: S | N92: S | O92: M | P92: T | Q92: W | R92: T | S92: F | T92: S | U92: S | V92: M | W92: T | X92: W | Y92: T | Z92: F | AA92: S | AB92: S | AC92: M | AD92: T | AE92: W | AF92: T | AG92: F | AH92: S
B93: GH 1 | D93: 1 | E93: 2 | F93: 3 | G93: 4 | H93: 5 | I93: 6 | J93: 7 | K93: 8 | L93: 9 | M93: 10 | N93: 11 | O93: 12 | P93: 13 | Q93: 14 | R93: 15 | S93: 16 | T93: 17 | U93: 18 | V93: 19 | W93: 20 | X93: 21 | Y93: 22 | Z93: 23 | AA93: 24 | AB93: 25 | AC93: 26 | AD93: 27 | AE93: 28 | AF93: 29 | AG93: 30 | AH93: 31
A94: 2019-08-01 | B94: Room 1 | C94: 1 double bed | D94: SJ | E94: SJ | F94: SJ | G94: SJ | H94: SJ | I94: SJ | J94: SJ | K94: SJ | L94: SJ | M94: SJ | N94: SJ | O94: SJ | P94: SJ | Q94: SJ | R94: SJ | S94: SJ | T94: SJ | U94: SJ | V94: SJ | W94: SJ | X94: SJ | Y94: SJ | Z94: SJ | AA94: SJ | AB94: SJ | AC94: SJ | AD94: SJ | AI94: GH1 | AJ94: Room 1 | AK94: =COUNTA(D93:AH93) -> 31 | AL94: =COUNTA(D94:AH94) -> 27 | AM94: =AK94-AL94 -> 4 | AN94: 87%
A95: 2019-08-01 | B95: Room 2 | C95: 1 Single bed | V95: LH | W95: LH | AB95: LH | AC95: LH | AD95: LH | AE95: LH | AF95: LH | AI95: GH1 | AJ95: Room 2 | AK95: =$AK$94 -> 31 | AL95: =COUNTA(D95:AH95) -> 7 | AM95: =AK95-AL95 -> 24 | AN95: 23%
B96: GH2
A97: 2019-08-01 | B97: Room 1 | C97: 1 double bed | D97: AG | E97: AG | F97: AG | G97: AG | H97: AG | I97: AG | J97: AG | V97: AG | W97: AG | X97: AG | Y97: AG | Z97: AG | AA97: AG | AB97: AG | AC97: AG | AD97: AG | AE97: AG | AF97: AG | AG97: AG | AH97: AG | AI97: GH2 | AJ97: Room 1 | AK97: =$AK$94 -> 31 | AL97: =COUNTA(D97:AH97) -> 20 | AM97: =AK97-AL97 -> 11 | AN97: 65%
A98: 2019-08-01 | B98: Room 2 | C98: 1 single bed | U98: MP | V98: MP | W98: MP | X98: MP | Y98: MP | Z98: MP | AA98: MP | AB98: MP | AC98: MP | AD98: MP | AE98: MP | AF98: MP | AG98: MP | AH98: MP | AI98: GH2 | AJ98: Room 2 | AK98: 31 | AL98: =COUNTA(D98:AH98) -> 14 | AM98: =AK98-AL98 -> 17 | AN98: 45%
A99: 2019-08-01 | B99: Room 3 | C99: 1 single bed | U99: GL | V99: GL | W99: GL | AB99: DG | AC99: DG | AD99: DG | AE99: DG | AF99: DG | AG99: DG | AI99: GH2 | AJ99: Room 3 | AK99: 31 | AL99: =COUNTA(D99:AH99) -> 9 | AM99: =AK99-AL99 -> 22 | AN99: 29%
B100: GH3
A101: 2019-08-01 | B101: Room 1 | C101: 1 double bed | D101: CC | E101: CC | F101: CC | G101: CC | H101: CC | I101: CC | J101: CC | K101: CC | L101: CC | M101: CC | N101: CC | O101: CC | P101: CC | Q101: CC | R101: CC | S101: CC | T101: CC | U101: CC | V101: CC | W101: CC | X101: CC | Y101: CC | Z101: CC | AA101: CC | AB101: CC | AC101: CC | AD101: CC | AE101: CC | AF101: CC | AG101: CC | AH101: CC | AI101: GH3 | AJ101: Room 1 | AK101: =$AK$94 -> 31 | AL101: =COUNTA(D101:AH101) -> 31 | AM101: =AK101-AL101 -> 0 | AN101: 100%
A102: 2019-08-01 | B102: Room 2 | C102: 2 single beds | X102: NA | Y102: NA | Z102: NA | AA102: NA | AB102: NA | AC102: NA | AD102: NA | AE102: NA | AF102: NA | AG102: NA | AI102: GH3 | AJ102: Room 2 | AK102: 31 | AL102: =COUNTA(D102:AH102) -> 10 | AM102: =AK102-AL102 -> 21 | AN102: 32%
B104: SEP | C104: 2019 | D104: S | E104: M | F104: T | G104: W | H104: T | I104: F | J104: S | K104: S | L104: M | M104: T | N104: W | O104: T | P104: F | Q104: S | R104: S | S104: M | T104: T | U104: W | V104: T | W104: F | X104: S | Y104: S | Z104: M | AA104: T | AB104: W | AC104: T | AD104: F | AE104: S | AF104: S | AG104: M
B105: GH 1 | D105: 1 | E105: 2 | F105: 3 | G105: 4 | H105: 5 | I105: 6 | J105: 7 | K105: 8 | L105: 9 | M105: 10 | N105: 11 | O105: 12 | P105: 13 | Q105: 14 | R105: 15 | S105: 16 | T105: 17 | U105: 18 | V105: 19 | W105: 20 | X105: 21 | Y105: 22 | Z105: 23 | AA105: 24 | AB105: 25 | AC105: 26 | AD105: 27 | AE105: 28 | AF105: 29 | AG105: 30
A106: 2019-09-01 | B106: Room 1 | C106: 1 double bed | U106: SJ | V106: SJ | W106: SJ | X106: SJ | Y106: SJ | Z106: SJ | AA106: SJ | AB106: SJ | AC106: SJ | AD106: SJ | AE106: SJ | AF106: SJ | AG106: SJ | AI106: GH1 | AJ106: Room 1 | AK106: =COUNTA(D105:AG105) -> 30 | AL106: =COUNTA(D106:AH106) -> 13 | AM106: =AK106-AL106 -> 17 | AN106: 43%
A107: 2019-09-01 | B107: Room 2 | C107: 1 Single bed | L107: GL | M107: GL | N107: GL | O107: GL | AI107: GH1 | AJ107: Room 2 | AK107: =$AK$106 -> 30 | AL107: =COUNTA(D107:AH107) -> 4 | AM107: =AK107-AL107 -> 26 | AN107: 13%
B108: GH2
A109: 2019-09-01 | B109: Room 1 | C109: 1 double bed | D109: AG | E109: AG | F109: AG | G109: AG | H109: AG | I109: AG | J109: AG | K109: AG | L109: AG | M109: AG | N109: AG | O109: AG | P109: AG | Q109: AG | R109: AG | S109: AG | T109: AG | U109: AG | AA109: AG | AB109: AG | AC109: AG | AD109: AG | AE109: AG | AF109: AG | AG109: AG | AI109: GH2 | AJ109: Room 1 | AK109: =$AK$106 -> 30 | AL109: =COUNTA(D109:AH109) -> 25 | AM109: =AK109-AL109 -> 5 | AN109: 83%
A110: 2019-09-01 | B110: Room 2 | C110: 2 single beds | D110: MP | E110: MP | F110: MP | G110: MP | H110: MP | I110: MP | J110: MP | K110: MP | L110: MP | M110: MP | N110: MP | O110: MP | P110: MP | Q110: MP | R110: MP | S110: MP | T110: MP | U110: MP | V110: MP | W110: MP | X110: MP | Y110: MP | Z110: MP | AA110: MP | AB110: MP | AC110: MP | AD110: MP | AE110: MP | AF110: MP | AG110: MP | AI110: GH2 | AJ110: Room 2 | AK110: =$AK$106 -> 30 | AL110: =COUNTA(D110:AH110) -> 30 | AM110: =AK110-AL110 -> 0 | AN110: 100%
A111: 2019-09-01 | B111: Room 3 | C111: 1 single bed | L111: OH | M111: OH | N111: OH | O111: OH | AI111: GH2 | AJ111: Room 3 | AK111: =$AK$106 -> 30 | AL111: =COUNTA(D111:AH111) -> 4 | AM111: =AK111-AL111 -> 26 | AN111: 13%
B112: GH3
A113: 2019-09-01 | B113: Room 1 | C113: 1 double bed | G113: CC | H113: CC | L113: BB | M113: BB | N113: BB | S113: CC | T113: CC | U113: CC | V113: CC | AB113: CC | AC113: CC | AI113: GH3 | AJ113: Room 1 | AK113: =$AK$106 -> 30 | AL113: =COUNTA(D113:AH113) -> 11 | AM113: =AK113-AL113 -> 19 | AN113: 37%
A114: 2019-09-01 | B114: Room 2 | C114: 2 single beds | L114: DR | M114: DR | N114: DR | AI114: GH3 | AJ114: Room 2 | AK114: =$AK$106 -> 30 | AL114: =COUNTA(D114:AH114) -> 3 | AM114: =AK114-AL114 -> 27 | AN114: 10%
B116: OCT | C116: 2019 | D116: T | E116: W | F116: T | G116: F | H116: S | I116: S | J116: M | K116: T | L116: W | M116: T | N116: F | O116: S | P116: S | Q116: M | R116: T | S116: W | T116: T | U116: F | V116: S | W116: S | X116: M | Y116: T | Z116: W | AA116: T | AB116: F | AC116: S | AD116: S | AE116: M | AF116: T | AG116: W | AH116: W
B117: GH 1 - Tiba 6th Floor | D117: 1 | E117: 2 | F117: 3 | G117: 4 | H117: 5 | I117: 6 | J117: 7 | K117: 8 | L117: 9 | M117: 10 | N117: 11 | O117: 12 | P117: 13 | Q117: 14 | R117: 15 | S117: 16 | T117: 17 | U117: 18 | V117: 19 | W117: 20 | X117: 21 | Y117: 22 | Z117: 23 | AA117: 24 | AB117: 25 | AC117: 26 | AD117: 27 | AE117: 28 | AF117: 29 | AG117: 30 | AH117: 31
A118: 2019-10-01 | B118: Room 1 | C118: 1 double bed | D118: SJ | E118: SJ | J118: SJ | K118: SJ | L118: SJ | M118: SJ | N118: SJ | O118: SJ | P118: SJ | Q118: SJ | R118: SJ | S118: SJ | T118: SJ | U118: SJ | V118: SJ | W118: SJ | X118: SJ | Y118: SJ | Z118: SJ | AA118: SJ | AB118: SJ | AC118: SJ | AD118: SJ | AE118: SJ | AF118: SJ | AG118: SJ | AH118: SJ | AI118: GH1 | AJ118: Room 1 | AK118: =COUNTA(D117:AH117) -> 31 | AL118: =COUNTA(D118:AH118) -> 27 | AM118: =AK118-AL118 -> 4 | AN118: 87%
B119: GH2 - Tiba 5th Floor
A120: 2019-10-01 | B120: Room 1 | C120: 1 double bed | D120: AG | E120: AG | F120: AG | G120: AG | H120: AG | I120: AG | J120: AG | K120: AG | L120: AG | M120: AG | N120: AG | O120: AG | P120: AG | Q120: AG | R120: AG | S120: AG | T120: AG | U120: AG | V120: AG | W120: AG | X120: AG | Y120: AG | Z120: AG | AA120: AG | AB120: AG | AC120: AG | AD120: AG | AE120: AG | AF120: AG | AG120: AG | AH120: AG | AI120: GH2 | AJ120: Room 1 | AK120: =$AK$118 -> 31 | AL120: =COUNTA(D120:AH120) -> 31 | AM120: =AK120-AL120 -> 0 | AN120: 100%
A121: 2019-10-01 | B121: Room 2 | C121: 1 single bed | D121: MP | E121: MP | F121: MP | G121: MP | H121: MP | I121: MP | J121: MP | K121: MP | L121: MP | M121: MP | N121: MP | O121: MP | P121: MP | Q121: MP | R121: MP | S121: MP | T121: MP | AI121: GH2 | AJ121: Room 2 | AK121: =$AK$118 -> 31 | AL121: =COUNTA(D121:AH121) -> 17 | AM121: =AK121-AL121 -> 14 | AN121: 55%
A122: 2019-10-01 | B122: Room 3 | C122: 2 single beds | E122: GL | F122: GL | G122: GL | H122: GL | I122: GL | J122: GL | K122: GL | L122: GL | M122: GL | AE122: OH | AF122: OH | AG122: OH | AH122: OH | AI122: GH2 | AJ122: Room 3 | AK122: =$AK$118 -> 31 | AL122: =COUNTA(D122:AH122) -> 13 | AM122: =AK122-AL122 -> 18 | AN122: 48%
B123: GH3 - Tiba 6th Floor
A124: 2019-10-01 | B124: Room 1 | C124: 1 double bed | E124: CC | F124: CC | P124: CC | Q124: CC | R124: CC | S124: CC | T124: CC | U124: CC | Y124: CC | Z124: CC | AD124: CC | AE124: CC | AF124: CC | AG124: CC | AH124: CC | AI124: GH3 | AJ124: Room 1 | AK124: =$AK$118 -> 31 | AL124: =COUNTA(D124:AH124) -> 15 | AM124: =AK124-AL124 -> 16 | AN124: 48%
A125: 2019-10-01 | B125: Room 2 | C125: 1 single bed | AE125: GL | AF125: GL | AI125: GH3 | AJ125: Room 2 | AK125: =$AK$118 -> 31 | AL125: =COUNTA(D125:AH125) -> 2 | AM125: =AK125-AL125 -> 29 | AN125: 6%
B127: NOV | C127: 2019 | D127: F | E127: S | F127: S | G127: M | H127: T | I127: W | J127: T | K127: F | L127: S | M127: S | N127: M | O127: T | P127: W | Q127: T | R127: F | S127: S | T127: S | U127: M | V127: T | W127: W | X127: T | Y127: F | Z127: S | AA127: S | AB127: M | AC127: T | AD127: W | AE127: T | AF127: F | AG127: S
B128: GH 1 - Tiba 6th Floor | D128: 1 | E128: 2 | F128: 3 | G128: 4 | H128: 5 | I128: 6 | J128: 7 | K128: 8 | L128: 9 | M128: 10 | N128: 11 | O128: 12 | P128: 13 | Q128: 14 | R128: 15 | S128: 16 | T128: 17 | U128: 18 | V128: 19 | W128: 20 | X128: 21 | Y128: 22 | Z128: 23 | AA128: 24 | AB128: 25 | AC128: 26 | AD128: 27 | AE128: 28 | AF128: 29 | AG128: 30
A129: 2019-11-01 | B129: Room 1 | C129: 1 double bed | D129: SJ | E129: SJ | F129: SJ | G129: SJ | K129: SJ | L129: SJ | M129: SJ | N129: SJ | O129: SJ | P129: SJ | Q129: SJ | R129: SJ | S129: SJ | T129: SJ | U129: SJ | V129: SJ | W129: SJ | X129: SJ | Y129: SJ | Z129: SJ | AA129: SJ | AB129: SJ | AC129: SJ | AD129: SJ | AE129: SJ | AF129: SJ | AG129: SJ | AI129: GH1 | AJ129: Room 1 | AK129: =COUNTA(D128:AG128) -> 30 | AL129: =COUNTA(D129:AH129) -> 27 | AM129: =AK129-AL129 -> 3 | AN129: 90%
B130: GH2 - Tiba 5th Floor
A131: 2019-11-01 | B131: Room 1 | C131: 1 double bed | N131: AG | O131: AG | P131: AG | Q131: AG | R131: AG | S131: AG | T131: AG | U131: AG | V131: AG | W131: AG | X131: AG | Y131: AG | Z131: AG | AA131: AG | AB131: AG | AC131: AG | AD131: AG | AI131: GH2 | AJ131: Room 1 | AK131: =$AK$129 -> 30 | AL131: =COUNTA(D131:AH131) -> 17 | AM131: =AK131-AL131 -> 13 | AN131: 57%
A132: 2019-11-01 | B132: Room 2 | C132: 1 single bed | H132: AM | I132: AM | J132: AM | K132: AM | L132: AM | M132: AM | N132: AM | O132: AM | P132: AM | Q132: AM | R132: AM | S132: AM | T132: AM | U132: AM | V132: AM | W132: AM | X132: AM | Y132: AM | Z132: AM | AA132: AM | AB132: AM | AC132: AM | AD132: AM | AE132: AM | AF132: AM | AG132: AM | AI132: GH2 | AJ132: Room 2 | AK132: =$AK$129 -> 30 | AL132: =COUNTA(D132:AH132) -> 26 | AM132: =AK132-AL132 -> 4 | AN132: 87%
A133: 2019-11-01 | B133: Room 3 | C133: 2 single beds | M133: MB | N133: MB | O133: MB | P133: MB | Q133: MB | AC133: OH | AD133: OH | AE133: OH | AI133: GH2 | AJ133: Room 3 | AK133: =$AK$129 -> 30 | AL133: =COUNTA(D133:AH133) -> 8 | AM133: =AK133-AL133 -> 22 | AN133: 27%
B134: GH3 - Tiba 6th Floor
A135: 2019-11-01 | B135: Room 1 | C135: 1 double bed | H135: CC | I135: CC | J135: CC | K135: CC | L135: CC | M135: CC | U135: CC | V135: CC | W135: CC | AI135: GH3 | AJ135: Room 1 | AK135: =$AK$129 -> 30 | AL135: =COUNTA(D135:AH135) -> 9 | AM135: =AK135-AL135 -> 21 | AN135: 30%
A136: 2019-11-01 | B136: Room 2 | C136: 1 single bed | AI136: GH3 | AJ136: Room 2 | AK136: =$AK$129 -> 30 | AL136: =COUNTA(D136:AH136) -> 0 | AM136: =AK136-AL136 -> 30 | AN136: 0%
B138: DEC | C138: 2019 | D138: S | E138: M | F138: T | G138: W | H138: T | I138: F | J138: S | K138: S | L138: M | M138: T | N138: W | O138: T | P138: F | Q138: S | R138: S | S138: M | T138: T | U138: W | V138: T | W138: F | X138: S | Y138: S | Z138: M | AA138: T | AB138: W | AC138: T | AD138: F | AE138: S | AF138: S | AG138: M | AH138: T
B139: GH 1 - Tiba 6th Floor | D139: 1 | E139: 2 | F139: 3 | G139: 4 | H139: 5 | I139: 6 | J139: 7 | K139: 8 | L139: 9 | M139: 10 | N139: 11 | O139: 12 | P139: 13 | Q139: 14 | R139: 15 | S139: 16 | T139: 17 | U139: 18 | V139: 19 | W139: 20 | X139: 21 | Y139: 22 | Z139: 23 | AA139: 24 | AB139: 25 | AC139: 26 | AD139: 27 | AE139: 28 | AF139: 29 | AG139: 30 | AH139: 31
A140: 2019-12-01 | B140: Room 1 | C140: 1 double bed | D140: SJ | E140: SJ | F140: SJ | M140: SJ | N140: SJ | O140: SJ | P140: SJ | Q140: SJ | R140: SJ | S140: SJ | T140: SJ | U140: SJ | V140: SJ | AI140: GH1 | AJ140: Room 1 | AK140: =COUNTA(D139:AH139) -> 31 | AL140: =COUNTA(D140:AH140) -> 13 | AM140: =AK140-AL140 -> 18 | AN140: 42%
B141: GH2 - Tiba 5th Floor
A142: 2019-12-01 | B142: Room 1 | C142: 1 double bed | G142: AG | H142: AG | I142: AG | J142: AG | K142: AG | L142: AG | M142: AG | N142: AG | O142: AG | P142: AG | Q142: AG | R142: AG | S142: AG | T142: AG | U142: AG | V142: AG | W142: AG | X142: AG | Y142: AG | Z142: AG | AI142: GH2 | AJ142: Room 1 | AK142: =$AK$140 -> 31 | AL142: =COUNTA(D142:AH142) -> 20 | AM142: =AK142-AL142 -> 11 | AN142: 65%
A143: 2019-12-01 | B143: Room 2 | C143: 1 single bed | L143: MB | M143: MB | N143: MB | O143: MB | AI143: GH2 | AJ143: Room 2 | AK143: =$AK$140 -> 31 | AL143: =COUNTA(D143:AH143) -> 4 | AM143: =AK143-AL143 -> 27 | AN143: 13%
A144: 2019-12-01 | B144: Room 3 | C144: 2 single beds | M144: OH | N144: OH | O144: OH | AI144: GH2 | AJ144: Room 3 | AK144: =$AK$140 -> 31 | AL144: =COUNTA(D144:AH144) -> 3 | AM144: =AK144-AL144 -> 28 | AN144: 10%
B145: GH3 - Tiba 6th Floor
A146: 2019-12-01 | B146: Room 1 | C146: 1 double bed | F146: CC | G146: CC | H146: CC | M146: CC | N146: CC | O146: CC | AI146: GH3 | AJ146: Room 1 | AK146: =$AK$140 -> 31 | AL146: =COUNTA(D146:AH146) -> 6 | AM146: =AK146-AL146 -> 25 | AN146: 19%
A147: 2019-12-01 | B147: Room2 | C147: 1 single bed | M147: GL | N147: GL | O147: GL | AI147: GH3 | AJ147: Room 2 | AK147: =$AK$140 -> 31 | AL147: =COUNTA(D147:AH147) -> 3 | AM147: =AK147-AL147 -> 28 | AN147: 10%
B149: JAN | C149: 2020 | D149: W | E149: T | F149: F | G149: S | H149: S | I149: M | J149: T | K149: W | L149: T | M149: F | N149: S | O149: S | P149: M | Q149: T | R149: W | S149: T | T149: F | U149: S | V149: S | W149: M | X149: T | Y149: W | Z149: T | AA149: F | AB149: S | AC149: S | AD149: M | AE149: T | AF149: W | AG149: T | AH149: F | AI149: Room | AK149: Possible Days | AL149: Busy Days | AM149: Free Days | AN149: Occupation Rate | AO149: Comments
B150: GH 1 - Tiba 6th Floor | D150: =+C150+1 -> 1 | E150: 2 | F150: 3 | G150: 4 | H150: 5 | I150: 6 | J150: 7 | K150: 8 | L150: 9 | M150: 10 | N150: 11 | O150: 12 | P150: 13 | Q150: 14 | R150: 15 | S150: 16 | T150: 17 | U150: 18 | V150: 19 | W150: 20 | X150: 21 | Y150: 22 | Z150: 23 | AA150: 24 | AB150: 25 | AC150: 26 | AD150: 27 | AE150: 28 | AF150: 29 | AG150: 30 | AH150: 31
A151: 2020-01-01 | B151: Room 1 | C151: 1 double bed | D151: SJ | E151: SJ | F151: SJ | G151: SJ | H151: SJ | I151: SJ | J151: SJ | K151: SJ | L151: SJ | M151: SJ | N151: SJ | O151: SJ | P151: SJ | Q151: SJ | R151: SJ | S151: SJ | T151: SJ | U151: SJ | V151: SJ | W151: SJ | X151: SJ | Y151: SJ | Z151: SJ | AA151: SJ | AB151: SJ | AC151: SJ | AD151: SJ | AE151: SJ | AI151: GH1 | AJ151: Room 1 | AK151: =COUNTA(D150:AH150) -> 31 | AL151: =COUNTA(D151:AH151) -> 28 | AM151: =AK151-AL151 -> 3 | AN151: =AL151/AK151 -> 90%
B152: GH2 - Tiba 5th Floor
A153: 2020-01-01 | B153: Room 1 | C153: 1 double bed | D153: AG | E153: AG | F153: AG | G153: AG | H153: AG | I153: AG | J153: AG | K153: AG | L153: AG | M153: AG | N153: AG | O153: AG | P153: AG | Q153: AG | R153: AG | S153: AG | Y153: AG | Z153: AG | AA153: AG | AB153: AG | AC153: AG | AD153: AG | AE153: AG | AF153: AG | AG153: AG | AH153: AG | AI153: GH2 | AJ153: Room 1 | AK153: =COUNTA(D149:AH149) -> 31 | AL153: =COUNTA(D153:AH153) -> 26 | AM153: =AK153-AL153 -> 5 | AN153: =AL153/AK153 -> 84%
A154: 2020-01-01 | B154: Room 2 | C154: 1 single bed | R154: OF | S154: OF | T154: OF | U154: OF | V154: OF | W154: OF | X154: OF | Y154: OF | Z154: OF | AA154: OF | AB154: OF | AC154: OF | AD154: OF | AE154: OF | AF154: OF | AG154: OF | AH154: OF | AI154: GH2 | AJ154: Room 2 | AK154: =COUNTA(D150:AH150) -> 31 | AL154: =COUNTA(D154:AH154) -> 17 | AM154: =AK154-AL154 -> 14 | AN154: =AL154/AK154 -> 55%
A155: 2020-01-01 | B155: Room 3 | C155: 2 single beds | R155: LH | S155: LH | T155: LH | AI155: GH2 | AJ155: Room 3 | AK155: =COUNTA(D150:AH150) -> 31 | AL155: =COUNTA(D155:AH155) -> 3 | AM155: =COUNTIF(C157:AG157,"") -> 26 | AN155: =AL155/AK155 -> 10%
B156: GH3 - Tiba 6th Floor
A157: 2020-01-01 | B157: Room 1 | C157: 1 double bed | P157: CC | Q157: CC | R157: CC | S157: CC | AI157: GH3 | AJ157: Room 1 | AK157: =COUNTA(D149:AH149) -> 31 | AL157: =COUNTA(D157:AH157) -> 4 | AM157: =AK157-AL157 -> 27 | AN157: =AL157/AK157 -> 13%
A158: 2020-01-01 | B158: Room 2 | C158: 1 single bed | L158: GL | M158: GL | N158: GL | O158: GL | P158: GL | Q158: GL | R158: GL | S158: GL | AI158: GH3 | AJ158: Room 2 | AK158: =COUNTA(D150:AH150) -> 31 | AL158: =COUNTA(D158:AH158) -> 8 | AM158: =AK158-AL158 -> 23 | AN158: =AL158/AK158 -> 26%
B160: FEB | C160: 2020 | D160: S | E160: S | F160: M | G160: T | H160: W | I160: T | J160: F | K160: S | L160: S | M160: M | N160: T | O160: W | P160: T | Q160: F | R160: S | S160: S | T160: M | U160: T | V160: W | W160: T | X160: F | Y160: S | Z160: S | AA160: M | AB160: T | AC160: W | AD160: T | AE160: F | AF160: S | AO160: Comments
B161: GH 1 - Tiba 6th Floor | D161: =+C161+1 -> 1 | E161: 2 | F161: 3 | G161: 4 | H161: 5 | I161: 6 | J161: 7 | K161: 8 | L161: 9 | M161: 10 | N161: 11 | O161: 12 | P161: 13 | Q161: 14 | R161: 15 | S161: 16 | T161: 17 | U161: 18 | V161: 19 | W161: 20 | X161: 21 | Y161: 22 | Z161: 23 | AA161: 24 | AB161: 25 | AC161: 26 | AD161: 27 | AE161: 28 | AF161: 29
A162: 2020-02-01 | B162: Room 1 | C162: 1 double bed | G162: SJ | H162: SJ | I162: SJ | J162: SJ | K162: SJ | L162: SJ | M162: SJ | N162: SJ | O162: SJ | P162: SJ | Q162: SJ | R162: SJ | S162: SJ | T162: SJ | U162: SJ | V162: SJ | W162: SJ | X162: SJ | Y162: SJ | Z162: SJ | AA162: SJ | AB162: SJ | AC162: SJ | AI162: GH1 | AJ162: Room 1 | AK162: =COUNTA(D161:AH161) -> 29 | AL162: =COUNTA(D162:AH162) -> 23 | AM162: =AK162-AL162 -> 6 | AN162: =AL162/AK162 -> 79%
B163: GH2 - Tiba 5th Floor
A164: 2020-02-01 | B164: Room 1 | C164: 1 double bed | D164: AG | E164: AG | F164: AG | G164: AG | H164: AG | N164: MB | O164: MB | P164: MB | AI164: GH2 | AJ164: Room 1 | AK164: =COUNTA(D160:AH160) -> 29 | AL164: =COUNTA(D164:AH164) -> 8 | AM164: =AK164-AL164 -> 21 | AN164: =AL164/AK164 -> 28%
A165: 2020-02-01 | B165: Room 2 | C165: 1 single bed | D165: OF | E165: OF | F165: OF | G165: OF | H165: OF | N165: OF | O165: OF | P165: OF | Q165: OF | R165: OF | S165: OF | T165: OF | U165: OF | V165: OF | W165: OF | X165: OF | Y165: OF | Z165: OF | AA165: OF | AB165: OF | AC165: OF | AD165: OF | AE165: OF | AF165: OF | AI165: GH2 | AJ165: Room 2 | AK165: =COUNTA(D161:AH161) -> 29 | AL165: =COUNTA(D165:AH165) -> 24 | AM165: =AK165-AL165 -> 5 | AN165: =AL165/AK165 -> 83%
A166: 2020-02-01 | B166: Room 3 | C166: 2 single beds | N166: GL | O166: GL | P166: GL | Q166: GL | R166: GL | S166: GL | T166: GL | U166: GL | V166: GL | AI166: GH2 | AJ166: Room 3 | AK166: =COUNTA(D161:AH161) -> 29 | AL166: =COUNTA(D166:AH166) -> 9 | AM166: =AK166-AL166 -> 20 | AN166: =AL166/AK166 -> 31% | AO166: 11 to 13 with Olivier
B167: GH3 - Tiba 6th Floor
A168: 2020-02-01 | B168: Room 1 | C168: 1 double bed | N168: CC | O168: CC | P168: CC | Q168: LS | R168: LS | S168: LS | T168: LS | U168: LS | V168: LS | W168: LS | X168: LS | Y168: LS | Z168: LS | AA168: LS | AB168: LS | AC168: LS | AD168: LS | AE168: LS | AF168: LS | AI168: GH3 | AJ168: Room 1 | AK168: =COUNTA(D160:AH160) -> 29 | AL168: =COUNTA(D168:AH168) -> 19 | AM168: =AK168-AL168 -> 10 | AN168: =AL168/AK168 -> 66%
A169: 2020-02-01 | B169: Room 2 | C169: 1 single bed | M169: LH | N169: LH | O169: LH | P169: LH | AI169: GH3 | AJ169: Room 2 | AK169: =COUNTA(D161:AH161) -> 29 | AL169: =COUNTA(D169:AH169) -> 4 | AM169: =AK169-AL169 -> 25 | AN169: =AL169/AK169 -> 14%
B171: MAR | C171: 2020 | D171: S | E171: M | F171: T | G171: W | H171: T | I171: F | J171: S | K171: S | L171: M | M171: T | N171: W | O171: T | P171: F | Q171: S | R171: S | S171: M | T171: T | U171: W | V171: T | W171: F | X171: S | Y171: S | Z171: M | AA171: T | AB171: W | AC171: T | AD171: F | AE171: S | AF171: S | AG171: M | AH171: T | AO171: Comments
B172: GH 1 - Tiba 6th Floor | D172: =+C172+1 -> 1 | E172: 2 | F172: 3 | G172: 4 | H172: 5 | I172: 6 | J172: 7 | K172: 8 | L172: 9 | M172: 10 | N172: 11 | O172: 12 | P172: 13 | Q172: 14 | R172: 15 | S172: 16 | T172: 17 | U172: 18 | V172: 19 | W172: 20 | X172: 21 | Y172: 22 | Z172: 23 | AA172: 24 | AB172: 25 | AC172: 26 | AD172: 27 | AE172: 28 | AF172: 29 | AG172: 30 | AH172: 31
A173: 2020-03-01 | B173: Room 1 | C173: 1 double bed | E173: SJ | F173: SJ | G173: SJ | H173: SJ | I173: SJ | J173: SJ | K173: SJ | L173: SJ | M173: SJ | N173: SJ | O173: SJ | P173: SJ | Q173: SJ | AI173: GH1 | AJ173: Room 1 | AK173: =COUNTA(D172:AH172) -> 31 | AL173: =COUNTA(D173:AH173) -> 13 | AM173: =AK173-AL173 -> 18 | AN173: =AL173/AK173 -> 42%
B174: GH2 - Tiba 5th Floor
A175: 2020-03-01 | B175: Room 1 | C175: 1 double bed | D175: AG | E175: AG | F175: AG | G175: AG | H175: AG | I175: AG | J175: AG | K175: AG | L175: AG | M175: AG | N175: AG | O175: AG | P175: AG | Q175: AG | R175: AG | S175: AG | T175: AG | U175: AG | V175: AG | W175: AG | X175: AG | Y175: AG | Z175: AG | AA175: AG | AB175: AG | AC175: AG | AD175: AG | AE175: AG | AF175: AG | AG175: AG | AH175: AG | AI175: GH2 | AJ175: Room 1 | AK175: =COUNTA(D171:AH171) -> 31 | AL175: =COUNTA(D175:AH175) -> 31 | AM175: =AK175-AL175 -> 0 | AN175: =AL175/AK175 -> 100%
A176: 2020-03-01 | B176: Room 2 | C176: 1 single bed | D176: OF | E176: OF | F176: OF | G176: OF | H176: OF | I176: OF | J176: OF | K176: OF | L176: OF | M176: OF | N176: OF | O176: OF | P176: OF | Q176: OF | R176: OF | S176: OF | T176: OF | U176: OF | V176: OF | W176: OF | X176: OF | Y176: OF | Z176: OF | AI176: GH2 | AJ176: Room 2 | AK176: =COUNTA(D172:AH172) -> 31 | AL176: =COUNTA(D176:AH176) -> 23 | AM176: =AK176-AL176 -> 8 | AN176: =AL176/AK176 -> 74%
A177: 2020-03-01 | B177: Room 3 | C177: 2 single beds | AI177: GH2 | AJ177: Room 3 | AK177: =COUNTA(D172:AH172) -> 31 | AL177: =COUNTA(D177:AH177) -> 0 | AM177: =AK177-AL177 -> 31 | AN177: =AL177/AK177 -> 0%
B178: GH3 - Tiba 6th Floor
A179: 2020-03-01 | B179: Room 1 | C179: 1 double bed | D179: LS | E179: LS | F179: LS | G179: LS | H179: LS | I179: LS | J179: LS | K179: LS | L179: LS | M179: LS | N179: LS | O179: LS | P179: LS | Q179: LS | R179: LS | S179: LS | T179: LS | U179: LS | V179: LS | W179: LS | X179: LS | Y179: LS | Z179: LS | AI179: GH3 | AJ179: Room 1 | AK179: =COUNTA(D171:AH171) -> 31 | AL179: =COUNTA(D179:AH179) -> 23 | AM179: =AK179-AL179 -> 8 | AN179: =AL179/AK179 -> 74%
A180: 2020-03-01 | B180: Room 2 | C180: 1 single bed | AI180: GH3 | AJ180: Room 2 | AK180: =COUNTA(D172:AH172) -> 31 | AL180: =COUNTA(D180:AH180) -> 0 | AM180: =AK180-AL180 -> 31 | AN180: =AL180/AK180 -> 0%
B182: April | C182: 2020 | D182: W | E182: T | F182: F | G182: S | H182: S | I182: M | J182: T | K182: W | L182: T | M182: F | N182: S | O182: S | P182: M | Q182: T | R182: W | S182: T | T182: F | U182: S | V182: S | W182: M | X182: T | Y182: W | Z182: T | AA182: F | AB182: S | AC182: S | AD182: M | AE182: T | AF182: W | AG182: T | AO182: Comments
B183: GH 1 - Tiba 6th Floor | D183: =+C183+1 -> 1 | E183: 2 | F183: 3 | G183: 4 | H183: 5 | I183: 6 | J183: 7 | K183: 8 | L183: 9 | M183: 10 | N183: 11 | O183: 12 | P183: 13 | Q183: 14 | R183: 15 | S183: 16 | T183: 17 | U183: 18 | V183: 19 | W183: 20 | X183: 21 | Y183: 22 | Z183: 23 | AA183: 24 | AB183: 25 | AC183: 26 | AD183: 27 | AE183: 28 | AF183: 29 | AG183: 30
A184: 2020-04-01 | B184: Room 1 | C184: 1 double bed | AI184: GH1 | AJ184: Room 1 | AK184: =COUNTA(D183:AH183) -> 30 | AL184: =COUNTA(D184:AH184) -> 0 | AM184: =AK184-AL184 -> 30 | AN184: =AL184/AK184 -> 0%
B185: GH2 - Tiba 5th Floor (Until 15th) and 11th Floor (From 16th)
A186: 2020-04-01 | B186: Room 1 | C186: 1 double bed | D186: AG | E186: AG | F186: AG | G186: AG | H186: AG | I186: AG | J186: AG | K186: AG | L186: AG | M186: AG | N186: AG | O186: AG | P186: AG | Q186: AG | R186: AG | S186: AG | T186: AG | U186: AG | V186: AG | W186: AG | X186: AG | Y186: AG | Z186: AG | AA186: AG | AB186: AG | AC186: AG | AD186: AG | AE186: AG | AF186: AG | AG186: AG | AI186: GH2 | AJ186: Room 1 | AK186: =COUNTA(D182:AH182) -> 30 | AL186: =COUNTA(D186:AH186) -> 30 | AM186: =AK186-AL186 -> 0 | AN186: =AL186/AK186 -> 100%
A187: 2020-04-01 | B187: Room 2 | C187: 1 single bed | AI187: GH2 | AJ187: Room 2 | AK187: =COUNTA(D183:AH183) -> 30 | AL187: =COUNTA(D187:AH187) -> 0 | AM187: =AK187-AL187 -> 30 | AN187: =AL187/AK187 -> 0%
A188: 2020-04-01 | B188: Room 3 | C188: 1 single bed | AI188: GH2 | AJ188: Room 3 | AK188: =COUNTA(D183:AH183) -> 30 | AL188: =COUNTA(D188:AH188) -> 0 | AM188: =AK188-AL188 -> 30 | AN188: =AL188/AK188 -> 0%
B189: GH3 - Tiba 6th Floor
A190: 2020-04-01 | B190: Room 1 | C190: 1 double bed | AI190: GH3 | AJ190: Room 1 | AK190: =COUNTA(D182:AH182) -> 30 | AL190: =COUNTA(D190:AH190) -> 0 | AM190: =AK190-AL190 -> 30 | AN190: =AL190/AK190 -> 0%
A191: 2020-04-01 | B191: Room 2 | C191: 1 single bed | AI191: GH3 | AJ191: Room 2 | AK191: =COUNTA(D183:AH183) -> 30 | AL191: =COUNTA(D191:AH191) -> 0 | AM191: =AK191-AL191 -> 30 | AN191: =AL191/AK191 -> 0%
B193: May | C193: 2020 | D193: F | E193: S | F193: S | G193: M | H193: T | I193: W | J193: T | K193: F | L193: S | M193: S | N193: M | O193: T | P193: W | Q193: T | R193: F | S193: S | T193: S | U193: M | V193: T | W193: W | X193: T | Y193: F | Z193: S | AA193: S | AB193: M | AC193: T | AD193: W | AE193: T | AF193: F | AG193: S | AH193: S | AO193: Comments
B194: GH 1 - Tiba 6th Floor | D194: =+C194+1 -> 1 | E194: 2 | F194: 3 | G194: 4 | H194: 5 | I194: 6 | J194: 7 | K194: 8 | L194: 9 | M194: 10 | N194: 11 | O194: 12 | P194: 13 | Q194: 14 | R194: 15 | S194: 16 | T194: 17 | U194: 18 | V194: 19 | W194: 20 | X194: 21 | Y194: 22 | Z194: 23 | AA194: 24 | AB194: 25 | AC194: 26 | AD194: 27 | AE194: 28 | AF194: 29 | AG194: 30 | AH194: 31
A195: 2020-05-01 | B195: Room 1 | C195: 1 double bed | AI195: GH1 | AJ195: Room 1 | AK195: =COUNTA(D194:AH194) -> 31 | AL195: =COUNTA(D195:AH195) -> 0 | AM195: =AK195-AL195 -> 31 | AN195: =AL195/AK195 -> 0%
B196: GH2 - Tiba 11th Floor
A197: 2020-05-01 | B197: Room 1 | C197: 1 double bed | D197: AG | E197: AG | F197: AG | G197: AG | H197: AG | I197: AG | J197: AG | K197: AG | L197: AG | M197: AG | N197: AG | O197: AG | P197: AG | Q197: AG | R197: AG | S197: AG | T197: AG | U197: AG | V197: AG | W197: AG | X197: AG | Y197: AG | Z197: AG | AA197: AG | AB197: AG | AC197: AG | AD197: AG | AE197: AG | AF197: AG | AG197: AG | AH197: AG | AI197: GH2 | AJ197: Room 1 | AK197: =COUNTA(D193:AH193) -> 31 | AL197: =COUNTA(D197:AH197) -> 31 | AM197: =AK197-AL197 -> 0 | AN197: =AL197/AK197 -> 100%
A198: 2020-05-01 | B198: Room 2 | C198: 1 single bed | AI198: GH2 | AJ198: Room 2 | AK198: =COUNTA(D194:AH194) -> 31 | AL198: =COUNTA(D198:AH198) -> 0 | AM198: =AK198-AL198 -> 31 | AN198: =AL198/AK198 -> 0%
A199: 2020-05-01 | B199: Room 3 | C199: 1 single bed | AI199: GH2 | AJ199: Room 3 | AK199: =COUNTA(D194:AH194) -> 31 | AL199: =COUNTA(D199:AH199) -> 0 | AM199: =AK199-AL199 -> 31 | AN199: =AL199/AK199 -> 0%
B200: GH3 - Tiba 6th Floor
A201: 2020-05-01 | B201: Room 1 | C201: 1 double bed | AI201: GH3 | AJ201: Room 1 | AK201: =COUNTA(D193:AH193) -> 31 | AL201: =COUNTA(D201:AH201) -> 0 | AM201: =AK201-AL201 -> 31 | AN201: =AL201/AK201 -> 0%
A202: 2020-05-01 | B202: Room 2 | C202: 1 single bed | AI202: GH3 | AJ202: Room 2 | AK202: =COUNTA(D194:AH194) -> 31 | AL202: =COUNTA(D202:AH202) -> 0 | AM202: =AK202-AL202 -> 31 | AN202: =AL202/AK202 -> 0%
B204: June | C204: 2020 | D204: M | E204: T | F204: W | G204: T | H204: F | I204: S | J204: S | K204: M | L204: T | M204: W | N204: T | O204: F | P204: S | Q204: S | R204: M | S204: T | T204: W | U204: T | V204: F | W204: S | X204: S | Y204: M | Z204: T | AA204: W | AB204: T | AC204: F | AD204: S | AE204: S | AF204: M | AG204: T | AO204: Comments
B205: GH 1 - Tiba 6th Floor | D205: =+C205+1 -> 1 | E205: 2 | F205: 3 | G205: 4 | H205: 5 | I205: 6 | J205: 7 | K205: 8 | L205: 9 | M205: 10 | N205: 11 | O205: 12 | P205: 13 | Q205: 14 | R205: 15 | S205: 16 | T205: 17 | U205: 18 | V205: 19 | W205: 20 | X205: 21 | Y205: 22 | Z205: 23 | AA205: 24 | AB205: 25 | AC205: 26 | AD205: 27 | AE205: 28 | AF205: 29 | AG205: 30
A206: 2020-06-01 | B206: Room 1 | C206: 1 double bed | R206: SJ | S206: SJ | T206: SJ | U206: SJ | V206: SJ | W206: SJ | X206: SJ | Y206: SJ | Z206: SJ | AA206: SJ | AB206: SJ | AC206: SJ | AD206: SJ | AE206: SJ | AF206: SJ | AG206: SJ | AI206: GH1 | AJ206: Room 1 | AK206: =COUNTA(D205:AH205) -> 30 | AL206: =COUNTA(D206:AH206) -> 16 | AM206: =AK206-AL206 -> 14 | AN206: =AL206/AK206 -> 53%
B207: GH2 - Tiba 5th Floor
A208: 2020-06-01 | B208: Room 1 | C208: 1 double bed | D208: AG | E208: AG | F208: AG | G208: AG | H208: AG | I208: AG | J208: AG | K208: AG | L208: AG | M208: AG | N208: AG | O208: AG | P208: AG | Q208: AG | R208: AG | S208: AG | T208: AG | U208: AG | V208: AG | W208: AG | X208: AG | Y208: AG | Z208: AG | AI208: GH2 | AJ208: Room 1 | AK208: =COUNTA(D204:AH204) -> 30 | AL208: =COUNTA(D208:AH208) -> 23 | AM208: =AK208-AL208 -> 7 | AN208: =AL208/AK208 -> 77%
A209: 2020-06-01 | B209: Room 2 | C209: 1 single bed | AI209: GH2 | AJ209: Room 2 | AK209: =COUNTA(D205:AH205) -> 30 | AL209: =COUNTA(D209:AH209) -> 0 | AM209: =AK209-AL209 -> 30 | AN209: =AL209/AK209 -> 0%
A210: 2020-06-01 | B210: Room 3 | C210: 1 single bed | AI210: GH2 | AJ210: Room 3 | AK210: =COUNTA(D205:AH205) -> 30 | AL210: =COUNTA(D210:AH210) -> 0 | AM210: =AK210-AL210 -> 30 | AN210: =AL210/AK210 -> 0%
B211: GH3 - Tiba 6th Floor
A212: 2020-06-01 | B212: Room 1 | C212: 1 double bed | AI212: GH3 | AJ212: Room 1 | AK212: =COUNTA(D204:AH204) -> 30 | AL212: =COUNTA(D212:AH212) -> 0 | AM212: =AK212-AL212 -> 30 | AN212: =AL212/AK212 -> 0%
A213: 2020-06-01 | B213: Room 2 | C213: 1 single bed | AI213: GH3 | AJ213: Room 2 | AK213: =COUNTA(D205:AH205) -> 30 | AL213: =COUNTA(D213:AH213) -> 0 | AM213: =AK213-AL213 -> 30 | AN213: =AL213/AK213 -> 0%
B215: July | C215: 2020 | D215: W | E215: T | F215: F | G215: S | H215: S | I215: M | J215: T | K215: W | L215: T | M215: F | N215: S | O215: S | P215: M | Q215: T | R215: W | S215: T | T215: F | U215: S | V215: S | W215: M | X215: T | Y215: W | Z215: T | AA215: F | AB215: S | AC215: S | AD215: M | AE215: T | AF215: W | AG215: T | AH215: F | AO215: Comments
B216: GH 1 - Tiba 6th Floor | D216: =+C216+1 -> 1 | E216: 2 | F216: 3 | G216: 4 | H216: 5 | I216: 6 | J216: 7 | K216: 8 | L216: 9 | M216: 10 | N216: 11 | O216: 12 | P216: 13 | Q216: 14 | R216: 15 | S216: 16 | T216: 17 | U216: 18 | V216: 19 | W216: 20 | X216: 21 | Y216: 22 | Z216: 23 | AA216: 24 | AB216: 25 | AC216: 26 | AD216: 27 | AE216: 28 | AF216: 29 | AG216: 30 | AH216: =+AG216+1 -> 31
A217: 2020-07-01 | B217: Room 1 | C217: 1 double bed | D217: SJ | E217: SJ | F217: SJ | G217: SJ | H217: SJ | I217: SJ | J217: SJ | K217: SJ | L217: SJ | M217: SJ | N217: SJ | O217: SJ | P217: SJ | Q217: SJ | R217: SJ | S217: SJ | T217: SJ | U217: SJ | V217: SJ | W217: SJ | X217: SJ | Y217: SJ | Z217: SJ | AA217: SJ | AB217: SJ | AC217: SJ | AD217: SJ | AE217: SJ | AF217: SJ | AI217: GH1 | AJ217: Room 1 | AK217: =COUNTA(D216:AH216) -> 31 | AL217: =COUNTA(D217:AH217) -> 29 | AM217: =AK217-AL217 -> 2 | AN217: =AL217/AK217 -> 94%
B218: GH2 - Tiba 11th Floor
A219: 2020-07-01 | B219: Room 1 | C219: 1 double bed | K219: AG | L219: AG | M219: AG | N219: AG | O219: AG | P219: AG | Q219: AG | R219: AG | S219: AG | T219: AG | U219: AG | V219: AG | W219: AG | X219: AG | Y219: AG | Z219: AG | AA219: AG | AB219: AG | AC219: AG | AD219: AG | AE219: AG | AF219: AG | AG219: AG | AH219: AG | AI219: GH2 | AJ219: Room 1 | AK219: =COUNTA(D215:AH215) -> 31 | AL219: =COUNTA(D219:AH219) -> 24 | AM219: =AK219-AL219 -> 7 | AN219: =AL219/AK219 -> 77% | AO219: Qurantine Period
A220: 2020-07-01 | B220: Room 2 | C220: 1 single bed | AI220: GH2 | AJ220: Room 2 | AK220: =COUNTA(D216:AH216) -> 31 | AL220: =COUNTA(D220:AH220) -> 0 | AM220: =AK220-AL220 -> 31 | AN220: =AL220/AK220 -> 0% | AO220: Qurantine Period
... 174 more rows

Sheet HQ Visit. & Consul. (hidden)
A1: HQ Visitors & Consultants
C2: Only the HR Manager can create a new line
A3: HR Information | D3: Flights details | G3: Visa and Passport | K3: Gaza Access / Israel Side | M3: Gaza Access / Gaza Side | Q3: Movmt | R3: Equipment
A4: Responsible to fill the cell: | C4: HR Manager | D4: LogCo | E4: LogCo | F4: LogCo | G4: HR Manager | H4: HR Manager | I4: HR Manager | J4: HR Manager | K4: Mission Acc. | L4: Mission Acc. | M4: Base Log Gaza | N4: Base Log Gaza | O4: Base Log Gaza | P4: Base Log Gaza | Q4: Capital Log | R4: Capital Log | S4: Capital Log
A5: # | B5: Name | C5: Position | D5: Flight Details Received | E5: Arrival Date | F5: Departure Date | G5: B1 | H5: Passport No. | I5: Date Issued | J5: Date to Expire | K5: FN | L5: Date to Expire | M5: Gaza Permit | N5: Permit Type | O5: Date Issued | P5: Date to Expire | Q5: Planning Done | R5: Laptop | S5: Phone
A6: 1 | B6: Carolina Jimenez | C6: Emergency Pool Finance Coordinator | D6: Yes | E6: 2020-11-23 | F6: 12-Jan-21
A11: Left the Mission
A12: 1 | B12: ERIN MacDonald | K12: FN-1510431 | L12: 1-3 to 31-3
A13: =A12+1 -> 2 | B13: Emma Shawn | D13: Not Applicable | K13: Yes
A14: 3 | B14: Leila | E14: 2019-03-29 | F14: 2019-04-06 | K14: FN-1510668 | Q14: No | S14: Yes
A15: 4 | B15: Luis González | D15: Yes | E15: 2019-02-02 | F15: 2019-02-08 | K15: FN-1510177 | L15: 2019-02-28 | Q15: Yes
A16: 5 | B16: David Da Rocha | E16: 17.02
A17: 6 | B17: Emma Swan | C17: Consultant | G17: N/A | K17: FN-1510417 | L17: 19-2 to 31-3 | M17: Yes | N17: Single Entry | O17: 2019-01-30 | P17: 2019-03-01
A18: 7 | B18: Erin Mc Donald | C18: Consultant | G18: N/A | M18: Pending | N18: Single Entry | P18: CANCELLED
A19: 8 | B19: Leila Bouchet | C19: visitor | G19: B2 | P19: CANCELLED
A20: 9 | B20: Giovanni Mellone | E20: 02.04.209 | F20: May | K20: No | N20: Single Entry | O20: 2020-02-06 | P20: 2020-03-07
A21: 10 | B21: Ian Goodrich | D21: Yes | E21: 05.05.2019 | F21: 18.05.2019 | K21: Not Applicable | Q21: Yes | R21: Yes | S21: Yes
A22: 11 | B22: Celia González Otálora | D22: Yes | E22: 05.05.2019 | F22: ? | K22: FN-1511030 | L22: 2019-06-30 | M22: Yes | N22: 3 months permit | O22: 2019-05-29 | P22: 2019-08-27
A23: 12 | B23: Jose Jodar | E23: 13.05.2019 | F23: 23.05.2019
A24: 13 | B24: Ivan Alvarez | C24: Grant Manager | D24: Yes | E24: 09.06.2019 | F24: 30.06.2019 | H24: PAE227651
A25: 14 | B25: Daniel Garcia | C25: security trainer | D25: no | K25: FN-1511402 | L25: 19/08/2019 -16-9-2019
A26: 15 | B26: Maria Ferrari | C26: EMERGENCY POOL FOOD SECURITY & LIVELIHOODS PM | D26: Yes | E26: 2019-08-06 | F26: 2019-10-19 | H26: YB4219190 | K26: FN-1511521 | L26: 2019-12-30 | M26: Yes | N26: 3 months permit | O26: 2019-08-22 | P26: 2019-11-20
A27: 16 | B27: Daniel Garcia | C27: Security traininer | D27: Yes | E27: 2019-08-25 | F27: 2019-09-05 | K27: FN-1511402 | L27: 2019-09-16
A28: 17 | B28: Angela Costantino | C28: emergency admin coor | D28: Yes | E28: 2019-08-25 | F28: 2019-09-15 | H28: YA7600855 | K28: FN-1511746 | L28: 2019-11-30 | M28: Yes | N28: Single Entry | O28: 2019-08-28 | P28: 2019-09-27
A29: 18 | B29: Amandine Labeca | C29: FSL PM - Gap Filling | D29: Yes | E29: 2019-10-21 | F29: 2019-11-21 | H29: 17CF82969 | K29: FN-1512270 | L29: 2019-11-30 | M29: Yes | N29: Single Entry | O29: 2019-10-31 | P29: 2019-11-30
A30: 19 | B30: Jordi Garrell Casanovas | C30: AAH Delegate - Catalonia and Aragon | D30: Yes | E30: 2019-11-11 | F30: 2019-11-15
A31: 1 | B31: Pepe Rubilarta | C31: Nous Cims Director | K31: Not Applicable | L31: Not Applicable
A32: 2 | B32: Olga Permanyer | C32: Nous Cims Project Officer | K32: Not Applicable | L32: Not Applicable
A33: 3 | B33: Paula Sanchez | D33: Yes | E33: 2020-01-27 | F33: 2020-02-02 | K33: Not Applicable | L33: Not Applicable
A34: 4 | B34: Giovanni Mellone | D34: Yes | E34: 2020-02-10 | F34: 2020-03-01 | K34: FN-1512755 | L34: 2020-03-01 | M34: Yes | N34: Six Months | O34: 2020-02-17 | P34: 2020-08-15
D39: Yes
D40: No | F40: Single Entry
D41: Not Applicable | F41: Six Month

Sheet Break Leave Planning (hidden)
A1: January
A2: NAME | B2: POSITION | C2: T | D2: W | E2: T | F2: F | G2: S | H2: S | I2: M | J2: T | K2: W | L2: T | M2: F | N2: S | O2: S | P2: M | Q2: T | R2: W | S2: T | T2: F | U2: S | V2: S | W2: M | X2: T | Y2: W | Z2: T | AA2: F | AB2: S | AC2: S | AD2: M | AE2: T | AF2: W | AG2: T
C3: 1 | D3: 2 | E3: 3 | F3: 4 | G3: 5 | H3: 6 | I3: 7 | J3: 8 | K3: 9 | L3: 10 | M3: 11 | N3: 12 | O3: 13 | P3: 14 | Q3: 15 | R3: 16 | S3: 17 | T3: 18 | U3: 19 | V3: 20 | W3: 21 | X3: 22 | Y3: 23 | Z3: 24 | AA3: 25 | AB3: 26 | AC3: 27 | AD3: 28 | AE3: 29 | AF3: 30 | AG3: 31
A4: Gonzalo Codina | B4: CD | AJ4: Tentative break
A5: Suzanne Takkenberg | B5: DCD | AJ5: Color used by the requester
A6: Arkaitz Mora | B6: Log Coordinator
A7: Gonzalo Alvarez | B7: Admin Co
A8: Thomas Zaratiegui | B8: Grant Manager | AJ8: Break approved
A9: Azizeh kreitem | B9: HR Manager | AJ9: Color used by the Accountant
A10: Dorothee Riepma | B10: Protection Coordinator
A11: Raja Wakileh | B11: Admin & Account Officer
A12: Reema | B12: Cleaner
A13: Sara Janicot | B13: HoB Gaza
A14: Mohammed Ammayreh | B14: Hob Hebron
A15: Jairo Paizano | B15: FSL PM
A16: Amy | B16: Base Log
A17: Lucas | B17: HPC
A18: Nardeen | B18: Capital log
A20: February
A21: NAME | B21: POSITION | C21: F | D21: S | E21: S | F21: M | G21: T | H21: W | I21: T | J21: F | K21: S | L21: S | M21: M | N21: T | O21: W | P21: T | Q21: F | R21: S | S21: S | T21: M | U21: T | V21: W | W21: T | X21: F | Y21: S | Z21: S | AA21: M | AB21: T | AC21: W | AD21: T
C22: 1 | D22: 2 | E22: 3 | F22: 4 | G22: 5 | H22: 6 | I22: 7 | J22: 8 | K22: 9 | L22: 10 | M22: 11 | N22: 12 | O22: 13 | P22: 14 | Q22: 15 | R22: 16 | S22: 17 | T22: 18 | U22: 19 | V22: 20 | W22: 21 | X22: 22 | Y22: 23 | Z22: 24 | AA22: 25 | AB22: 26 | AC22: 27 | AD22: 28
A23: Gonzalo Codina | B23: CD | AJ23: Tentative break
A24: Suzanne Takkenberg | B24: DCD | AJ24: Color used by the requester
B25: Log Coordinator
A26: Gonzalo Alvarez | B26: Admin Co
A27: Thomas Zaratiegui | B27: Grant Manager | AJ27: Break approved
A28: Azizeh kreitem | B28: HR Manager | AJ28: Color used by the Accountant
A29: Dorothee Riepma | B29: Protection Coordinator
A30: Raja Wakileh | B30: Admin & Account Officer
A31: Reema | B31: Cleaner
A32: Sara Janicot | B32: HoB Gaza
A33: Mohammed Ammayreh | B33: Hob Hebron
A34: Jairo Paizano | B34: FSL PM
A35: Amy | B35: Base Log
A36: Lucas | B36: HPC
A37: Nardeen | B37: Capital log
A38: March
A39: NAME | B39: POSITION | C39: F | D39: S | E39: S | F39: M | G39: T | H39: W | I39: T | J39: F | K39: S | L39: S | M39: M | N39: T | O39: W | P39: T | Q39: F | R39: S | S39: S | T39: M | U39: T | V39: W | W39: T | X39: F | Y39: S | Z39: S | AA39: M | AB39: T | AC39: W | AD39: T | AE39: F | AF39: S | AG39: S
C40: 1 | D40: 2 | E40: 3 | F40: 4 | G40: 5 | H40: 6 | I40: 7 | J40: 8 | K40: 9 | L40: 10 | M40: 11 | N40: 12 | O40: 13 | P40: 14 | Q40: 15 | R40: 16 | S40: 17 | T40: 18 | U40: 19 | V40: 20 | W40: 21 | X40: 22 | Y40: 23 | Z40: 24 | AA40: 25 | AB40: 26 | AC40: 27 | AD40: 28 | AE40: 29 | AF40: 30 | AG40: 31
A41: Lucas Honauer | B41: CD | AJ41: Tentative break
A42: Suzanne Takkenberg | B42: DCD | AJ42: Color used by the requester
A43: Olivier Herrmann | B43: Log Coordinator
A44: Gonzalo Alvarez | B44: Admin Co
A45: Thomas Zaratiegui | B45: Grant Manager | AJ45: Break approved
A46: Azizeh kreitem | B46: HR Manager | AJ46: Color used by the Accountant
A47: Dorothee Riepma | B47: Protection Coordinator
A48: Raja Wakileh | B48: Admin & Account Officer
A49: Reema | B49: Cleaner
A50: Sara Janicot | B50: HoB Gaza
A51: Mohammed Ammayreh | B51: Hob Hebron
A52: Jairo Paizano | B52: FSL PM
A53: Amy | B53: Base Log
A54: Lucas | B54: HPC
A55: Birte Brodkorb | B55: Advocacy Coordinator
A56: Nardeen | B56: Capital log
A58: April
A59: NAME | B59: POSITION | C59: M | D59: T | E59: W | F59: T | G59: F | H59: S | I59: S | J59: M | K59: T | L59: W | M59: T | N59: F | O59: S | P59: S | Q59: M | R59: T | S59: W | T59: T | U59: F | V59: S | W59: S | X59: M | Y59: T | Z59: W | AA59: T | AB59: F | AC59: S | AD59: S | AE59: M | AF59: T
C60: 1 | D60: 2 | E60: 3 | F60: 4 | G60: 5 | H60: 6 | I60: 7 | J60: 8 | K60: 9 | L60: 10 | M60: 11 | N60: 12 | O60: 13 | P60: 14 | Q60: 15 | R60: 16 | S60: 17 | T60: 18 | U60: 19 | V60: 20 | W60: 21 | X60: 22 | Y60: 23 | Z60: 24 | AA60: 25 | AB60: 26 | AC60: 27 | AD60: 28 | AE60: 29 | AF60: 30
A61: Lucas Honauer | B61: CD | AJ61: Tentative break
A62: Suzanne Takkenberg | B62: DCD | AJ62: Color used by the requester
A63: Olivier Herrmann | B63: Log Coordinator
A64: Gonzalo Alvarez | B64: Admin Co
B65: Grant Manager | AJ65: Break approved
A66: Azizeh kreitem | B66: HR Manager | AJ66: Color used by the Accountant
A67: Dorothee Riepma | B67: Protection Coordinator
A68: Raja Wakileh | B68: Admin & Account Officer
A69: Reema | B69: Cleaner
A70: Sara Janicot | B70: HoB Gaza
A71: Mohammed Ammayreh | B71: Hob Hebron
A72: Jairo Paizano | B72: FSL PM
A73: Amy O'Leary | B73: Base Log
A74: Celine Carre | B74: HPC
A75: Birte Brodkorb | B75: Advocacy Coordinator
A76: Nardeen | B76: Capital log
A78: May
A79: NAME | B79: POSITION | C79: W | D79: T | E79: F | F79: S | G79: S | H79: M | I79: T | J79: W | K79: T | L79: F | M79: S | N79: S | O79: M | P79: T | Q79: W | R79: T | S79: F | T79: S | U79: S | V79: M | W79: T | X79: W | Y79: T | Z79: F | AA79: S | AB79: S | AC79: M | AD79: T | AE79: W | AF79: T | AG79: F
C80: 1 | D80: 2 | E80: 3 | F80: 4 | G80: 5 | H80: 6 | I80: 7 | J80: 8 | K80: 9 | L80: 10 | M80: 11 | N80: 12 | O80: 13 | P80: 14 | Q80: 15 | R80: 16 | S80: 17 | T80: 18 | U80: 19 | V80: 20 | W80: 21 | X80: 22 | Y80: 23 | Z80: 24 | AA80: 25 | AB80: 26 | AC80: 27 | AD80: 28 | AE80: 29 | AF80: 30 | AG80: 31
A81: Lucas Honauer | B81: CD | AJ81: Tentative break
A82: Suzanne Takkenberg | B82: DCD | AJ82: Color used by the requester
A83: Olivier Herrmann | B83: Log Coordinator
A84: Gonzalo Alvarez | B84: Admin Co
B85: Grant Manager | AJ85: Break approved
A86: Azizeh kreitem | B86: HR Manager | AJ86: Color used by the Accountant
A87: Dorothee Riepma | B87: Protection Coordinator
A88: Raja Wakileh | B88: Admin & Account Officer
A89: Reema | B89: Cleaner
A90: Sara Janicot | B90: HoB Gaza
A91: Mohammed Ammayreh | B91: Hob Hebron
A92: Jairo Paizano | B92: FSL PM
A93: Amy O'Leary | B93: Base Log
A94: Celine Carre | B94: HPC
A95: Birte Brodkorb | B95: Advocacy Coordinator
A96: Nardeen | B96: Capital log
A98: June
A99: NAME | B99: POSITION | C99: S | D99: S | E99: M | F99: T | G99: W | H99: T | I99: F | J99: S | K99: S | L99: M | M99: T | N99: W | O99: T | P99: F | Q99: S | R99: S | S99: M | T99: T | U99: W | V99: T | W99: F | X99: S | Y99: S | Z99: M | AA99: T | AB99: W | AC99: T | AD99: F | AE99: S | AF99: S
C100: 1 | D100: 2 | E100: 3 | F100: 4 | G100: 5 | H100: 6 | I100: 7 | J100: 8 | K100: 9 | L100: 10 | M100: 11 | N100: 12 | O100: 13 | P100: 14 | Q100: 15 | R100: 16 | S100: 17 | T100: 18 | U100: 19 | V100: 20 | W100: 21 | X100: 22 | Y100: 23 | Z100: 24 | AA100: 25 | AB100: 26 | AC100: 27 | AD100: 28 | AE100: 29 | AF100: 30
A101: Lucas Honauer | B101: CD | AJ101: Tentative break
A102: Suzanne Takkenberg | B102: DCD | AJ102: Color used by the requester
A103: Olivier Herrmann | B103: Log Coordinator
A104: Gonzalo Alvarez | B104: Admin Co
B105: Grant Manager | AJ105: Break approved
A106: Azizeh kreitem | B106: HR Manager | AJ106: Color used by the Line Manager
A107: Dorothee Riepma | B107: Protection Coordinator
A108: Raja Wakileh | B108: Admin & Account Officer
A109: Reema | B109: Cleaner
A110: Sara Janicot | B110: HoB Gaza
A111: Mohammed Ammayreh | B111: Hob Hebron
A112: Jairo Paizano | B112: FSL PM
A113: Amy O'Leary | B113: Base Log
A114: Birte Brodkorb | B114: Advocacy Coordinator
A115: Celine Carre | B115: HPC
A116: Nardeen | B116: Capital log
A118: July
A119: NAME | B119: POSITION | C119: M | D119: T | E119: W | F119: T | G119: F | H119: S | I119: S | J119: M | K119: T | L119: W | M119: T | N119: F | O119: S | P119: S | Q119: M | R119: T | S119: W | T119: T | U119: F | V119: S | W119: S | X119: M | Y119: T | Z119: W | AA119: T | AB119: F | AC119: S | AD119: S | AE119: M | AF119: T | AG119: W
C120: 1 | D120: 2 | E120: 3 | F120: 4 | G120: 5 | H120: 6 | I120: 7 | J120: 8 | K120: 9 | L120: 10 | M120: 11 | N120: 12 | O120: 13 | P120: 14 | Q120: 15 | R120: 16 | S120: 17 | T120: 18 | U120: 19 | V120: 20 | W120: 21 | X120: 22 | Y120: 23 | Z120: 24 | AA120: 25 | AB120: 26 | AC120: 27 | AD120: 28 | AE120: 29 | AF120: 30 | AG120: 31
A121: Lucas Honauer | B121: CD | AJ121: Tentative break
A122: Suzanne Takkenberg | B122: DCD | AJ122: Color used by the requester
A123: Olivier Herrmann | B123: Log Coordinator
A124: Gonzalo Alvarez | B124: Admin Co
A125: Gladys Le Masson | B125: Grant Manager | AJ125: Break approved
A126: Azizeh kreitem | B126: HR Manager | AJ126: Color used by the Line Manager
A127: Dorothee Riepma | B127: Protection Coordinator
A128: Raja Wakileh | B128: Admin & Account Officer
A129: Reema | B129: Cleaner
A130: Sara Janicot | B130: HoB Gaza
A131: Mohammed Ammayreh | B131: Hob Hebron
A132: Jairo Paizano | B132: FSL PM
A133: Amy O'Leary | B133: Base Log
A134: Armando Gamboa | B134: Base Log
A135: Birte Brodkorb | B135: Advocacy Coordinator
A136: Celine Carre | B136: HPC
A137: Nardeen | B137: Capital log
A138: Myriam | B138: CTC
A139: Andrea Bina | B139: MEAL Specialist
A140: Rachel Daffara | B140: Advocacy Officer
A141: August | B141: August
A142: NAME | B142: POSITION | C142: T | D142: F | E142: S | F142: S | G142: M | H142: T | I142: W | J142: T | K142: F | L142: S | M142: S | N142: M | O142: T | P142: W | Q142: T | R142: F | S142: S | T142: S | U142: M | V142: T | W142: W | X142: T | Y142: F | Z142: S | AA142: S | AB142: M | AC142: T | AD142: W | AE142: T | AF142: F | AG142: S
C143: 1 | D143: 2 | E143: 3 | F143: 4 | G143: 5 | H143: 6 | I143: 7 | J143: 8 | K143: 9 | L143: 10 | M143: 11 | N143: 12 | O143: 13 | P143: 14 | Q143: 15 | R143: 16 | S143: 17 | T143: 18 | U143: 19 | V143: 20 | W143: 21 | X143: 22 | Y143: 23 | Z143: 24 | AA143: 25 | AB143: 26 | AC143: 27 | AD143: 28 | AE143: 29 | AF143: 30 | AG143: 31
A144: Lucas Honauer | B144: CD | AJ144: Tentative break
A145: Suzanne Takkenberg | B145: DCD | AJ145: Color used by the requester
A146: Olivier Herrmann | B146: Log Coordinator
A147: Gonzalo Alvarez | B147: Admin Co
A148: Gladys Le Masson | B148: Grant Manager | AJ148: Break approved
A149: Azizeh kreitem | B149: HR Manager | AJ149: Color used by the Line Manager
A150: Dorothee Riepma | B150: Protection Coordinator
A151: Raja Wakileh | B151: Admin & Account Officer
A152: Reema | B152: Cleaner
A153: Sara Janicot | B153: HoB Gaza
A154: Mohammed Ammayreh | B154: Hob Hebron
B155: FSL PM
A156: Armando Gamboa | B156: Base Log | M156: H
A157: Birte Brodkorb | B157: Advocacy Coordinator
A158: Celine Carre | B158: HPC
A159: Nardeen | B159: Capital log
A160: Myriam | B160: CTC
A161: Andrea Bina | B161: MEAL Specialist
A162: Rachele Daffara | B162: Advocacy Officer
A164: September | B164: September
A165: NAME | B165: POSITION | C165: S | D165: M | E165: T | F165: W | G165: T | H165: F | I165: S | J165: S | K165: M | L165: T | M165: W | N165: T | O165: F | P165: S | Q165: S | R165: M | S165: T | T165: W | U165: T | V165: F | W165: S | X165: S | Y165: M | Z165: T | AA165: W | AB165: T | AC165: F | AD165: S | AE165: S | AF165: M | AG165: S
C166: 1 | D166: 2 | E166: 3 | F166: 4 | G166: 5 | H166: 6 | I166: 7 | J166: 8 | K166: 9 | L166: 10 | M166: 11 | N166: 12 | O166: 13 | P166: 14 | Q166: 15 | R166: 16 | S166: 17 | T166: 18 | U166: 19 | V166: 20 | W166: 21 | X166: 22 | Y166: 23 | Z166: 24 | AA166: 25 | AB166: 26 | AC166: 27 | AD166: 28 | AE166: 29 | AF166: 30 | AG166: 31
A167: Lucas Honauer | B167: CD | AJ167: Tentative break
A168: Dalia Sbeih | B168: DCD | AJ168: Color used by the requester
A169: Olivier Herrmann | B169: Log Coordinator
A170: Marion Bouillie | B170: Admin Co
A171: Gladys Le Masson | B171: Grant Manager | R171: R | AJ171: Break approved
A172: Azizeh kreitem | B172: HR Manager | AJ172: Color used by the Line Manager
A173: Dorothee Riepma | B173: Protection Coordinator
A174: Raja Wakileh | B174: Admin & Account Officer
A175: Reema | B175: Cleaner
A176: Sara Janicot | B176: HoB Gaza
A177: Mohammed Ammayreh | B177: Hob Hebron
B178: FSL PM
A179: Armando Gamboa | B179: Base Log | X179: H | Y179: H
A180: Birte Brodkorb | B180: Advocacy Coordinator
A181: Celine Carre | B181: HPC
A182: Nardeen Abu Assab | B182: Capital log
A183: Myriam Marcuello | B183: CTC
A184: Andrea Bina | B184: MEAL Specialist
A185: Rachel Daffara | B185: Advocacy Officer
A187: October | B187: October
A188: NAME | B188: POSITION | C188: T | D188: W | E188: T | F188: F | G188: S | H188: S | I188: M | J188: T | K188: W | L188: T | M188: F | N188: S | O188: S | P188: M | Q188: T | R188: W | S188: T | T188: F | U188: S | V188: S | W188: M | X188: T | Y188: W | Z188: T | AA188: F | AB188: S | AC188: S | AD188: M | AE188: T | AF188: W | AG188: T
C189: 1 | D189: 2 | E189: 3 | F189: 4 | G189: 5 | H189: 6 | I189: 7 | J189: 8 | K189: 9 | L189: 10 | M189: 11 | N189: 12 | O189: 13 | P189: 14 | Q189: 15 | R189: 16 | S189: 17 | T189: 18 | U189: 19 | V189: 20 | W189: 21 | X189: 22 | Y189: 23 | Z189: 24 | AA189: 25 | AB189: 26 | AC189: 27 | AD189: 28 | AE189: 29 | AF189: 30 | AG189: 31
A190: Lucas Honauer | B190: CD | AK190: Tentative break
A191: Dalia Sbeih | B191: DCD | AK191: Color used by the requester
A192: Olivier Herrmann | B192: Log Coordinator
A193: Marion Bouillie | B193: Admin Co
A194: Gladys Le Masson | B194: Grant Manager | Q194: R | T194: R | AK194: Break approved
A195: Azizeh kreitem | B195: HR Manager | AK195: Color used by the Line Manager
A196: Dorothee Riepma | B196: Protection Coordinator
A197: Raja Wakileh | B197: Admin & Account Officer
A198: Reema | B198: Cleaner
A199: Sara Janicot | B199: HoB Gaza
A200: Mohammed Ammayreh | B200: Hob Hebron
A201: Olivia Falkowitz | B201: FSL PM
A202: Armando Gamboa | B202: Base Log
A203: Birte Brodkorb | B203: Advocacy Coordinator
A204: Celine Carre | B204: HPC
A205: Nardeen Abu Assab | B205: Capital log
A206: Myriam Marcuello | B206: CTC
A207: Andrea Bina | B207: MEAL Specialist
... 299 more rows

Sheet Checkpoint schedule (hidden)
A1: F

Sheet Jer Staff leaves Status (hidden)
A1: Last update | B1: 2021-01-07 | C1: Only HR Manager can update this table
A2: Expats Leave/Nationals Status
A3: Name | B3: last Break approved | C3: Last leave approved | D3: Due as of end January 21 | E3: Taken/ approved | F3: remaining balance /last approved
A4: Dorothea | B4: 14-20 Feb 20 | C4: 6 March 20 (0.5 day) | D4: 46.4 | E4: 35.5 | F4: 15.1
A5: Lucas | B5: 10-14 Aug 20 | C5: 14-28 Dec 20 | D5: 60.6 | E5: 27 | F5: 33.6
A6: Sara | B6: 14-20 May 20 | C6: 6 Aug-16 Sep 20 | D6: 56.5 | E6: 48 | F6: 8.5
A7: Celine | B7: 31 Dec 19-3 Jan 20 | C7: 2020-06-23 | D7: 33.6 | E7: 22 | F7: 11.6
A8: Olivier | B8: 17-23 Dec 20 | D8: 47.6 | E8: 20 | F8: 27.6
A9: Rachele | B9: 29 Jun - 3 Jul 20 | C9: 2020-07-17 | D9: 27.9 | E9: 20 | F9: 7.9
A10: Myriam | B10: 4-8 Jan 21 | C10: 30-31 Dec 20 | D10: 40.5 | E10: 22 | F10: 18.5
A11: Armando | B11: 20-26 Oct 20 | C11: 27 Oct -3 Nov 20 | D11: 36.3 | E11: 17 | F11: 19.3
A12: Gladys | B12: 15-19 Jun 20 | C12: 27 Aug 20 | D12: 30.5 | E12: 9 | F12: 21.5
A13: Dalia | B13: 23-29 Oct | C13: 30 Oct - 9 Nov 20 | D13: 33.3 | E13: 13 | F13: 20.3
A14: Marion | B14: 5-9 Oct | C14: 2020-10-23 | D14: 26.8 | E14: 11 | F14: 15.8
A15: Olivia | B15: 4-10 Jan 21 | C15: 29-31 Dec 20 | D15: 26.6 | E15: 7 | F15: 19.7
A16: Luca Sangalli | C16: 12-14 Jul 20 | D16: 24.9 | E16: 15 | F16: 9.9
A17: Ariane Lignier | C17: 2020-12-29 | D17: 10.4 | E17: 1 | F17: 9.4
A18: Olga Tsuman
A19: Arsenii Kalashnykov
A20: Name | C20: Last leave approved | D20: Due as of end December 20 | E20: Taken/ approved | F20: remaining balance /last approved
A21: Azizeh | C21: 21-31 Dec 20 | D21: 32.2 | E21: 19.38 | F21: 12.83
A22: Raja | C22: 2020-12-31 | D22: 24.67 | E22: 12.88 | F22: 11.8
A23: Reema | C23: 20 Aug 20 | D23: 27.2 | E23: 27 | F23: 0
A24: Ehab | C24: 2020-10-14 | D24: 10.5 | E24: 2 | F24: 8.5
A25: Ruba
A26: Rawan
A27: Georgette

Sheet Maintenance and Daily check
B2: Is your organization matching the minimum requirement ? YES/NO | O2: Initiative MINIMUM REQUIREMENTS PROPOSAL (based on the least restrictive agencies's practices) | Q2: Please acknowledge by OK or NOT OK wether the MINIMUM REQUIREMENTS proposed in COLUMN 0 are OK with your agency or not. In case of NOT OK; please propose an alternative solution, by adding a column of comments.
A3: Maintenance Requirement and Daily vehicle check | B3: Agency 1 | C3: Comments (if necessary) | D3: Agency 2 | E3: Comments (if necessary) | F3: Agency 3 | G3: Comments (if necessary) | H3: Agency 4 | I3: Comments (if necessary) | J3: Agency 5 | K3: Comments (if necessary) | L3: Agency 6 | M3: Comments (if necessary) | N3: Maintenance Requirement and Daily vehicle check | Q3: Agency 1 | R3: Agency 2 | S3: Agency 3 | T3: Agency 4 | U3: Agency 5 | V3: Agency 6
A4: Preventive maintenance (maintenance that is scheduled based on mileage frame, each 5000 km or 10000 km) | B4: Yes | C4: 5000 KM | D4: Yes | E4: 5000 KM | F4: 5000 KM | H4: Yes | I4: Periodic Each 8,000 km | J4: Yes | K4: Each 7,000 KM | L4: Yes | M4: Each 7,000 KM | N4: Preventive maintenance (maintenance that is scheduled based on mileage frame, each 5000 km or 10000 km) | O4: 8000 KM | Q4: OK | R4: OK | T4: OK | U4: Ok | V4: OK
A5: Unexpected maintenance (based of drivers feedback about the vehicles) | B5: Yes | D5: Yes | F5: yes | H5: Yes | I5: On Demand | J5: Yes | K5: On Demand | L5: Yes | M5: On Demand | N5: Unexpected maintenance (based of drivers feedback about the vehicles) | T5: On Demand / Upon Report from driver
A6: Daily check of vehicle fluids (engine oil, brake oil, coolant level, wiper water level) | B6: Yes | D6: Yes | E6: Weekly | F6: Daily | H6: Yes | I6: Weekly | J6: Yes | K6: Weekly | L6: Yes | M6: Weekly | N6: Daily check of vehicle fluids (engine oil, brake oil, coolant level, wiper water level) | O6: AT LEAST ONCE A WEEK | Q6: No | R6: OK | S6: NO | T6: OK | U6: Ok | V6: OK
A7: Daily check of vehicle exterior and interior (dents, scratchs, tires condition, leakage under the vehicle, lights function) | B7: Yes | D7: Yes | F7: Daily | H7: Yes | I7: Semi-Monthly | J7: Yes | K7: Daily | L7: Yes | M7: Daily | N7: Daily check of vehicle exterior and interior (dents, scratchs, tires condition, leakage under the vehicle, lights function) | O7: AT LEAST ONCE A WEEK | Q7: at least take a general look daily | R7: DAILY | T7: Twice per Month | U7: Daily | V7: Daily, done by each driver before departure
A8: Daily check of kits (tool kit, first aid kit, fire extinguisher) | B8: Yes | D8: Yes | E8: Monthly | F8: Weekly | H8: Yes | I8: Monthly | J8: Yes | K8: Monthly | L8: Yes | M8: Monthly | N8: Daily check of kits (tool kit, first aid kit, fire extinguisher) | O8: AT LEAST ONCE A MONTH | Q8: twice per month | R8: MONTHLY | T8: OK | U8: Ok | V8: OK
A9: Daily check of vehicle documents (insurance, delegation, mecanique, logbook) | B9: Yes | D9: Yes | E9: Monthly | F9: Weekly | H9: Yes | I9: Monthly | J9: Yes | K9: Monthly | L9: Yes | M9: Monthly | N9: Daily check of vehicle documents (insurance, delegation, mecanique, logbook) | O9: AT LEAST ONCE A MONTH | Q9: weekly | R9: MONTHLY | T9: OK | U9: Ok | V9: OK
A10: Seatbelts fonction check | B10: Yes | D10: Yes | F10: Daily | H10: Yes | I10: None | J10: Yes | K10: Daily | L10: Yes | M10: Daily | N10: Seatbelts fonction check | O10: daily | Q10: OK | R10: OK | T10: OK | U10: Ok | V10: OK
A11: Daily vehicles disinfection | B11: Yes | D11: No | F11: Yes | H11: Not anymore | I11: None | J11: N/A | K11: N/A | L11: N/A | M11: N/A | N11: Daily vehicles disinfection | O11: none | Q11: daily | R11: OK | S11: OK | T11: OK | U11: OK | V11: OK

Sheet Drivers_minimum_requirements
B2: Is your organization matching the minimum requirement ? YES/NO
A3: Driver's Minimum Requirement | B3: Agency 1 | C3: Comments (if necessary) | D3: Agency 2 | E3: Comments (if necessary) | F3: Agency 3 | G3: Comments (if necessary) | H3: Agency 4 | I3: Comments (if necessary) | J3: Agency 5 | K3: Comments (if necessary) | L3: Agency 6 | M3: Comments (if necessary)
A4: DRIVER EYE CHECK (YES/NO + frequency) | B4: yes | D4: No | H4: NO | J4: No
A5: Medical test that includes (Medical risk factors and allergies, Previous medical and surgical history, Vital signs, human body system review and physical exam, general laboratory tests including drug test) | B5: yes | C5: every two years for current drivers and for new drivers directly after joining | D5: N/A | F5: N/A | H5: N/A | I5: None | J5: No | L5: N/A | M5: None
A10: HEDT training | B10: yes | H10: YES | I10: None | J10: Yes | L10: N/A
A11: General fleet training that includes (daily vehicle check, driving attitude, general rules and regulations, accident procedure, snow chain usage) | B11: yes | D11: yes | F11: YES | H11: YES | I11: None | J11: Yes | L11: Yes/No | M11: mixed since we have professional drivers (only 5 for the mission) and staff drivers (all other staff). For the staff drivers, they have obligations in their contracts to drive for work purposes. For better control and risk mitigation, SI conducts a driving test for new staff (theoretical and practical) based on which the staff is allowed to drive immidiately or after receiving necessary trainings/awareness sessions
A12: Specialized trainings (Mechanics of cars, Extinghuishers and medical kit usage, Risk in fields, well being) | B12: yes | D12: yes | F12: yes | H12: YES | I12: Basic | J12: Yes | L12: Yes/No | M12: mixed since we have professional drivers (only 5 for the mission) and staff drivers (all other staff)
A13: Tips for drivers during Ramadan specially for drivers who fast | B13: yes | D13: yes | F13: yes | H13: YES | I13: Shorter Working Hours | J13: No | L13: No
A14: Security awareness for drivers (road safety and security) | B14: yes | D14: yes | F14: yes | H14: YES | I14: None | J14: Yes | L14: Yes
A15: Fire safety | B15: yes | D15: yes | F15: yes | H15: YES | I15: None | J15: Yes | L15: N/A
A16: Personal security topics | B16: yes | D16: yes | F16: yes | H16: YES | I16: None | J16: Yes | L16: Yes
A17: Fundamentals of Safeguarding and Anti-Sexual Harassment | B17: yes | D17: yes | F17: yes | H17: YES | I17: None | J17: Yes | L17: Yes
A18: Children safeguard policy | B18: yes | D18: yes | F18: yes | H18: YES | I18: None | J18: Yes | L18: Yes
B21: Agency 1 | C21: Agency 2 | D21: Agency 3 | E21: Agency 4 | F21: Agency 5 | G21: Agency 6
A22: VISIBILITY - HIGH PROFILE ? (yes/no) | B22: NO | C22: NO | D22: NO | E22: NO | F22: NO | G22: NO

Sheet Offices Locations
B2: Last update:
B3: Organization | C3: City 1 GPS Location | D3: City 2 GPS Location | E3: City 3 GPS Location
B4: Agency 1
B5: Agency 2
B6: Agency 3
B7: Agency 4
B8: Agency 5
B9: Agency 6
C12: Suggested meeting point(s) | D12: Suggested meeting point(s) | E12: Suggested meeting point(s)
B13: Meeting point 1
B14: Meeting point 2
B15: Meeting point 3

Sheet Insurance coverage
B2: Is your organization matching the minimum requirement ? YES/NO
A3: Insurance | B3: Agency 1 | C3: Comments (if necessary) | D3: Agency 2 | E3: Comments (if necessary) | F3: Agency 3 | G3: Comments (if necessary) | H3: Agency 4 | I3: Comments (if necessary) | J3: Agency 5 | K3: Comments (if necessary) | L3: Agency 6 | M3: Comments (if necessary)
A4: Insurance coverage for All passengers using vehicles (NGO staff or others) | B4: Yes | D4: Yes | E4: Passenger and driver non-wage Death & disability 10,000 USD Medical expenses 2,500 USD | F4: Yes | H4: Yes | I4: Passengers and Driver: Death & Disability 10,000USD per Person, for 5 Persons. Medical Expenses Max Liability 2,500USD per Person, for 5 Persons. | J4: Yes | K4: It is an essential condition of the policy that the driver at the time of accident should not be less than 21 years of age otherwise the cover will be considered as null and void. Risks Covered / Maximum Limits of Liability / USD A- Third party liability (Property Damage) = 1,000,000 B- Own Damage to the Insured Vehicle = 13,500 C- Fire of the Insured Vehicle = 13,500 D- Total Theft of the Insured Vehicle = 13,500 E- Hold-Up of the insured Vehicle Not covered Extensions: 1. Passengers and / or Driver a. Death & Disability 10,000 Per Person for 5 Persons b. Medical Expenses 3,000 Per Person for 5 Persons 2. Road Assistance (Towing) | L4: Yes | M4: Full comprehensive is insurance policy. It is understood that the driver of the vehicle must be at least 23 years old with a valid driver's license. Risks covered: A. Third party liability (property damage) - maximum limit of liability $ 500000 B. Own damage to the insured vehicle - maximum limits of liability car value C. Fire of the insured vehicle - maximum limits of liability car value D. Total theft of the indured vehicle - maximum limits of liability car value E. Hold-up of the insured vehicle - maximum limits of liability car value
A5: Please specify maximum financial amount coverage per type of incidents | D5: Yes | E5: Third Party 150,000 USD Fire 18,000 USD Hold up 18,000 USD Theft 18,000 USD Own damage 18,000 USD | F5: 750 Millions LBP | H5: Yes | I5: Third Party: 500,000USD Fire: Max Limit of Liability Car Value Theft: Max Limit of Liability Car Value Hold-up: Max Limit of Liability Car Value | L5: Yes | M5: 1. Passengers and or driver - Death & disability max liability $10000 per pers. for 5 pers. - Medical expenses max liability $2500 per pers. for 5 pers.

Sheet Datasource (hidden)
A1: Places | B1: Vehicle List
A2: Akkar - Aabboudiyeh | B2: TDH
A3: Akkar - Aain Ez-Zeit | B3: ACF
A4: Akkar - Aain Tinta | B4: IRC
A5: Akkar - Aain Yaaqoub
A6: Akkar - Aaiyat | B6: GVC
A7: Akkar - Aakkar El-Aatiqa
A8: Akkar - Aamaret Aakkar
A9: Akkar - Aamaret El-Baykat
A10: Akkar - Aamayer
A11: Akkar - Aamriyet Aakkar
A12: Akkar - Aandqet
A13: Akkar - Aaouaainat Aakkar
A14: Akkar - AAridet Cheikh Zennad
A15: Akkar - Aarmeh
A16: Akkar - Aarqa
A17: Akkar - Aayoun Aakkar
A18: Akkar - Aayoun El-Ghizlane
A19: Akkar - Baghdadi
A20: Akkar - Balde WaMazraatBaldeh
A21: Akkar - Barcha
A22: Akkar - Bardeh
A23: Akkar - Bebnine
A24: Akkar - Beino
A25: Akkar - Beit Ayoub
A26: Akkar - Beit El-Haouch
A27: Akkar - Beit Mellat
A28: Akkar - Beit Younes
A29: Akkar - Berbara Aakkar
A30: Akkar - Berqayel
A31: Akkar - Bezbina
A32: Akkar - Biret Aakkar
A33: Akkar - Borj Aakkar
A34: Akkar - Bqerzla
A35: Akkar - Bsatine Aakkar
A36: Akkar - Bzal
A37: Akkar - Chane
A38: Akkar - Chaqdouf
A39: Akkar - Charbila
A40: Akkar - Cheikh Mohammad
A41: Akkar - Cheikh Taba
A42: Akkar - Cheikh Taba Es-Sahl
A43: Akkar - Cheikh Zennad
A44: Akkar - Cheikhlar
A45: Akkar - Chir Hmairine
A46: Akkar - Daghleh
A47: Akkar - Dahr Laissine
A48: Akkar - Daouret Aakkar
A49: Akkar - Darine
A50: Akkar - Dayret Nahr El-Kabir
A51: Akkar - Deir Dalloum
A52: Akkar - Deir Jannine
A53: Akkar - Dibbabiyeh
A54: Akkar - Dinbou
A55: Akkar - Douair Aadouiyeh
A56: Akkar - Fnaydeq
A57: Akkar - Fraydes Aakkar
A58: Akkar - Ghazayleh
A59: Akkar - Habchit
A60: Akkar - Hakour
A61: Akkar - Halba
A62: Akkar - Haouchab
A63: Akkar - Hayssa
A64: Akkar - Haytla
A65: Akkar - Hayzouq
A66: Akkar - Hedd
A67: Akkar - Hmaireh Aakkar
A68: Akkar - Hmaiss Aakkar
A69: Akkar - Hnaider
A70: Akkar - Hokr Ed-Dahri
A71: Akkar - Hokr Etti
A72: Akkar - Hokr Jouret Srar
A73: Akkar - Houaich
A74: Akkar - Hrar
A75: Akkar - Idbil
A76: Akkar - Ilat
A77: Akkar - Janine
A78: Akkar - Jdeidet El-Qaitaa
A79: Akkar - Jdidet Ej-Joumeh
A80: Akkar - Jebrayel
A81: Akkar - Kafr
A82: Akkar - Karm Aasfour
A83: Akkar - Kfar Harra
A84: Akkar - Kfar Melki Aakkar
A85: Akkar - Kfar Noun
A86: Akkar - Khalsa
A87: Akkar - Kharnoubet Aakkar
A88: Akkar - Khirbet Char
A89: Akkar - Khirbet Daoud Aakkar
A90: Akkar - Khirbet Er Remmane
A91: Akkar - Khreibet Aakkar
A92: Akkar - Khreibet Ej-Jindi
A93: Akkar - Kneisset Aakkar
A94: Akkar - Kneisset Hnaider
A95: Akkar - Knisseh
A96: Akkar - Kouachra
A97: Akkar - Koueikhat
A98: Akkar - Kroum El-Aarab
A99: Akkar - Machha
A100: Akkar - Machta Hammoud
A101: Akkar - Majdala
A102: Akkar - Majdel Akkar
A103: Akkar - Mar Touma
A104: Akkar - Marlaya Melhem
A105: Akkar - Massaaoudiyeh
A106: Akkar - Mazareaa Jabal Akroum
A107: Akkar - Mazraat Beit Ghattas
A108: Akkar - Mazraat En-Nahriyeh
A109: Akkar - Menneaa
A110: Akkar - Mhammaret
A111: Akkar - Michmich Aakkar
A112: Akkar - Mighraq Aakkar
A113: Akkar - Minyara
A114: Akkar - Mounjez
A115: Akkar - Mqaiteaa
A116: Akkar - Msalla
A117: Akkar - Mzeihmeh
A118: Akkar - Nfisseh
A119: Akkar - Noura Et-Tahta
A120: Akkar - Ouadi El-Haour
A121: Akkar - Ouadi El-Jamous
A122: Akkar - Qaabrine
A123: Akkar - Qabaait
A124: Akkar - Qachlaq
A125: Akkar - Qantarat Aakkar
A126: Akkar - Qardaf
A127: Akkar - Qarha Aakkar
A128: Akkar - Qbaiyat Aakkar
A129: Akkar - Qboula
A130: Akkar - Qleiaat Aakkar
A131: Akkar - Qloud El-Baqieh
A132: Akkar - Qornet Aakkar
A133: Akkar - Qoubber Chamra
A134: Akkar - Qraiyat
A135: Akkar - Qsair Aakkar
A136: Akkar - Rahbeh
A137: Akkar - Rihaniyet Aakkar
A138: Akkar - Rmah
A139: Akkar - Rmoul
A140: Akkar - Saadine
A141: Akkar - Sadaqa
A142: Akkar - Saidnaya
A143: Akkar - Sammaqiyeh
A144: Akkar - Sammouniyeh
A145: Akkar - Sayssouq
A146: Akkar - Semmaqli
A147: Akkar - Sfaynet El-Qaitaa
A148: Akkar - Sfinet Ed-Draib
A149: Akkar - Sindianet Zeidane
A150: Akkar - Souaisset Aakkar
A151: Akkar - Srar
A152: Akkar - Tall Aabbas Ech-Charqi
A153: Akkar - Tall Aabbas El-Gharbi
A154: Akkar - Tall Bireh
A155: Akkar - Tall Hmayra
A156: Akkar - Tall Meaayan Tall Kiri
A157: Akkar - Tall Sebaal
A158: Akkar - Tallet Chattaha
A159: Akkar - Tikrit
A160: Akkar - Tleil
A161: Akkar - Tshea
A162: Akkar - Zouarib
A163: Akkar - Zouq El Hosniyeh
A164: Akkar - Zouq El-Hadara
A165: Akkar - Zouq El-Hbalsa
A166: Akkar - Zouq El-Moqachrine
A167: Aley - Aabey
A168: Aley - Aain Aanoub
A169: Aley - Aain Dara
A170: Aley - Aain Drafil
A171: Aley - Aain Ej-Jdideh Aaley
A172: Aley - Aain El Halazoun
A173: Aley - Aain Er-Roummaneh Aaley
A174: Aley - Aain Ksour
A175: Aley - Aain Traz
A176: Aley - Aaley
A177: Aley - Aaley Bsatine
A178: Aley - Aaramoun Aaley
A179: Aley - Aaynab
A180: Aley - Aaytat
A181: Aley - Aazouniyeh
A182: Aley - Baaouerta
A183: Aley - Bayssour Aaley
A184: Aley - Bchamoun
A185: Aley - Bdadoun
A186: Aley - Bedghan Oua Ouadi Bedghan
A187: Aley - Behouara
A188: Aley - Bhamdoun Ed-Dayaa
A189: Aley - Bhamdoun El-Mhatta
A190: Aley - Binnay
A191: Aley - Bkhichtay
A192: Aley - Blaybel
A193: Aley - Bmahray
A194: Aley - Bmakine
A195: Aley - Bou Zrideh
A196: Aley - Bserrine
A197: Aley - Bsous
A198: Aley - Btalloun
A199: Aley - Btater
A200: Aley - Chanay
... 1348 more rows
